Workbook

Sheet General information
A2: Investigation of allele-specific transcription factor binding in a cellular model for orofacial clefting
A4: Katharina L. M. Ruff1, Ronja Hollstein1, Julia Fazaal1, Frederic Thieme1, Nadine Siebert2, Jan Gehlen3, Elisabeth Mangold1, Michael Knapp4, Julia Welzenbach1, Kerstin U. Ludwig1
A8: Supplementary Tables 1 to 14 are provided in .xls format
A10: Supplementary Table S1: Expression data of HEPM cells as determined by 3'mRNA-seq
A11: Supplementary Table S2: Candidate Transcription factors for ChIP based on literature research
A12: Supplementary Table S3: TFAP2A binding peaks in HEPM cells replicate 1
A13: Supplementary Table S4: TFAP2A binding peaks in HEPM-cells replicate 2
A14: Supplementary Table S5: Intersection of both TFAP2A ChIP-seq Replicates: High confidence peaks (hc-peaks)
A15: Supplementary Table S6: Gene Ontology Analysis (GREAT): Biological processes enriched in craniofacial-specific hc-peaks (FDR<0.05)
A16: Supplementary Table S7: Gene Ontology Analysis (GREAT): Human phenotypes associated with craniofacial-specific hc-peaks (FDR<0.05)
A17: Supplementary Table S8: Gene Ontology Analysis (GREAT): Mouse single knockout phenotypes associated with craniofacial-specific hc-peaks (FDR<0.05)
A18: Supplementary Table S9: Gene Ontology Analysis (GREAT): Biological processes enriched in hc-peaks (FDR<0.05)
A19: Supplementary Table S10: Gene Ontology Analysis (GREAT): Human phenotypes associated with hc-peaks (FDR<0.05)
A20: Supplementary Table S11: Gene Ontology Analysis (GREAT): Mouse single knockout phenotypes associated with hc-peaks (FDR<0.05)
A21: Supplementary Table S12: Association of SNPs within hc-peaks with topologically associating domains harbouring nsCL/P GWAS risk loci
A22: Supplementary Table S13: SNPs of nsCL/P GWAS meta-analysis by Ludwig et al. 2017 within hc-peaks
A23: Supplementary Table S14: SNPs within hc-peaks with allele-specific TFAP2A binding
A24: Supplementary Table S15: References and online aviability of tools employed in the project workflow

Sheet Supplementary Table S1
A1: Supplementary Table S1: Expression data of HEPM cells as determined by 3'mRNA-seq
C2: Number of uniquely mapped mRNA readsa
A3: GeneID (Ensembl) | C3: Replicate 1 | D3: Replicate 2 | E3: Replicate 3 | F3: Average | H3: Transcription factorb
A4: ENSG00000210082 | C4: 185868 | D4: 175076 | E4: 53141 | F4: =(E4+D4+C4)/3 -> 138028.3 | H4: -
A5: ENSG00000251562 | C5: 103505 | D5: 165707 | E5: 63661 | F5: 110957.7 | H5: -
A6: ENSG00000166441 | C6: 48177 | D6: 59074 | E6: 77092 | F6: 61447.7 | H6: -
A7: ENSG00000184009 | C7: 55177 | D7: 84084 | E7: 26686 | F7: 55315.7 | H7: -
A8: ENSG00000164692 | C8: 50692 | D8: 35947 | E8: 47416 | F8: 44685.0 | H8: -
A9: ENSG00000108821 | C9: 45143 | D9: 31475 | E9: 51324 | F9: 42647.3 | H9: -
A10: ENSG00000143947 | C10: 37787 | D10: 55290 | E10: 30427 | F10: 41168.0 | H10: -
A11: ENSG00000197956 | C11: 38279 | D11: 46214 | E11: 33118 | F11: 39203.7 | H11: -
A12: ENSG00000197756 | C12: 33051 | D12: 46260 | E12: 27558 | F12: 35623.0 | H12: -
A13: ENSG00000026025 | C13: 24922 | D13: 26464 | E13: 15927 | F13: 22437.7 | H13: -
A14: ENSG00000135404 | C14: 29866 | D14: 22370 | E14: 14062 | F14: 22099.3 | H14: -
A15: ENSG00000111640 | C15: 13764 | D15: 26303 | E15: 25048 | F15: 21705.0 | H15: -
A16: ENSG00000137818 | C16: 17761 | D16: 23582 | E16: 22753 | F16: 21365.3 | H16: -
A17: ENSG00000177469 | C17: 10844 | D17: 16865 | E17: 35343 | F17: 21017.3 | H17: -
A18: ENSG00000112306 | C18: 14467 | D18: 18613 | E18: 24650 | F18: 19243.3 | H18: -
A19: ENSG00000167658 | C19: 17744 | D19: 21984 | E19: 14937 | F19: 18221.7 | H19: -
A20: ENSG00000198938 | C20: 15994 | D20: 17168 | E20: 20634 | F20: 17932.0 | H20: -
A21: ENSG00000163359 | C21: 18864 | D21: 21487 | E21: 12684 | F21: 17678.3 | H21: -
A22: ENSG00000211459 | C22: 19415 | D22: 23290 | E22: 9202 | F22: 17302.3 | H22: -
A23: ENSG00000198034 | C23: 15923 | D23: 18267 | E23: 16376 | F23: 16855.3 | H23: -
A24: ENSG00000138326 | C24: 13742 | D24: 17230 | E24: 17938 | F24: 16303.3 | H24: -
A25: ENSG00000105372 | C25: 16967 | D25: 19627 | E25: 11484 | F25: 16026.0 | H25: -
A26: ENSG00000091986 | C26: 12314 | D26: 14064 | E26: 20337 | F26: 15571.7 | H26: -
A27: ENSG00000166710 | C27: 17209 | D27: 11111 | E27: 17282 | F27: 15200.7 | H27: -
A28: ENSG00000177600 | C28: 12565 | D28: 16466 | E28: 15455 | F28: 14828.7 | H28: -
A29: ENSG00000196230 | C29: 10877 | D29: 15909 | E29: 15943 | F29: 14243.0 | H29: -
A30: ENSG00000034510 | C30: 12117 | D30: 16105 | E30: 14472 | F30: 14231.3 | H30: -
A31: ENSG00000069275 | C31: 11258 | D31: 12777 | E31: 17884 | F31: 13973.0 | H31: -
A32: ENSG00000166598 | C32: 12975 | D32: 14421 | E32: 13897 | F32: 13764.3 | H32: -
A33: ENSG00000070756 | C33: 13731 | D33: 15785 | E33: 10605 | F33: 13373.7 | H33: -
A34: ENSG00000149257 | C34: 18064 | D34: 17508 | E34: 4541 | F34: 13371.0 | H34: -
A35: ENSG00000115414 | C35: 6265 | D35: 7266 | E35: 25789 | F35: 13106.7 | H35: -
A36: ENSG00000149273 | C36: 11030 | D36: 15642 | E36: 12009 | F36: 12893.7 | H36: -
A37: ENSG00000113140 | C37: 19132 | D37: 12065 | E37: 6812 | F37: 12669.7 | H37: -
A38: ENSG00000080824 | C38: 7549 | D38: 9806 | E38: 19786 | F38: 12380.3 | H38: -
A39: ENSG00000133112 | C39: 13726 | D39: 13421 | E39: 9908 | F39: 12351.7 | H39: -
A40: ENSG00000164587 | C40: 12403 | D40: 15576 | E40: 7755 | F40: 11911.3 | H40: -
A41: ENSG00000122786 | C41: 8638 | D41: 12306 | E41: 14653 | F41: 11865.7 | H41: -
A42: ENSG00000167460 | C42: 7385 | D42: 11117 | E42: 16786 | F42: 11762.7 | H42: -
A43: ENSG00000131711 | C43: 8283 | D43: 9851 | E43: 17029 | F43: 11721.0 | H43: -
A44: ENSG00000096384 | C44: 8482 | D44: 11926 | E44: 13867 | F44: 11425.0 | H44: -
A45: ENSG00000009307 | C45: 12157 | D45: 14596 | E45: 7100 | F45: 11284.3 | H45: -
A46: ENSG00000035862 | C46: 14947 | D46: 12079 | E46: 6632 | F46: 11219.3 | H46: -
A47: ENSG00000084207 | C47: 8367 | D47: 10093 | E47: 15085 | F47: 11181.7 | H47: -
A48: ENSG00000142937 | C48: 10768 | D48: 14090 | E48: 8651 | F48: 11169.7 | H48: -
A49: ENSG00000137154 | C49: 10477 | D49: 13167 | E49: 9360 | F49: 11001.3 | H49: -
A50: ENSG00000136026 | C50: 12435 | D50: 8062 | E50: 11514 | F50: 10670.3 | H50: -
A51: ENSG00000167996 | C51: 14263 | D51: 11107 | E51: 6435 | F51: 10601.7 | H51: -
A52: ENSG00000163430 | C52: 9144 | D52: 8985 | E52: 13567 | F52: 10565.3 | H52: -
A53: ENSG00000125691 | C53: 9693 | D53: 12013 | E53: 9848 | F53: 10518.0 | H53: -
A54: ENSG00000213741 | C54: 10156 | D54: 13367 | E54: 7529 | F54: 10350.7 | H54: -
A55: ENSG00000181195 | C55: 13218 | D55: 7753 | E55: 9964 | F55: 10311.7 | H55: -
A56: ENSG00000179218 | C56: 10058 | D56: 11183 | E56: 9523 | F56: 10254.7 | H56: -
A57: ENSG00000277443 | C57: 6546 | D57: 11514 | E57: 12697 | F57: 10252.3 | H57: -
A58: ENSG00000122406 | C58: 8192 | D58: 12032 | E58: 9604 | F58: 9942.7 | H58: -
A59: ENSG00000068697 | C59: 11920 | D59: 10467 | E59: 6106 | F59: 9497.7 | H59: -
A60: ENSG00000198467 | C60: 8336 | D60: 11194 | E60: 8700 | F60: 9410.0 | H60: -
A61: ENSG00000166147 | C61: 8329 | D61: 9785 | E61: 9786 | F61: 9300.0 | H61: -
A62: ENSG00000133110 | C62: 13730 | D62: 8001 | E62: 5938 | F62: 9223.0 | H62: -
A63: ENSG00000115310 | C63: 11121 | D63: 10205 | E63: 6186 | F63: 9170.7 | H63: -
A64: ENSG00000184840 | C64: 10540 | D64: 9661 | E64: 7062 | F64: 9087.7 | H64: -
A65: ENSG00000130508 | C65: 6913 | D65: 7273 | E65: 12947 | F65: 9044.3 | H65: -
A66: ENSG00000142871 | C66: 6935 | D66: 9137 | E66: 10062 | F66: 8711.3 | H66: -
A67: ENSG00000204628 | C67: 7878 | D67: 9228 | E67: 8996 | F67: 8700.7 | H67: -
A68: ENSG00000131016 | C68: 7888 | D68: 7982 | E68: 9160 | F68: =(E68+D68+C68)/3 -> 8343.3 | H68: -
A69: ENSG00000171858 | C69: 8768 | D69: 11086 | E69: 5167 | F69: 8340.3 | H69: -
A70: ENSG00000161016 | C70: 7403 | D70: 9213 | E70: 8274 | F70: 8296.7 | H70: -
A71: ENSG00000106153 | C71: 7953 | D71: 9635 | E71: 7242 | F71: 8276.7 | H71: -
A72: ENSG00000138758 | C72: 5633 | D72: 7103 | E72: 12018 | F72: 8251.3 | H72: -
A73: ENSG00000105438 | C73: 6956 | D73: 8105 | E73: 9648 | F73: 8236.3 | H73: -
A74: ENSG00000142676 | C74: 9267 | D74: 10484 | E74: 4776 | F74: 8175.7 | H74: -
A75: ENSG00000175061 | C75: 8241 | D75: 8371 | E75: 7556 | F75: 8056.0 | H75: -
A76: ENSG00000198840 | C76: 7984 | D76: 8843 | E76: 6740 | F76: 7855.7 | H76: -
A77: ENSG00000116132 | C77: 5699 | D77: 5881 | E77: 11966 | F77: 7848.7 | H77: PRRX1
A78: ENSG00000115053 | C78: 6043 | D78: 7367 | E78: 10030 | F78: 7813.3 | H78: -
A79: ENSG00000172757 | C79: 5112 | D79: 6287 | E79: 11814 | F79: 7737.7 | H79: -
A80: ENSG00000125868 | C80: 7892 | D80: 9840 | E80: 5470 | F80: 7734.0 | H80: -
A81: ENSG00000140416 | C81: 5556 | D81: 7323 | E81: 9961 | F81: 7613.3 | H81: -
A82: ENSG00000185650 | C82: 8354 | D82: 8259 | E82: 6107 | F82: 7573.3 | H82: -
A83: ENSG00000197746 | C83: 10065 | D83: 7332 | E83: 5275 | F83: 7557.3 | H83: -
A84: ENSG00000100097 | C84: 7334 | D84: 9121 | E84: 5517 | F84: 7324.0 | H84: -
A85: ENSG00000166913 | C85: 6619 | D85: 7554 | E85: 7779 | F85: 7317.3 | H85: -
A86: ENSG00000002834 | C86: 7194 | D86: 8871 | E86: 5656 | F86: 7240.3 | H86: -
A87: ENSG00000075624 | C87: 6132 | D87: 8937 | E87: 6363 | F87: 7144.0 | H87: -
A88: ENSG00000116260 | C88: 7948 | D88: 7943 | E88: 5431 | F88: 7107.3 | H88: -
A89: ENSG00000150991 | C89: 6730 | D89: 6653 | E89: 7805 | F89: 7062.7 | H89: -
A90: ENSG00000130255 | C90: 5987 | D90: 7910 | E90: 7064 | F90: 6987.0 | H90: -
A91: ENSG00000063177 | C91: 6049 | D91: 8099 | E91: 6778 | F91: 6975.3 | H91: -
A92: ENSG00000141753 | C92: 7232 | D92: 6160 | E92: 7455 | F92: 6949.0 | H92: -
A93: ENSG00000197102 | C93: 4865 | D93: 5267 | E93: 10670 | F93: 6934.0 | H93: -
A94: ENSG00000050405 | C94: 7418 | D94: 9399 | E94: 3858 | F94: 6891.7 | H94: -
A95: ENSG00000071082 | C95: 7154 | D95: 8257 | E95: 5097 | F95: 6836.0 | H95: -
A96: ENSG00000160014 | C96: 6957 | D96: 9970 | E96: 3548 | F96: 6825.0 | H96: -
A97: ENSG00000142156 | C97: 6941 | D97: 6513 | E97: 6962 | F97: 6805.3 | H97: -
A98: ENSG00000104529 | C98: 5783 | D98: 7748 | E98: 6875 | F98: 6802.0 | H98: -
A99: ENSG00000167526 | C99: 6205 | D99: 6397 | E99: 7753 | F99: 6785.0 | H99: -
A100: ENSG00000092841 | C100: 6269 | D100: 6781 | E100: 7269 | F100: 6773.0 | H100: -
A101: ENSG00000196924 | C101: 5306 | D101: 6921 | E101: 8084 | F101: 6770.3 | H101: -
A102: ENSG00000089597 | C102: 6676 | D102: 8376 | E102: 5082 | F102: 6711.3 | H102: -
A103: ENSG00000044574 | C103: 7133 | D103: 8203 | E103: 4548 | F103: 6628.0 | H103: -
A104: ENSG00000123416 | C104: 6502 | D104: 11454 | E104: 1905 | F104: 6620.3 | H104: -
A105: ENSG00000168542 | C105: 7623 | D105: 7651 | E105: 4250 | F105: 6508.0 | H105: -
A106: ENSG00000100234 | C106: 9141 | D106: 6534 | E106: 3664 | F106: 6446.3 | H106: -
A107: ENSG00000049323 | C107: 7733 | D107: 6363 | E107: 5238 | F107: 6444.7 | H107: -
A108: ENSG00000140264 | C108: 7007 | D108: 6959 | E108: 5265 | F108: 6410.3 | H108: -
A109: ENSG00000187514 | C109: 4417 | D109: 8167 | E109: 6388 | F109: 6324.0 | H109: -
A110: ENSG00000148303 | C110: 5832 | D110: 8220 | E110: 4871 | F110: 6307.7 | H110: -
A111: ENSG00000123349 | C111: 5034 | D111: 5626 | E111: 8113 | F111: 6257.7 | H111: -
A112: ENSG00000115457 | C112: 7039 | D112: 5787 | E112: 5865 | F112: 6230.3 | H112: -
A113: ENSG00000174748 | C113: 5566 | D113: 6604 | E113: 6491 | F113: 6220.3 | H113: -
A114: ENSG00000161970 | C114: 5690 | D114: 7974 | E114: 4755 | F114: 6139.7 | H114: -
A115: ENSG00000179222 | C115: 5733 | D115: 6689 | E115: 5910 | F115: 6110.7 | H115: -
A116: ENSG00000124766 | C116: 4119 | D116: 5175 | E116: 9025 | F116: 6106.3 | H116: SOX4
A117: ENSG00000265972 | C117: 5882 | D117: 8237 | E117: 4076 | F117: 6065.0 | H117: -
A118: ENSG00000163661 | C118: 6966 | D118: 6825 | E118: 4371 | F118: 6054.0 | H118: -
A119: ENSG00000138829 | C119: 6907 | D119: 4629 | E119: 6618 | F119: 6051.3 | H119: -
A120: ENSG00000167283 | C120: 6290 | D120: 6926 | E120: 4936 | F120: 6050.7 | H120: -
A121: ENSG00000182670 | C121: 5121 | D121: 6344 | E121: 6639 | F121: 6034.7 | H121: -
A122: ENSG00000105355 | C122: 3630 | D122: 5768 | E122: 8388 | F122: 5928.7 | H122: -
A123: ENSG00000099194 | C123: 8660 | D123: 5830 | E123: 2846 | F123: 5778.7 | H123: -
A124: ENSG00000156482 | C124: 5745 | D124: 4619 | E124: 6935 | F124: 5766.3 | H124: -
A125: ENSG00000089220 | C125: 5962 | D125: 5617 | E125: 5661 | F125: 5746.7 | H125: -
A126: ENSG00000128595 | C126: 5948 | D126: 5123 | E126: 5979 | F126: 5683.3 | H126: -
A127: ENSG00000160789 | C127: 4884 | D127: 6750 | E127: 5378 | F127: 5670.7 | H127: -
A128: ENSG00000198712 | C128: 4912 | D128: 7324 | E128: 4633 | F128: 5623.0 | H128: -
A129: ENSG00000008988 | C129: 6481 | D129: 7476 | E129: 2904 | F129: 5620.3 | H129: -
A130: ENSG00000166923 | C130: 5358 | D130: 7950 | E130: 3106 | F130: 5471.3 | H130: -
A131: ENSG00000115461 | C131: 6752 | D131: 4613 | E131: 5041 | F131: 5468.7 | H131: -
A132: ENSG00000185222 | C132: 5960 | D132: 6303 | E132: 4138 | F132: =(E132+D132+C132)/3 -> 5467.0 | H132: -
A133: ENSG00000145592 | C133: 5395 | D133: 6588 | E133: 4309 | F133: 5430.7 | H133: -
A134: ENSG00000143870 | C134: 6235 | D134: 6009 | E134: 3973 | F134: 5405.7 | H134: -
A135: ENSG00000107581 | C135: 4961 | D135: 5418 | E135: 5788 | F135: 5389.0 | H135: -
A136: ENSG00000111142 | C136: 3833 | D136: 4701 | E136: 7606 | F136: 5380.0 | H136: -
A137: ENSG00000072110 | C137: 5122 | D137: 6079 | E137: 4915 | F137: 5372.0 | H137: -
A138: ENSG00000150093 | C138: 6278 | D138: 7137 | E138: 2639 | F138: 5351.3 | H138: -
A139: ENSG00000105193 | C139: 4463 | D139: 6061 | E139: 5510 | F139: 5344.7 | H139: -
A140: ENSG00000117450 | C140: 5297 | D140: 6252 | E140: 4467 | F140: 5338.7 | H140: -
A141: ENSG00000182774 | C141: 4038 | D141: 5800 | E141: 6158 | F141: 5332.0 | H141: -
A142: ENSG00000187109 | C142: 3921 | D142: 5461 | E142: 6542 | F142: 5308.0 | H142: -
A143: ENSG00000149806 | C143: 4949 | D143: 6274 | E143: 4672 | F143: 5298.3 | H143: -
A144: ENSG00000166681 | C144: 5868 | D144: 5835 | E144: 4162 | F144: 5288.3 | H144: -
A145: ENSG00000169100 | C145: 5429 | D145: 6457 | E145: 3956 | F145: 5280.7 | H145: -
A146: ENSG00000163931 | C146: 4222 | D146: 5770 | E146: 5713 | F146: 5235.0 | H146: -
A147: ENSG00000115677 | C147: 4772 | D147: 6241 | E147: 4674 | F147: 5229.0 | H147: -
A148: ENSG00000105974 | C148: 2942 | D148: 5088 | E148: 7633 | F148: 5221.0 | H148: -
A149: ENSG00000185551 | C149: 3349 | D149: 5377 | E149: 6925 | F149: 5217.0 | H149: NR2F2
A150: ENSG00000125844 | C150: 5181 | D150: 5499 | E150: 4960 | F150: 5213.3 | H150: -
A151: ENSG00000108424 | C151: 5546 | D151: 6618 | E151: 3387 | F151: 5183.7 | H151: -
A152: ENSG00000162576 | C152: 5061 | D152: 5749 | E152: 4724 | F152: 5178.0 | H152: -
A153: ENSG00000142534 | C153: 5382 | D153: 5521 | E153: 4576 | F153: 5159.7 | H153: -
A154: ENSG00000185088 | C154: 4593 | D154: 6434 | E154: 4438 | F154: 5155.0 | H154: -
A155: ENSG00000167552 | C155: 4954 | D155: 7180 | E155: 3201 | F155: 5111.7 | H155: -
A156: ENSG00000134853 | C156: 4811 | D156: 5609 | E156: 4810 | F156: 5076.7 | H156: -
A157: ENSG00000144713 | C157: 4071 | D157: 4583 | E157: 6572 | F157: 5075.3 | H157: -
A158: ENSG00000169567 | C158: 7110 | D158: 6645 | E158: 1349 | F158: 5034.7 | H158: -
A159: ENSG00000214548 | C159: 3808 | D159: 7747 | E159: 3393 | F159: 4982.7 | H159: -
A160: ENSG00000129038 | C160: 4765 | D160: 6009 | E160: 4168 | F160: 4980.7 | H160: -
A161: ENSG00000047849 | C161: 4921 | D161: 6554 | E161: 3322 | F161: 4932.3 | H161: -
A162: ENSG00000104904 | C162: 4597 | D162: 5167 | E162: 5016 | F162: 4926.7 | H162: -
A163: ENSG00000203875 | C163: 5714 | D163: 4816 | E163: 4068 | F163: 4866.0 | H163: -
A164: ENSG00000182899 | C164: 5199 | D164: 5936 | E164: 3458 | F164: 4864.3 | H164: -
A165: ENSG00000167553 | C165: 5156 | D165: 6882 | E165: 2538 | F165: 4858.7 | H165: -
A166: ENSG00000085063 | C166: 4285 | D166: 3902 | E166: 6280 | F166: 4822.3 | H166: -
A167: ENSG00000061273 | C167: 3956 | D167: 5642 | E167: 4751 | F167: 4783.0 | H167: -
A168: ENSG00000167004 | C168: 4761 | D168: 5259 | E168: 4301 | F168: 4773.7 | H168: -
A169: ENSG00000185896 | C169: 6646 | D169: 4232 | E169: 3418 | F169: 4765.3 | H169: -
A170: ENSG00000100345 | C170: 3727 | D170: 5172 | E170: 5291 | F170: 4730.0 | H170: -
A171: ENSG00000130402 | C171: 4602 | D171: 5563 | E171: 4016 | F171: 4727.0 | H171: -
A172: ENSG00000118816 | C172: 4213 | D172: 5472 | E172: 4376 | F172: 4687.0 | H172: -
A173: ENSG00000182718 | C173: 3505 | D173: 5149 | E173: 5301 | F173: 4651.7 | H173: -
A174: ENSG00000109475 | C174: 4962 | D174: 4546 | E174: 4366 | F174: 4624.7 | H174: -
A175: ENSG00000142541 | C175: 4651 | D175: 6281 | E175: 2908 | F175: 4613.3 | H175: -
A176: ENSG00000087086 | C176: 6333 | D176: 4321 | E176: 3058 | F176: 4570.7 | H176: -
A177: ENSG00000172809 | C177: 4501 | D177: 5389 | E177: 3816 | F177: 4568.7 | H177: -
A178: ENSG00000071054 | C178: 3886 | D178: 5138 | E178: 4644 | F178: 4556.0 | H178: -
A179: ENSG00000136938 | C179: 3194 | D179: 4353 | E179: 6082 | F179: 4543.0 | H179: -
A180: ENSG00000127022 | C180: 5449 | D180: 4474 | E180: 3650 | F180: 4524.3 | H180: -
A181: ENSG00000186340 | C181: 4981 | D181: 3791 | E181: 4725 | F181: 4499.0 | H181: -
A182: ENSG00000173812 | C182: 3387 | D182: 3559 | E182: 6538 | F182: 4494.7 | H182: -
A183: ENSG00000170889 | C183: 3700 | D183: 4857 | E183: 4905 | F183: 4487.3 | H183: -
A184: ENSG00000147065 | C184: 4154 | D184: 5218 | E184: 4089 | F184: 4487.0 | H184: -
A185: ENSG00000244398 | C185: 4256 | D185: 6303 | E185: 2901 | F185: 4486.7 | H185: -
A186: ENSG00000198886 | C186: 5251 | D186: 4228 | E186: 3797 | F186: 4425.3 | H186: -
A187: ENSG00000157227 | C187: 6796 | D187: 3253 | E187: 3225 | F187: 4424.7 | H187: -
A188: ENSG00000142192 | C188: 6120 | D188: 4082 | E188: 3068 | F188: 4423.3 | H188: -
A189: ENSG00000158417 | C189: 4165 | D189: 4142 | E189: 4888 | F189: 4398.3 | H189: -
A190: ENSG00000132475 | C190: 3868 | D190: 5275 | E190: 4048 | F190: 4397.0 | H190: -
A191: ENSG00000196154 | C191: 3237 | D191: 3503 | E191: 6209 | F191: 4316.3 | H191: -
A192: ENSG00000167522 | C192: 4027 | D192: 4651 | E192: 4134 | F192: 4270.7 | H192: -
A193: ENSG00000141002 | C193: 3332 | D193: 4510 | E193: 4883 | F193: 4241.7 | H193: -
A194: ENSG00000149591 | C194: 3258 | D194: 2898 | E194: 6514 | F194: 4223.3 | H194: -
A195: ENSG00000117523 | C195: 3725 | D195: 4079 | E195: 4850 | F195: 4218.0 | H195: -
A196: ENSG00000110321 | C196: 5477 | D196: 5638 | E196: 1529 | F196: =(E196+D196+C196)/3 -> 4214.7 | H196: -
A197: ENSG00000245532 | C197: 3581 | D197: 6526 | E197: 2460 | F197: 4189.0 | H197: -
A198: ENSG00000087460 | C198: 3859 | D198: 3279 | E198: 5375 | F198: 4171.0 | H198: -
A199: ENSG00000197712 | C199: 2472 | D199: 3431 | E199: 6500 | F199: 4134.3 | H199: -
A200: ENSG00000140319 | C200: 4345 | D200: 4740 | E200: 3240 | F200: 4108.3 | H200: -
... 4299 more rows

Sheet Supplementary Table S2
A1: Supplementary Table S2: Candidate Transcription factors for ChIP based on literature research
A2: Gene symbol | B2: GeneID (Ensembl) | C2: Candidate gene for a nsCL/P risk locus (Pubmed ID) | D2: Evidence for relevance of TF in craniofacial development (Pubmed ID) | E2: Expression in HEPM cells (Average no. of 3'RNA-seq reads)a
A3: ARID3B | B3: ENSG00000179361 | C3: 15q24: Lead SNPs rs28689146 (chr15:75005575) and rs11072496 (chr15:74920532) Ludwig et al. 2017 (PMID: 28087736) | D3: - | E3: 4
A4: CMYC | B4: ENSG00000136997 | C4: 8q24: Lead SNP: rs987525 (chr8:129946154) Birnbaum et al. 2009 (PMID: 19270707) | D4: Zhu et al. 2012 (PMID: 22573578) | E4: 34
A5: FOXE1 | B5: ENSG00000178919 | C5: 9q22: Lead SNP: rs3758249 (chr9:100614140) Moreno et al. 2009 (PMID: 19779022) | D5: De Felice et al. 1998 (PMID: 9697704); Meng et al. 2012 (PMID: 22304410) | E5: not expressed
A6: FOXF2 | B6: ENSG00000137273 | C6: - | D6: Bu et al. 2015 (PMID: 26278207); Moussavi et al. 2016 (PMID: 27180663); Xu et al. 2016 (PMID: 26745863); Everson et al. 2017 (PMID: 28506991) | E6: 464
A7: GRHL2 | B7: ENSG00000083307 | C7: - | D7: Pyrgaki et al. 2011 (PMID: 21377456); Menke et al. 2015 (PMID: 26177923); Carpinelli et al. 2017 (PMID: 28697314) | E7: not expressed
A8: GRHL3 | B8: ENSG00000158055 | C8: - | D8: Peyrard-Janvid et al. 2014 (PMID: 24360809); Leslie et al. 2016 (PMID: 27018472); Mangold et al. 2016 (PMID: 27018475); Capinelli et al. 2017 (PMID: 28697314) | E8: not expressed
A9: GSC | B9: ENSG00000133937 | C9: 14q32.13: Lead SNPs rs1243572 (chr14:95379499) and rs1243573 (chr14:95379583) Yu et al. 2017 (PMID: 28232668) | D9: Boucher et al. 2000 (PMID: 10853824); Shao et al. 2016 (PMID: 27126000) | E9: not expressed
A10: HOXA2 | B10: ENSG00000105996 | C10: - | D10: Rijli et al. 1994 (PMID: 7903601); Grammatopoulos et al. 2000 (PMID: 11076757); Nazarali et al. 2000 (PMID: 10789828); Pasqualetti et al. 2001 (PMID: 11076758); Smith et al. 2009 (PMID: 19653318) | E10: not expressed
A11: IRF6 | B11: ENSG00000117595 | C11: 1q32.2: Lead SNPs rs642961 (chr1:209989270) and rs861020 (chr1:209977111) Rahimov et al. 2008 (PMID: 18836445); Beaty et al. 2010 (PMID: 20436469) | D11: Kondo et al. 2002 (PMID: 12219090); Zucchero et al. 2004 (PMID: 15317890); Ingraham et al.2006 (PMID: 17041601); Whale et al. 2006 (PMID: 16245336 ); Parada-Sanchez et al. 2017 (PMID: 28767310) | E11: 16
A12: LHX8 | B12: ENSG00000162624 | C12: - | D12: Zhao et al. 1999 (PMID: 10611327); Nikopensius et al. 2011 (PMID: 21462296); Yıldırım et al. 2014 (PMID: 23860042); Cesario et al. 2015 (PMID: 26071365) | E12: 289
A13: MAFB | B13: ENSG00000204103 | C13: 20q12: Lead SNP rs13041247 (chr20:39269074) Beaty et al. 2010 (PMID: 20436469) | D13: Miller et al. 2014 (PMID:24738728) | E13: 2
A14: MSX1 | B14: ENSG00000163132 | C14: 4p16: Lead SNPs rs34246903 (chr4:4794195) and rs1907989 (chr4:4818925) Yu et al. 2017 (PMID: 28232668) | D14: Lidral et al. 1998 (PMID: 9683588); Bendall et al. 2000 (PMID: 10773441); Hilliard et al. 2005 (PMID: 16313398); Salahshourifar et al. 2011 (PMID: 21866112); Medio et al. 2012 (PMID: 23055979); Zhou et al. 2013 (PMID: 24173808) | E14: 537
A15: OSR2 | B15: ENSG00000164920 | C15: - | D15: Lan et al. 2004 (PMID: 15175245); Zhou et al. 2013 (PMID: 24173808); Fu et al. 2017 (PMID: 28731788) | E15: 784
A16: PAX7 | B16: ENSG00000009709 | C16: 1p36: Lead SNP rs742071 (chr1:18979874) Ludwig et al. 2012 (PMID: 22863734) | D16: Gowans et al. 2016 (PMID: 27369588) | E16: not expressed
A17: PAX9 | B17: ENSG00000198807 | C17: - | D17: Peters et al. 1998 (PMID: 9732271); Hilliard et al. 2005 (PMID: 16313398); Zhou et al. 2013 (PMID: 24173808); Li et al. 2019 (PMID: 30583699) | E17: 314
A18: SOX4 | B18: ENSG00000124766 | C18: - | D18: Goldsworthy et al. 2008 (PMID: 18477811); Seelan et al. 2013 (PMID: 23566091); | E18: 6106
A19: TBX1 | B19: ENSG00000184058 | C19: - | D19: Goudy et al. 2010 (PMID: 20214979); Funato et al. 2012 (PMID: 22371266); Brock et al. 2016 (PMID: 26689739) | E19: 7
A20: TBX22 | B20: ENSG00000122145 | C20: - | D20: Braybrook et al. 2001 (PMID: 11559848); Marçano et al. 2004 (PMID: 14729838); Liu et al. 2008 (PMID: 18948418) | E20: not expressed
A21: TFAP2A | B21: ENSG00000137203 | C21: 6p24 Lead SNP: rs9381107 (chr6:9469238) Yu et al. 2017 (PMID: 28232668) | D21: Schorle et al. 1996 (PMID: 8622765); Rahimov et al. 2008 (PMID: 18836445); Milunsky et al. 2008 (PMID: 18423521); McDade et al. 2012 (PMID: 22573176), Green et al. 2014 (PMID: 25381013) | E21: 710
A22: TP63 | B22: ENSG00000073282 | C22: 3q28: Lead SNPrs76479869 (chr3:189553372) Leslie et al. 2017 (PMID: 28054174) | D22: Barrow et al. 2002 (PMID: 12161593); McDade et al.2012 (PMID: 22573176); Richardson et al. 2017 (PMID: 28604778); Liu et al. 2018 (PMID: 29341488) | E22: not expressed
A23: TWIST1 | B23: ENSG00000122691 | C23: - | D23: Howard et al. 1997 (PMID: 8988166); Soo et al. 2002 (PMID: 12086465); Bildsoe et al. 2009 (PMID: 27546376); Fakhouri et al. 2017 (PMID: 28769044) | E23: 1563
A24: VAX1 | B24: ENSG00000148704 | C24: 10q25: Lead SNP rs7078160 (chr10:118827560) Mangold et al. 2009 (PMID: 20023658) | D24: Bertuzzi et al. 1999 (PMID: 10601035); Slavotinek et al. 2012 (PMID: 22095910); Geoghegan et al. 2017 (PMID: 28771384) | E24: not expressed
A26: a - Average number of 3'-mRNA-seq reads (Supplementary Table S1). Methods provided in the text.

Sheet Supplementary Table S3
A1: Supplementary Table S3: TFAP2A binding peaks in HEPM cells replicate 1
A2: Chromosome | B2: Start | C2: End | D2: Scorea | E2: Signalb | F2: p-valuec | G2: q-valuec | H2: Relative position of summitd
A3: 1 | B3: 935503 | C3: 935811 | D3: 13 | E3: 3.5715 | F3: 4.640448957e-05 | G3: 0.048546732 | H3: 170
A4: 1 | B4: 948591 | C4: 948848 | D4: 56 | E4: 5.21752 | F4: 7.617106012e-10 | G4: 2.396514163e-06 | H4: 231
A5: 1 | B5: 1014860 | C5: 1015084 | D5: 88 | E5: 6.77247 | F5: 2.916150945e-13 | G5: 1.409288798e-09 | H5: 143
A6: 1 | B6: 1051289 | C6: 1051666 | D6: 82 | E6: 6.1958 | F6: 1.133287243e-12 | G6: 5.071424916e-09 | H6: 221
A7: 1 | B7: 1241223 | C7: 1241542 | D7: 26 | E7: 4.43361 | F7: 1.428795257e-06 | G7: 0.002418354705 | H7: 99
A8: 1 | B8: 1242823 | C8: 1243069 | D8: 28 | E8: 4.46437 | F8: 7.712052902e-07 | G8: 0.001397333271 | H8: 97
A9: 1 | B9: 1294840 | C9: 1295604 | D9: 75 | E9: 6.62807 | F9: 7.79919897e-12 | G9: 3.105417528e-08 | H9: 132
A10: 1 | B10: 1623948 | C10: 1624221 | D10: 46 | E10: 5.35725 | F10: 8.815155953e-09 | G10: 2.336899308e-05 | H10: 171
A11: 1 | B11: 1624557 | C11: 1625068 | D11: 97 | E11: 7.58944 | F11: 3.382205567e-14 | G11: 1.794072544e-10 | H11: 188
A12: 1 | B12: 1790859 | C12: 1791073 | D12: 131 | E12: 8.92875 | F12: 9.329320218e-18 | G12: 7.089898209e-14 | H12: 112
A13: 1 | B13: 1822916 | C13: 1823160 | D13: 34 | E13: 4.69675 | F13: 1.872578359e-07 | G13: 0.0003767471711 | H13: 113
A14: 1 | B14: 2139771 | C14: 2140256 | D14: 292 | E14: 12.3916 | F14: 2.439326872e-34 | G14: 5.866917753e-30 | H14: 163
A15: 1 | B15: 2221542 | C15: 2221791 | D15: 123 | E15: 8.69901 | F15: 6.634985835e-17 | G15: 4.721717503e-13 | H15: 104
A16: 1 | B16: 2466426 | C16: 2466648 | D16: 54 | E16: 5.91149 | F16: 1.152816012e-09 | G16: 3.475521664e-06 | H16: 72
A17: 1 | B17: 3192529 | C17: 3192900 | D17: 78 | E17: 6.86764 | F17: 3.188599693e-12 | G17: 1.353692429e-08 | H17: 276
A18: 1 | B18: 3439292 | C18: 3439586 | D18: 109 | E18: 8.3746 | F18: 1.757883137e-15 | G18: 1.096301479e-11 | H18: 202
A19: 1 | B19: 3459470 | C19: 3460362 | D19: 258 | E19: 13.39312 | F19: 7.206593075e-31 | G19: 1.418044958e-26 | H19: 261
A20: 1 | B20: 6550053 | C20: 6550408 | D20: 46 | E20: 4.59782 | F20: 9.575247315e-09 | G20: 2.480618624e-05 | H20: 49
A21: 1 | B21: 6930267 | C21: 6930868 | D21: 132 | E21: 7.82628 | F21: 8.189172135e-18 | G21: 6.278993016e-14 | H21: 181
A22: 1 | B22: 7020386 | C22: 7021036 | D22: 354 | E22: 17.24183 | F22: 9.990333817e-41 | G22: 3.438666043e-36 | H22: 243
A23: 1 | B23: 7373361 | C23: 7373705 | D23: 312 | E23: 13.92118 | F23: 1.920967424e-36 | G23: 5.194096332e-32 | H23: 119
A24: 1 | B24: 7530988 | C24: 7531228 | D24: 152 | E24: 9.04543 | F24: 5.743809135e-20 | G24: 5.257145536e-16 | H24: 110
A25: 1 | B25: 7586665 | C25: 7586952 | D25: 139 | E25: 9.4295 | F25: 1.389728615e-18 | G25: 1.12844397e-14 | H25: 125
A26: 1 | B26: 7609447 | C26: 7609722 | D26: 305 | E26: 15.1088 | F26: 9.659174233e-36 | G26: 2.518662639e-31 | H26: 113
A27: 1 | B27: 8021385 | C27: 8021716 | D27: 102 | E27: 7.36755 | F27: 1.07991606e-14 | G27: 6.128440867e-11 | H27: 170
A28: 1 | B28: 8454943 | C28: 8455211 | D28: 192 | E28: 11.16094 | F28: 4.238185878e-24 | G28: 5.321205117e-20 | H28: 139
A29: 1 | B29: 8523655 | C29: 8524085 | D29: 58 | E29: 5.99529 | F29: 4.115759601e-10 | G29: 1.319714535e-06 | H29: 304
A30: 1 | B30: 8938886 | C30: 8939242 | D30: 42 | E30: 4.89961 | F30: 2.400324732e-08 | G30: 5.749101816e-05 | H30: 194
A31: 1 | B31: 8963689 | C31: 8964284 | D31: 494 | E31: 21.67545 | F31: 5.035006088e-55 | G31: 3.517223774e-50 | H31: 476
A32: 1 | B32: 9826851 | C32: 9827104 | D32: 86 | E32: 7.38936 | F32: 4.541507126e-13 | G32: 2.173201519e-09 | H32: 187
A33: 1 | B33: 10488053 | C33: 10488374 | D33: 531 | E33: 21.97643 | F33: 8.435289651e-59 | G33: 6.951683643e-54 | H33: 215
A34: 1 | B34: 11538912 | C34: 11539165 | D34: 26 | E34: 4.43361 | F34: 1.428795257e-06 | G34: 0.002418354705 | H34: 93
A35: 1 | B35: 11741261 | C35: 11741749 | D35: 146 | E35: 9.85248 | F35: 2.783940827e-19 | G35: 2.459574603e-15 | H35: 228
A36: 1 | B36: 11862703 | C36: 11862924 | D36: 37 | E36: 4.91081 | F36: 8.604784535e-08 | G36: 0.0001895483464 | H36: 167
A37: 1 | B37: 12193086 | C37: 12193331 | D37: 17 | E37: 3.94099 | F37: 1.264124941e-05 | G37: 0.01614470077 | H37: 55
A38: 1 | B38: 12203725 | C38: 12204025 | D38: 312 | E38: 12.06927 | F38: 2.330182842e-36 | G38: 6.281885265e-32 | H38: 141
A39: 1 | B39: 12213461 | C39: 12213846 | D39: 46 | E39: 4.97211 | F39: 8.97883519e-09 | G39: 2.336899308e-05 | H39: 322
A40: 1 | B40: 12221754 | C40: 12222013 | D40: 92 | E40: 6.5219 | F40: 1.164715889e-13 | G40: 5.889656956e-10 | H40: 209
A41: 1 | B41: 12540905 | C41: 12541121 | D41: 209 | E41: 10.15548 | F41: 8.004606736e-26 | G41: 1.124113077e-21 | H41: 127
A42: 1 | B42: 12662222 | C42: 12662534 | D42: 88 | E42: 7.02192 | F42: 2.893343523e-13 | G42: 1.402296984e-09 | H42: 213
A43: 1 | B43: 14698671 | C43: 14698925 | D43: 155 | E43: 9.82162 | F43: 3.087948154e-20 | G43: 2.93021846e-16 | H43: 99
A44: 1 | B44: 15221261 | C44: 15221501 | D44: 53 | E44: 4.88518 | F44: 1.384044328e-09 | G44: 4.02893258e-06 | H44: 221
A45: 1 | B45: 15273039 | C45: 15273238 | D45: 17 | E45: 3.94099 | F45: 1.264124941e-05 | G45: 0.01614470077 | H45: 71
A46: 1 | B46: 15280610 | C46: 15280981 | D46: 109 | E46: 8.3746 | F46: 1.757883137e-15 | G46: 1.096301479e-11 | H46: 204
A47: 1 | B47: 15322972 | C47: 15323443 | D47: 54 | E47: 5.91149 | F47: 1.152816012e-09 | G47: 3.475521664e-06 | H47: 409
A48: 1 | B48: 15736055 | C48: 15736361 | D48: 64 | E48: 6.36612 | F48: 1.045129244e-10 | G48: 3.555003233e-07 | H48: 193
A49: 1 | B49: 15850469 | C49: 15850910 | D49: 175 | E49: 9.79921 | F49: 2.40281315e-22 | G49: 2.671591174e-18 | H49: 301
A50: 1 | B50: 16007041 | C50: 16007434 | D50: 608 | E50: 25.12381 | F50: 1.057523434e-66 | G50: 1.273503081e-61 | H50: 262
A51: 1 | B51: 16087154 | C51: 16087798 | D51: 121 | E51: 7.50018 | F51: 9.545748766e-17 | G51: 6.74978594e-13 | H51: 199
A52: 1 | B52: 16125562 | C52: 16125792 | D52: 121 | E52: 7.50018 | F52: 9.545748766e-17 | G52: 6.74978594e-13 | H52: 92
A53: 1 | B53: 16126477 | C53: 16126889 | D53: 167 | E53: 9.9133 | F53: 1.895396176e-21 | G53: 1.957176534e-17 | H53: 297
A54: 1 | B54: 16403464 | C54: 16403713 | D54: 146 | E54: 9.85248 | F54: 2.783940827e-19 | G54: 2.459574603e-15 | H54: 116
A55: 1 | B55: 16424064 | C55: 16424329 | D55: 55 | E55: 5.74433 | F55: 1.039058501e-09 | G55: 3.160021227e-06 | H55: 132
A56: 1 | B56: 16471611 | C56: 16471888 | D56: 73 | E56: 6.03756 | F56: 1.288427542e-11 | G56: 5.001036221e-08 | H56: 167
A57: 1 | B57: 16500045 | C57: 16500408 | D57: 155 | E57: 8.04618 | F57: 3.324757696e-20 | G57: 3.1092096e-16 | H57: 198
A58: 1 | B58: 16502345 | C58: 16503014 | D58: 353 | E58: 15.07571 | F58: 1.32437203e-40 | G58: 4.485284548e-36 | H58: 254
A59: 1 | B59: 16693999 | C59: 16694245 | D59: 64 | E59: 6.40411 | F59: 9.078623378e-11 | G59: 3.232362056e-07 | H59: 134
A60: 1 | B60: 16947560 | C60: 16947906 | D60: 676 | E60: 15.58056 | F60: 1.3516679e-73 | G60: 2.255277567e-68 | H60: 178
A61: 1 | B61: 17278154 | C61: 17278393 | D61: 313 | E61: 13.94503 | F61: 1.743050621e-36 | G61: 4.757622726e-32 | H61: 143
A62: 1 | B62: 17307146 | C62: 17307397 | D62: 54 | E62: 5.91149 | F62: 1.152816012e-09 | G62: 3.475521664e-06 | H62: 107
A63: 1 | B63: 17534586 | C63: 17534821 | D63: 75 | E63: 6.89673 | F63: 6.64431173e-12 | G63: 2.727721331e-08 | H63: 124
A64: 1 | B64: 17560319 | C64: 17560534 | D64: 37 | E64: 4.1097 | F64: 7.674498402e-08 | G64: 0.0001698712959 | H64: 139
A65: 1 | B65: 17565965 | C65: 17566222 | D65: 98 | E65: 7.88198 | F65: 2.911789663e-14 | G65: 1.583908174e-10 | H65: 161
A66: 1 | B66: 17613968 | C66: 17614229 | D66: 306 | E66: 15.16361 | F66: 7.805486915e-36 | G66: 2.039623466e-31 | H66: 152
A67: 1 | B67: 17896060 | C67: 17896343 | D67: 14 | E67: 3.66274 | F67: 3.371397807e-05 | G67: 0.03644433248 | H67: 47
A68: 1 | B68: 17914585 | C68: 17915247 | D68: 75 | E68: 6.89673 | F68: 6.64431173e-12 | G68: 2.727721331e-08 | H68: 298
A69: 1 | B69: 17959096 | C69: 17959327 | D69: 158 | E69: 10.3451 | F69: 1.362197253e-20 | G69: 1.330515689e-16 | H69: 91
A70: 1 | B70: 18201046 | C70: 18201337 | D70: 28 | E70: 4.46437 | F70: 7.712052902e-07 | G70: 0.001397333271 | H70: 219
A71: 1 | B71: 18205295 | C71: 18205546 | D71: 18 | E71: 3.76893 | F71: 9.44800251e-06 | G71: 0.01282832636 | H71: 45
A72: 1 | B72: 19722276 | C72: 19722647 | D72: 556 | E72: 21.47882 | F72: 2.64691503e-61 | G72: 2.437642426e-56 | H72: 132
A73: 1 | B73: 19772434 | C73: 19772633 | D73: 42 | E73: 5.24479 | F73: 2.554288805e-08 | G73: 5.991423245e-05 | H73: 149
A74: 1 | B74: 19775113 | C74: 19775788 | D74: 78 | E74: 4.87027 | F74: 3.133935111e-12 | G74: 1.333153017e-08 | H74: 152
A75: 1 | B75: 19777378 | C75: 19777587 | D75: 52 | E75: 4.62341 | F75: 2.056411387e-09 | G75: 5.893183985e-06 | H75: 171
A76: 1 | B76: 20700283 | C76: 20700479 | D76: 47 | E76: 5.41581 | F76: 7.113117782e-09 | G76: 1.898147687e-05 | H76: 98
A77: 1 | B77: 21023180 | C77: 21023895 | D77: 469 | E77: 20.65788 | F77: 1.673516505e-52 | G77: 1.032143305e-47 | H77: 358
A78: 1 | B78: 21564901 | C78: 21565393 | D78: 480 | E78: 14.89766 | F78: 1.426756961e-53 | G78: 9.331253759e-49 | H78: 297
A79: 1 | B79: 21629960 | C79: 21630295 | D79: 101 | E79: 6.84799 | F79: 1.14061742e-14 | G79: 6.453718228e-11 | H79: 102
A80: 1 | B80: 21639718 | C80: 21639960 | D80: 231 | E80: 10.76113 | F80: 3.930067413e-28 | G80: 6.54786927e-24 | H80: 138
A81: 1 | B81: 21649604 | C81: 21649867 | D81: 36 | E81: 4.86059 | F81: 1.032666289e-07 | G81: 0.000221983145 | H81: 44
A82: 1 | B82: 21672098 | C82: 21672410 | D82: 92 | E82: 7.5436 | F82: 1.036931338e-13 | G82: 5.251580173e-10 | H82: 139
A83: 1 | B83: 22188504 | C83: 22188789 | D83: 88 | E83: 6.78407 | F83: 2.78740452e-13 | G83: 1.372144977e-09 | H83: 95
A84: 1 | B84: 22196355 | C84: 22196588 | D84: 371 | E84: 16.96462 | F84: 2.025023185e-42 | G84: 7.678033453e-38 | H84: 96
A85: 1 | B85: 22774027 | C85: 22774471 | D85: 132 | E85: 7.82628 | F85: 8.189172135e-18 | G85: 6.278993016e-14 | H85: 136
A86: 1 | B86: 22778724 | C86: 22778941 | D86: 42 | E86: 5.12373 | F86: 2.074674648e-08 | G86: 5.017414725e-05 | H86: 163
A87: 1 | B87: 23039077 | C87: 23039370 | D87: 75 | E87: 6.69656 | F87: 6.038651966e-12 | G87: 2.528715671e-08 | H87: 118
A88: 1 | B88: 23523300 | C88: 23523703 | D88: 65 | E88: 6.00016 | F88: 8.234742057e-11 | G88: 2.941846444e-07 | H88: 87
A89: 1 | B89: 23866318 | C89: 23866521 | D89: 35 | E89: 4.92624 | F89: 1.45683377e-07 | G89: 0.0003084182013 | H89: 106
A90: 1 | B90: 23887997 | C90: 23888386 | D90: 34 | E90: 4.52271 | F90: 1.906470107e-07 | G90: 0.0003809605456 | H90: 207
A91: 1 | B91: 23888764 | C91: 23889064 | D91: 52 | E91: 4.62341 | F91: 2.056411387e-09 | G91: 5.893183985e-06 | H91: 243
A92: 1 | B92: 24620855 | C92: 24621121 | D92: 133 | E92: 9.35985 | F92: 5.419884105e-18 | G92: 4.27838635e-14 | H92: 141
A93: 1 | B93: 24742098 | C93: 24742293 | D93: 75 | E93: 6.89673 | F93: 6.64431173e-12 | G93: 2.727721331e-08 | H93: 85
A94: 1 | B94: 24842089 | C94: 24842470 | D94: 211 | E94: 12.31559 | F94: 5.011295356e-26 | G94: 7.241357687e-22 | H94: 141
A95: 1 | B95: 25010249 | C95: 25010609 | D95: 155 | E95: 9.82398 | F95: 3.060271798e-20 | G95: 2.905427213e-16 | H95: 87
A96: 1 | B96: 25069920 | C96: 25070898 | D96: 1333 | E96: 42.41155 | F96: 2.121485169e-140 | G96: 4.689321403e-134 | H96: 571
A97: 1 | B97: 25071228 | C97: 25071561 | D97: 88 | E97: 6.77247 | F97: 2.916150945e-13 | G97: 1.409288798e-09 | H97: 273
A98: 1 | B98: 25281686 | C98: 25281878 | D98: 119 | E98: 8.747 | F98: 1.580010598e-16 | G98: 1.048117567e-12 | H98: 103
A99: 1 | B99: 25573958 | C99: 25574154 | D99: 150 | E99: 9.20025 | F99: 1.032048246e-19 | G99: 9.267871423e-16 | H99: 130
A100: 1 | B100: 25756480 | C100: 25756789 | D100: 35 | E100: 4.92624 | F100: 1.45683377e-07 | G100: 0.0003084182013 | H100: 151
A101: 1 | B101: 26034212 | C101: 26034749 | D101: 456 | E101: 20.33168 | F101: 3.645524321e-51 | G101: 2.098311689e-46 | H101: 172
A102: 1 | B102: 26100004 | C102: 26100424 | D102: 243 | E102: 11.08722 | F102: 2.384404869e-29 | G102: 4.263732992e-25 | H102: 142
A103: 1 | B103: 26185681 | C103: 26186083 | D103: 96 | E103: 6.322 | F103: 3.972921646e-14 | G103: 2.073194271e-10 | H103: 276
A104: 1 | B104: 26219007 | C104: 26219477 | D104: 491 | E104: 20.53612 | F104: 1.069571938e-54 | G104: 7.284336503e-50 | H104: 172
A105: 1 | B105: 26947074 | C105: 26947403 | D105: 55 | E105: 5.80369 | F105: 8.346415483e-10 | G105: 2.587497864e-06 | H105: 159
A106: 1 | B106: 27191642 | C106: 27191867 | D106: 18 | E106: 3.76893 | F106: 9.44800251e-06 | G106: 0.01282832636 | H106: 59
A107: 1 | B107: 27325848 | C107: 27326199 | D107: 148 | E107: 7.44883 | F107: 1.663182857e-19 | G107: 1.48207438e-15 | H107: 187
A108: 1 | B108: 27492736 | C108: 27492980 | D108: 35 | E108: 4.92624 | F108: 1.45683377e-07 | G108: 0.0003084182013 | H108: 218
A109: 1 | B109: 27626054 | C109: 27626322 | D109: 96 | E109: 7.51182 | F109: 4.532001031e-14 | G109: 2.352231167e-10 | H109: 103
A110: 1 | B110: 27648444 | C110: 27648689 | D110: 109 | E110: 7.53786 | F110: 1.987147021e-15 | G110: 1.211490464e-11 | H110: 90
A111: 1 | B111: 27863466 | C111: 27863678 | D111: 15 | E111: 3.74393 | F111: 2.535187005e-05 | G111: 0.02800464038 | H111: 157
A112: 1 | B112: 27866915 | C112: 27867344 | D112: 276 | E112: 11.20718 | F112: 1.057206927e-32 | G112: 2.314621591e-28 | H112: 100
A113: 1 | B113: 27985419 | C113: 27985967 | D113: 205 | E113: 11.60737 | F113: 2.017529994e-25 | G113: 2.775172607e-21 | H113: 105
A114: 1 | B114: 28051964 | C114: 28052371 | D114: 229 | E114: 12.3724 | F114: 6.712433559e-28 | G114: 1.090460654e-23 | H114: 225
A115: 1 | B115: 28628162 | C115: 28628660 | D115: 121 | E115: 8.86723 | F115: 1.002674569e-16 | G115: 7.039470609e-13 | H115: 386
A116: 1 | B116: 28696204 | C116: 28696655 | D116: 35 | E116: 4.92624 | F116: 1.45683377e-07 | G116: 0.0003084182013 | H116: 318
A117: 1 | B117: 29064115 | C117: 29064454 | D117: 125 | E117: 8.53954 | F117: 4.120690534e-17 | G117: 2.970366238e-13 | H117: 154
A118: 1 | B118: 29451121 | C118: 29451390 | D118: 27 | E118: 4.41871 | F118: 9.08761668e-07 | G118: 0.001596945151 | H118: 173
A119: 1 | B119: 29508324 | C119: 29508603 | D119: 75 | E119: 6.69656 | F119: 6.038651966e-12 | G119: 2.528715671e-08 | H119: 143
A120: 1 | B120: 30159208 | C120: 30159447 | D120: 184 | E120: 11.33035 | F120: 2.844199135e-23 | G120: 3.357376142e-19 | H120: 134
A121: 1 | B121: 30161469 | C121: 30161730 | D121: 25 | E121: 3.91314 | F121: 1.902610986e-06 | G121: 0.002981741569 | H121: 92
A122: 1 | B122: 30181827 | C122: 30182729 | D122: 1197 | E122: 41.38039 | F122: 1.300379157e-126 | G122: 1.946614706e-120 | H122: 263
A123: 1 | B123: 30531888 | C123: 30532223 | D123: 679 | E123: 17.64754 | F123: 6.027261024e-74 | G123: 1.023740772e-68 | H123: 112
A124: 1 | B124: 30851885 | C124: 30852293 | D124: 41 | E124: 5.22512 | F124: 2.744100418e-08 | G124: 6.427173149e-05 | H124: 110
A125: 1 | B125: 31289338 | C125: 31289681 | D125: 178 | E125: 10.96638 | F125: 1.145222838e-22 | G125: 1.294404458e-18 | H125: 240
A126: 1 | B126: 31296895 | C126: 31297428 | D126: 152 | E126: 9.04543 | F126: 5.743809135e-20 | G126: 5.257145536e-16 | H126: 121
A127: 1 | B127: 31406818 | C127: 31407011 | D127: 54 | E127: 5.91149 | F127: 1.152816012e-09 | G127: 3.475521664e-06 | H127: 104
A128: 1 | B128: 31449805 | C128: 31450230 | D128: 88 | E128: 7.02192 | F128: 2.893343523e-13 | G128: 1.402296984e-09 | H128: 222
A129: 1 | B129: 31480329 | C129: 31480530 | D129: 227 | E129: 10.53813 | F129: 1.023740772e-27 | G129: 1.645318572e-23 | H129: 94
A130: 1 | B130: 31625395 | C130: 31625586 | D130: 141 | E130: 8.66853 | F130: 8.36238195e-19 | G130: 6.921337071e-15 | H130: 77
A131: 1 | B131: 32092114 | C131: 32092407 | D131: 131 | E131: 8.92875 | F131: 9.329320218e-18 | G131: 7.089898209e-14 | H131: 114
A132: 1 | B132: 32140361 | C132: 32140702 | D132: 158 | E132: 10.3451 | F132: 1.362197253e-20 | G132: 1.330515689e-16 | H132: 91
A133: 1 | B133: 32166516 | C133: 32167212 | D133: 46 | E133: 4.97211 | F133: 8.97883519e-09 | G133: 2.336899308e-05 | H133: 54
A134: 1 | B134: 32221030 | C134: 32221235 | D134: 155 | E134: 9.82162 | F134: 3.087948154e-20 | G134: 2.93021846e-16 | H134: 112
A135: 1 | B135: 32253956 | C135: 32254271 | D135: 115 | E135: 7.67329 | F135: 4.050605984e-16 | G135: 2.625064628e-12 | H135: 200
A136: 1 | B136: 32403971 | C136: 32404193 | D136: 65 | E136: 6.25012 | F136: 7.345646083e-11 | G136: 2.667104303e-07 | H136: 175
A137: 1 | B137: 32701772 | C137: 32702191 | D137: 394 | E137: 15.00036 | F137: 7.641172429e-45 | G137: 3.274085376e-40 | H137: 185
A138: 1 | B138: 32757448 | C138: 32757750 | D138: 13 | E138: 3.5715 | F138: 4.640448957e-05 | G138: 0.048546732 | H138: 73
A139: 1 | B139: 33004530 | C139: 33005061 | D139: 140 | E139: 9.50022 | F139: 1.062282434e-18 | G139: 8.674011628e-15 | H139: 383
A140: 1 | B140: 33168094 | C140: 33170004 | D140: 56 | E140: 5.21752 | F140: 7.617106012e-10 | G140: 2.396514163e-06 | H140: 360
A141: 1 | B141: 33263841 | C141: 33264111 | D141: 329 | E141: 13.36989 | F141: 3.352818159e-38 | G141: 1.009415572e-33 | H141: 148
A142: 1 | B142: 33282517 | C142: 33283046 | D142: 27 | E142: 4.41871 | F142: 9.08761668e-07 | G142: 0.001596945151 | H142: 99
A143: 1 | B143: 33283443 | C143: 33283806 | D143: 14 | E143: 3.66274 | F143: 3.371397807e-05 | G143: 0.03644433248 | H143: 227
A144: 1 | B144: 33629167 | C144: 33629610 | D144: 320 | E144: 15.56664 | F144: 3.360624584e-37 | G144: 9.488990241e-33 | H144: 169
A145: 1 | B145: 33685561 | C145: 33685904 | D145: 143 | E145: 9.37519 | F145: 5.493005072e-19 | G145: 4.68317083e-15 | H145: 101
A146: 1 | B146: 33899455 | C146: 33899648 | D146: 130 | E146: 8.27746 | F146: 1.234411616e-17 | G146: 9.138186137e-14 | H146: 89
A147: 1 | B147: 35438988 | C147: 35439402 | D147: 238 | E147: 13.30084 | F147: 7.550400695e-29 | G147: 1.314922025e-24 | H147: 152
A148: 1 | B148: 35450362 | C148: 35450967 | D148: 86 | E148: 7.143 | F148: 4.657147575e-13 | G148: 2.173201519e-09 | H148: 232
A149: 1 | B149: 35914834 | C149: 35915213 | D149: 53 | E149: 5.83134 | F149: 1.548638315e-09 | G149: 4.480845813e-06 | H149: 248
A150: 1 | B150: 36621292 | C150: 36621753 | D150: 118 | E150: 8.39556 | F150: 2.09850496e-16 | G150: 1.38315229e-12 | H150: 173
A151: 1 | B151: 36632657 | C151: 36632900 | D151: 121 | E151: 8.86723 | F151: 1.002674569e-16 | G151: 7.039470609e-13 | H151: 123
A152: 1 | B152: 36792953 | C152: 36793173 | D152: 69 | E152: 6.03028 | F152: 3.155367878e-11 | G152: 1.189460433e-07 | H152: 192
A153: 1 | B153: 36818579 | C153: 36818802 | D153: 133 | E153: 9.02635 | F153: 6.434132497e-18 | G153: 4.964208342e-14 | H153: 106
A154: 1 | B154: 38466014 | C154: 38466210 | D154: 27 | E154: 4.41871 | F154: 9.08761668e-07 | G154: 0.001596945151 | H154: 90
A155: 1 | B155: 39555603 | C155: 39555927 | D155: 17 | E155: 3.94099 | F155: 1.264124941e-05 | G155: 0.01614470077 | H155: 52
A156: 1 | B156: 39670833 | C156: 39671110 | D156: 538 | E156: 19.97532 | F156: 1.725241912e-59 | G156: 1.476794275e-54 | H156: 165
A157: 1 | B157: 40042535 | C157: 40042818 | D157: 18 | E157: 3.76893 | F157: 9.44800251e-06 | G157: 0.01282832636 | H157: 74
A158: 1 | B158: 41157933 | C158: 41158156 | D158: 40 | E158: 4.95665 | F158: 3.832127939e-08 | G158: 8.870947316e-05 | H158: 125
A159: 1 | B159: 41410035 | C159: 41410246 | D159: 30 | E159: 3.85284 | F159: 4.297045972e-07 | G159: 0.0007986380542 | H159: 95
A160: 1 | B160: 42137920 | C160: 42138664 | D160: 752 | E160: 25.25182 | F160: 2.290076552e-81 | G160: 5.459589628e-76 | H160: 185
A161: 1 | B161: 42421219 | C161: 42421586 | D161: 86 | E161: 7.38936 | F161: 4.541507126e-13 | G161: 2.173201519e-09 | H161: 153
A162: 1 | B162: 42631301 | C162: 42631557 | D162: 17 | E162: 3.94099 | F162: 1.264124941e-05 | G162: 0.01614470077 | H162: 237
A163: 1 | B163: 42675560 | C163: 42675784 | D163: 86 | E163: 7.38936 | F163: 4.541507126e-13 | G163: 2.173201519e-09 | H163: 99
A164: 1 | B164: 43423329 | C164: 43423563 | D164: 26 | E164: 4.43361 | F164: 1.428795257e-06 | G164: 0.002418354705 | H164: 148
A165: 1 | B165: 43429408 | C165: 43429645 | D165: 146 | E165: 9.85248 | F165: 2.783940827e-19 | G165: 2.459574603e-15 | H165: 171
A166: 1 | B166: 43671482 | C166: 43671965 | D166: 64 | E166: 5.54361 | F166: 9.190518212e-11 | G166: 3.232362056e-07 | H166: 241
A167: 1 | B167: 43958624 | C167: 43958961 | D167: 134 | E167: 9.12387 | F167: 4.44007187e-18 | G167: 3.519978412e-14 | H167: 115
A168: 1 | B168: 44300812 | C168: 44301060 | D168: 274 | E168: 10.5311 | F168: 1.46791193e-32 | G168: 3.184417486e-28 | H168: 124
A169: 1 | B169: 44395282 | C169: 44395531 | D169: 238 | E169: 13.30084 | F169: 7.550400695e-29 | G169: 1.314922025e-24 | H169: 101
A170: 1 | B170: 44495855 | C170: 44496131 | D170: 26 | E170: 4.03552 | F170: 1.191790722e-06 | G170: 0.002065760648 | H170: 255
A171: 1 | B171: 44793400 | C171: 44793864 | D171: 931 | E171: 33.47474 | F171: 1.295328736e-99 | G171: 7.244192795e-94 | H171: 305
A172: 1 | B172: 45097331 | C172: 45097640 | D172: 13 | E172: 3.36293 | F172: 4.168309901e-05 | G172: 0.04393594784 | H172: 189
A173: 1 | B173: 45265274 | C173: 45265909 | D173: 97 | E173: 7.58944 | F173: 3.382205567e-14 | G173: 1.794072544e-10 | H173: 251
A174: 1 | B174: 45272787 | C174: 45273244 | D174: 313 | E174: 15.17887 | F174: 1.523315987e-36 | G174: 4.197783151e-32 | H174: 212
A175: 1 | B175: 46016164 | C175: 46016666 | D175: 59 | E175: 5.65339 | F175: 3.073972656e-10 | G175: 1.008764987e-06 | H175: 267
A176: 1 | B176: 46050080 | C176: 46050620 | D176: 67 | E176: 5.13712 | F176: 4.455639034e-11 | G176: 1.634406196e-07 | H176: 316
A177: 1 | B177: 46337700 | C177: 46338051 | D177: 121 | E177: 7.50018 | F177: 9.545748766e-17 | G177: 6.74978594e-13 | H177: 241
A178: 1 | B178: 46502811 | C178: 46503098 | D178: 121 | E178: 8.86723 | F178: 1.002674569e-16 | G178: 7.039470609e-13 | H178: 84
A179: 1 | B179: 46594121 | C179: 46594382 | D179: 152 | E179: 9.34784 | F179: 5.803633782e-20 | G179: 5.257145536e-16 | H179: 86
A180: 1 | B180: 47069899 | C180: 47070286 | D180: 152 | E180: 9.04543 | F180: 5.743809135e-20 | G180: 5.257145536e-16 | H180: 137
A181: 1 | B181: 47077474 | C181: 47077820 | D181: 211 | E181: 12.31559 | F181: 5.011295356e-26 | G181: 7.241357687e-22 | H181: 114
A182: 1 | B182: 47874867 | C182: 47875461 | D182: 339 | E182: 16.74921 | F182: 3.397817118e-39 | G182: 1.072531361e-34 | H182: 306
A183: 1 | B183: 48960890 | C183: 48961152 | D183: 46 | E183: 4.59782 | F183: 9.575247315e-09 | G183: 2.480618624e-05 | H183: 191
A184: 1 | B184: 49085199 | C184: 49085534 | D184: 281 | E184: 14.77871 | F184: 3.373960548e-33 | G184: 7.631325887e-29 | H184: 114
A185: 1 | B185: 51110183 | C185: 51110374 | D185: 85 | E185: 6.80018 | F185: 6.735037218e-13 | G185: 3.050071358e-09 | H185: 153
A186: 1 | B186: 51985143 | C186: 51985344 | D186: 32 | E186: 4.5436 | F186: 3.268661894e-07 | G186: 0.0006187425745 | H186: 165
A187: 1 | B187: 52033389 | C187: 52033810 | D187: 165 | E187: 10.16304 | F187: 2.48570737e-21 | G187: 2.552289889e-17 | H187: 135
A188: 1 | B188: 52308010 | C188: 52308205 | D188: 65 | E188: 6.25012 | F188: 7.345646083e-11 | G188: 2.667104303e-07 | H188: 126
A189: 1 | B189: 52456225 | C189: 52456441 | D189: 55 | E189: 5.80369 | F189: 8.346415483e-10 | G189: 2.587497864e-06 | H189: 142
A190: 1 | B190: 53128349 | C190: 53128695 | D190: 326 | E190: 14.32193 | F190: 7.574779585e-38 | G190: 2.231464592e-33 | H190: 159
A191: 1 | B191: 53421464 | C191: 53421807 | D191: 36 | E191: 4.86059 | F191: 1.032666289e-07 | G191: 0.000221983145 | H191: 91
A192: 1 | B192: 53662469 | C192: 53662721 | D192: 32 | E192: 4.23923 | F192: 2.985795093e-07 | G192: 0.0005728355997 | H192: 67
A193: 1 | B193: 53791679 | C193: 53791916 | D193: 26 | E193: 4.43361 | F193: 1.428795257e-06 | G193: 0.002418354705 | H193: 83
A194: 1 | B194: 54204973 | C194: 54205218 | D194: 18 | E194: 3.58704 | F194: 1.121656817e-05 | G194: 0.0147254983 | H194: 41
A195: 1 | B195: 55352932 | C195: 55353488 | D195: 61 | E195: 5.17255 | F195: 1.89129816e-10 | G195: 6.340594797e-07 | H195: 238
A196: 1 | B196: 55400599 | C196: 55400817 | D196: 496 | E196: 20.3422 | F196: 3.54201177e-55 | G196: 2.482389925e-50 | H196: 86
A197: 1 | B197: 55866184 | C197: 55866392 | D197: 34 | E197: 4.52271 | F197: 1.906470107e-07 | G197: 0.0003809605456 | H197: 87
A198: 1 | B198: 55894883 | C198: 55895443 | D198: 51 | E198: 5.70013 | F198: 2.508129753e-09 | G198: 7.118852588e-06 | H198: 272
A199: 1 | B199: 55972527 | C199: 55972948 | D199: 364 | E199: 16.10912 | F199: 1.096528692e-41 | G199: 3.943301646e-37 | H199: 232
A200: 1 | B200: 56161748 | C200: 56162137 | D200: 64 | E200: 6.40411 | F200: 9.078623378e-11 | G200: 3.232362056e-07 | H200: 159
... 5626 more rows

Sheet Supplementary Table S4
A1: Supplementary Table S4: TFAP2A binding peaks in HEPM cells replicate 2
A2: Chromosome | B2: Start | C2: End | D2: Scorea | E2: Signalb | F2: p-valuec | G2: q-valuec | H2: Relative position of summitd
A3: 1 | B3: 1051249 | C3: 1051678 | D3: 166 | E3: 8.41274 | F3: 1.989298705e-21 | G3: 2.394197649e-17 | H3: 263
A4: 1 | B4: 1294857 | C4: 1295365 | D4: 95 | E4: 5.52461 | F4: 4.372501831e-14 | G4: 2.637849417e-10 | H4: 111
A5: 1 | B5: 1310550 | C5: 1310907 | D5: 22 | E5: 3.01484 | F5: 3.221736371e-06 | G5: 0.005448538199 | H5: 85
A6: 1 | B6: 1624537 | C6: 1625116 | D6: 221 | E6: 9.33849 | F6: 4.229022541e-27 | G6: 7.752825339e-23 | H6: 152
A7: 1 | B7: 1677886 | C7: 1678125 | D7: 79 | E7: 5.4442 | F7: 2.070522718e-12 | G7: 1.024920076e-08 | H7: 114
A8: 1 | B8: 1790809 | C8: 1791128 | D8: 143 | E8: 8.22559 | F8: 4.96660933e-19 | G8: 4.866200511e-15 | H8: 195
A9: 1 | B9: 2139812 | C9: 2140282 | D9: 366 | E9: 10.82978 | F9: 5.44339688e-42 | G9: 2.346551013e-37 | H9: 140
A10: 1 | B10: 3439314 | C10: 3439561 | D10: 61 | E10: 5.18611 | F10: 1.785418375e-10 | G10: 6.86104077e-07 | H10: 117
A11: 1 | B11: 3459567 | C11: 3460333 | D11: 153 | E11: 7.27209 | F11: 4.325835496e-20 | G11: 4.604685784e-16 | H11: 179
A12: 1 | B12: 6550017 | C12: 6550326 | D12: 132 | E12: 6.70351 | F12: 6.24985584e-18 | G12: 5.547662088e-14 | H12: 97
A13: 1 | B13: 6673210 | C13: 6673499 | D13: 24 | E13: 3.39976 | F13: 1.895483464e-06 | G13: 0.003446831078 | H13: 65
A14: 1 | B14: 6930278 | C14: 6930822 | D14: 31 | E14: 4.67972 | F14: 3.552630173e-07 | G14: 0.0007739448238 | H14: 154
A15: 1 | B15: 7020467 | C15: 7020989 | D15: 313 | E15: 12.18396 | F15: 1.376353527e-36 | G15: 4.456767721e-32 | H15: 164
A16: 1 | B16: 7326105 | C16: 7326366 | D16: 116 | E16: 6.96226 | F16: 3.287986305e-16 | G16: 2.500805985e-12 | H16: 132
A17: 1 | B17: 7373237 | C17: 7373647 | D17: 410 | E17: 16.72091 | F17: 1.721828928e-46 | G17: 9.662288485e-42 | H17: 228
A18: 1 | B18: 8021466 | C18: 8021705 | D18: 119 | E18: 5.90715 | F18: 1.518098671e-16 | G18: 1.181761943e-12 | H18: 108
A19: 1 | B19: 8121201 | C19: 8121506 | D19: 134 | E19: 8.28207 | F19: 3.911109724e-18 | G19: 3.519654225e-14 | H19: 128
A20: 1 | B20: 8177018 | C20: 8177259 | D20: 117 | E20: 7.55981 | F20: 2.190534008e-16 | G20: 1.68927362e-12 | H20: 119
A21: 1 | B21: 8272153 | C21: 8272427 | D21: 35 | E21: 4.49653 | F21: 1.10690411e-07 | G21: 0.0002635785108 | H21: 119
A22: 1 | B22: 8686499 | C22: 8686749 | D22: 74 | E22: 5.92243 | F22: 8.465449046e-12 | G22: 3.885617085e-08 | H22: 179
A23: 1 | B23: 8878055 | C23: 8878311 | D23: 59 | E23: 6.04686 | F23: 3.40251462e-10 | G23: 1.2395099e-06 | H23: 125
A24: 1 | B24: 8964069 | C24: 8964321 | D24: 155 | E24: 8.12264 | F24: 2.364612603e-20 | G24: 2.597646201e-16 | H24: 107
A25: 1 | B25: 9065281 | C25: 9065620 | D25: 186 | E25: 9.54169 | F25: 1.490150044e-23 | G25: 2.100825595e-19 | H25: 89
A26: 1 | B26: 9825877 | C26: 9826142 | D26: 120 | E26: 6.74446 | F26: 1.118407318e-16 | G26: 8.902869347e-13 | H26: 170
A27: 1 | B27: 10488080 | C27: 10488351 | D27: 221 | E27: 9.33849 | F27: 4.229022541e-27 | G27: 7.752825339e-23 | H27: 226
A28: 1 | B28: 10511556 | C28: 10511966 | D28: 39 | E28: 4.74614 | F28: 4.28173712e-08 | G28: 0.000110257972 | H28: 204
A29: 1 | B29: 11538877 | C29: 11539228 | D29: 27 | E29: 4.09678 | F29: 9.441913121e-07 | G29: 0.001843104672 | H29: 67
A30: 1 | B30: 11741179 | C30: 11741658 | D30: 149 | E30: 8.31017 | F30: 1.087476799e-19 | G30: 1.122638676e-15 | H30: 265
A31: 1 | B31: 12203731 | C31: 12203967 | D31: 285 | E31: 9.96423 | F31: 1.006143672e-33 | G31: 2.749539733e-29 | H31: 135
A32: 1 | B32: 12221848 | C32: 12222096 | D32: 78 | E32: 5.96412 | F32: 2.936973311e-12 | G32: 1.414588099e-08 | H32: 151
A33: 1 | B33: 12540937 | C33: 12541223 | D33: 82 | E33: 5.39542 | F33: 1.11249995e-12 | G33: 5.729807084e-09 | H33: 113
A34: 1 | B34: 15280597 | C34: 15280982 | D34: 162 | E34: 8.73593 | F34: 5.450671389e-21 | G34: 6.237348355e-17 | H34: 219
A35: 1 | B35: 15742480 | C35: 15742807 | D35: 15 | E35: 3.3922 | F35: 2.352881202e-05 | G35: 0.03085318477 | H35: 62
A36: 1 | B36: 15850541 | C36: 15850907 | D36: 106 | E36: 7.95083 | F36: 3.202211405e-15 | G36: 2.204601e-11 | H36: 231
A37: 1 | B37: 16007212 | C37: 16007509 | D37: 138 | E37: 6.58703 | F37: 1.463794126e-18 | G37: 1.377748669e-14 | H37: 102
A38: 1 | B38: 16126630 | C38: 16126952 | D38: 287 | E38: 10.8949 | F38: 5.994183032e-34 | G38: 1.664447112e-29 | H38: 163
A39: 1 | B39: 16423896 | C39: 16424195 | D39: 24 | E39: 3.88263 | F39: 2.139045389e-06 | G39: 0.003770075087 | H39: 152
A40: 1 | B40: 16500027 | C40: 16500295 | D40: 84 | E40: 5.7129 | F40: 5.996944091e-13 | G40: 3.188232613e-09 | H40: 153
A41: 1 | B41: 16502431 | C41: 16502708 | D41: 228 | E41: 7.63448 | F41: 7.611145074e-28 | G41: 1.461268424e-23 | H41: 158
A42: 1 | B42: 16947597 | C42: 16947873 | D42: 375 | E42: 7.62358 | F42: 6.264840233e-43 | G42: 2.868203755e-38 | H42: 131
A43: 1 | B43: 17278134 | C43: 17278385 | D43: 206 | E43: 9.14497 | F43: 1.407278329e-25 | G43: 2.302448898e-21 | H43: 158
A44: 1 | B44: 17305216 | C44: 17305484 | D44: 41 | E44: 4.67344 | F44: 2.854105352e-08 | G44: 7.724493285e-05 | H44: 153
A45: 1 | B45: 17613987 | C45: 17614229 | D45: 78 | E45: 4.73895 | F45: 2.976733808e-12 | G45: 1.431330745e-08 | H45: 124
A46: 1 | B46: 19229460 | C46: 19229719 | D46: 43 | E46: 4.81079 | F46: 1.673015636e-08 | G46: 4.651896034e-05 | H46: 113
A47: 1 | B47: 19775114 | C47: 19775743 | D47: 504 | E47: 13.19264 | F47: 3.960682231e-56 | G47: 3.701263462e-51 | H47: 408
A48: 1 | B48: 19777359 | C48: 19777758 | D48: 170 | E48: 8.94941 | F48: 6.480223728e-22 | G48: 8.021212095e-18 | H48: 194
A49: 1 | B49: 21023237 | C49: 21023805 | D49: 390 | E49: 12.43293 | F49: 1.584418848e-44 | G49: 7.94639227e-40 | H49: 288
A50: 1 | B50: 21564985 | C50: 21565447 | D50: 274 | E50: 11.45006 | F50: 1.516177334e-32 | G50: 3.875698635e-28 | H50: 217
A51: 1 | B51: 21629790 | C51: 21630182 | D51: 65 | E51: 5.24447 | F51: 6.210549105e-11 | G51: 2.523945658e-07 | H51: 296
A52: 1 | B52: 22032061 | C52: 22032328 | D52: 20 | E52: 4.04753 | F52: 5.668654658e-06 | G52: 0.008918873414 | H52: 67
A53: 1 | B53: 22773906 | C53: 22774611 | D53: 187 | E53: 8.99292 | F53: 1.273972343e-23 | G53: 1.805967789e-19 | H53: 227
A54: 1 | B54: 23039045 | C54: 23039723 | D54: 158 | E54: 8.2711 | F54: 1.225236709e-20 | G54: 1.369209803e-16 | H54: 133
A55: 1 | B55: 23520927 | C55: 23521243 | D55: 98 | E55: 6.91773 | F55: 2.332115202e-14 | G55: 1.453416211e-10 | H55: 113
A56: 1 | B56: 23670086 | C56: 23670466 | D56: 66 | E56: 5.90284 | F56: 5.157865346e-11 | G56: 2.130001945e-07 | H56: 161
A57: 1 | B57: 24742045 | C57: 24742279 | D57: 101 | E57: 7.12862 | F57: 1.002259081e-14 | G57: 6.453272436e-11 | H57: 135
A58: 1 | B58: 25010241 | C58: 25010629 | D58: 62 | E58: 5.2217 | F58: 1.535323863e-10 | G58: 5.965680632e-07 | H58: 90
A59: 1 | B59: 25015155 | C59: 25015425 | D59: 115 | E59: 6.91481 | F59: 4.049300434e-16 | G59: 3.051546555e-12 | H59: 88
A60: 1 | B60: 25070315 | C60: 25070997 | D60: 1335 | E60: 35.20553 | F60: 1.40711632e-140 | G60: 3.127159263e-134 | H60: 182
A61: 1 | B61: 25071281 | C61: 25071919 | D61: 122 | E61: 7.56754 | F61: 7.216223904e-17 | G61: 5.837407342e-13 | H61: 203
A62: 1 | B62: 26034248 | C62: 26034586 | D62: 256 | E62: 11.51583 | F62: 9.061498022e-31 | G62: 2.107851446e-26 | H62: 167
A63: 1 | B63: 26100017 | C63: 26100396 | D63: 205 | E63: 8.13577 | F63: 1.55135075e-25 | G63: 2.528017058e-21 | H63: 122
A64: 1 | B64: 26185665 | C64: 26186184 | D64: 208 | E64: 10.77444 | F64: 9.210431989e-26 | G64: 1.522684756e-21 | H64: 273
A65: 1 | B65: 26219023 | C65: 26219282 | D65: 257 | E65: 8.14345 | F65: 8.536896183e-31 | G65: 1.992599422e-26 | H65: 148
A66: 1 | B66: 26947098 | C66: 26947404 | D66: 60 | E66: 5.33632 | F66: 2.130983073e-10 | G66: 8.139917439e-07 | H66: 174
A67: 1 | B67: 27626083 | C67: 27626347 | D67: 16 | E67: 3.36526 | F67: 1.621175381e-05 | G67: 0.02193612943 | H67: 62
A68: 1 | B68: 27648344 | C68: 27648666 | D68: 56 | E68: 4.70181 | F68: 6.958409768e-10 | G68: 2.422144229e-06 | H68: 183
A69: 1 | B69: 27866899 | C69: 27867259 | D69: 320 | E69: 10.21184 | F69: 2.464620179e-37 | G69: 8.255625807e-33 | H69: 121
A70: 1 | B70: 28696306 | C70: 28696596 | D70: 52 | E70: 4.67419 | F70: 1.641496647e-09 | G70: 5.478983594e-06 | H70: 113
A71: 1 | B71: 28974783 | C71: 28975078 | D71: 25 | E71: 4.11592 | F71: 1.563075659e-06 | G71: 0.002929004238 | H71: 186
A72: 1 | B72: 29062968 | C72: 29063350 | D72: 56 | E72: 5.26438 | F72: 6.316405456e-10 | G72: 2.220751683e-06 | H72: 258
A73: 1 | B73: 29064049 | C73: 29064437 | D73: 169 | E73: 8.04148 | F73: 1.021833179e-21 | G73: 1.256868957e-17 | H73: 181
A74: 1 | B74: 29508211 | C74: 29508599 | D74: 24 | E74: 3.77123 | F74: 1.895570756e-06 | G74: 0.003446831078 | H74: 359
A75: 1 | B75: 30181944 | C75: 30182756 | D75: 905 | E75: 21.58169 | F75: 5.687350582e-97 | G75: 3.011688149e-91 | H75: 170
A76: 1 | B76: 30531722 | C76: 30532256 | D76: 742 | E76: 25.23389 | F76: 2.09850496e-80 | G76: 6.026012109e-75 | H76: 269
A77: 1 | B77: 31296894 | C77: 31297306 | D77: 168 | E77: 6.74389 | F77: 1.223460634e-21 | G77: 1.495064743e-17 | H77: 114
A78: 1 | B78: 31331691 | C78: 31332127 | D78: 53 | E78: 4.89799 | F78: 1.31132397e-09 | G78: 4.403520272e-06 | H78: 338
A79: 1 | B79: 31479830 | C79: 31480718 | D79: 38 | E79: 5.00593 | F79: 6.090879393e-08 | G79: 0.0001531334264 | H79: 562
A80: 1 | B80: 31845952 | C80: 31846311 | D80: 44 | E80: 4.70852 | F80: 1.234070583e-08 | G80: 3.526143643e-05 | H80: 102
A81: 1 | B81: 32166477 | C81: 32167194 | D81: 48 | E81: 4.59598 | F81: 4.751382568e-09 | G81: 1.450040058e-05 | H81: 66
A82: 1 | B82: 32221021 | C82: 32221268 | D82: 168 | E82: 6.74389 | F82: 1.223460634e-21 | G82: 1.495064743e-17 | H82: 134
A83: 1 | B83: 32253954 | C83: 32254271 | D83: 72 | E83: 4.92428 | F83: 1.132869801e-11 | G83: 5.117878837e-08 | H83: 158
A84: 1 | B84: 32646071 | C84: 32646435 | D84: 54 | E84: 4.9316 | F84: 1.138413402e-09 | G84: 3.873022322e-06 | H84: 102
A85: 1 | B85: 33004771 | C85: 33005244 | D85: 112 | E85: 7.23852 | F85: 8.171466413e-16 | G85: 5.97351557e-12 | H85: 161
A86: 1 | B86: 33168425 | C86: 33169762 | D86: 29 | E86: 3.95778 | F86: 4.992752065e-07 | G86: 0.001018849414 | H86: 96
A87: 1 | B87: 33263856 | C87: 33264218 | D87: 159 | E87: 9.19096 | F87: 9.563128688e-21 | G87: 1.080637415e-16 | H87: 126
A88: 1 | B88: 33282852 | C88: 33283116 | D88: 57 | E88: 4.33191 | F88: 4.93298733e-10 | G88: 1.753395954e-06 | H88: 133
A89: 1 | B89: 33629191 | C89: 33629553 | D89: 280 | E89: 9.25454 | F89: 3.535818795e-33 | G89: 9.414992968e-29 | H89: 163
A90: 1 | B90: 35438991 | C90: 35439237 | D90: 125 | E90: 8.61722 | F90: 3.061540437e-17 | G90: 2.579764131e-13 | H90: 125
A91: 1 | B91: 36184526 | C91: 36184886 | D91: 29 | E91: 4.05651 | F91: 6.099300069e-07 | G91: 0.001229928882 | H91: 195
A92: 1 | B92: 36621408 | C92: 36621755 | D92: 87 | E92: 5.85745 | F92: 3.113651486e-13 | G92: 1.695274385e-09 | H92: 112
A93: 1 | B93: 39555840 | C93: 39556148 | D93: 52 | E93: 4.66924 | F93: 1.677837899e-09 | G93: 5.581102517e-06 | H93: 62
A94: 1 | B94: 39670634 | C94: 39671164 | D94: 189 | E94: 8.56028 | F94: 7.842418245e-24 | G94: 1.14198395e-19 | H94: 366
A95: 1 | B95: 42137832 | C95: 42138472 | D95: 423 | E95: 12.41776 | F95: 6.579304702e-48 | G95: 3.991535535e-43 | H95: 276
A96: 1 | B96: 42631464 | C96: 42631709 | D96: 43 | E96: 4.82655 | F96: 1.573946623e-08 | G96: 4.392482096e-05 | H96: 114
A97: 1 | B97: 42675585 | C97: 42675873 | D97: 48 | E97: 5.16498 | F97: 4.293287777e-09 | G97: 1.320200826e-05 | H97: 127
A98: 1 | B98: 44300633 | C98: 44301069 | D98: 498 | E98: 18.22574 | F98: 1.717275603e-55 | G98: 1.56696754e-50 | H98: 300
A99: 1 | B99: 44495782 | C99: 44496123 | D99: 31 | E99: 3.46308 | F99: 2.892677383e-07 | G99: 0.0006466510692 | H99: 100
A100: 1 | B100: 44793515 | C100: 44793865 | D100: 738 | E100: 19.97399 | F100: 4.968325032e-80 | G100: 1.414685819e-74 | H100: 180
A101: 1 | B101: 45097383 | C101: 45097857 | D101: 13 | E101: 3.37024 | F101: 4.057420321e-05 | G101: 0.04487143928 | H101: 60
A102: 1 | B102: 45265394 | C102: 45265941 | D102: 85 | E102: 4.92121 | F102: 4.912131675e-13 | G102: 2.624037275e-09 | H102: 200
A103: 1 | B103: 45272757 | C103: 45273191 | D103: 254 | E103: 10.12741 | F103: 1.693635702e-30 | G103: 3.835129206e-26 | H103: 257
A104: 1 | B104: 46016056 | C104: 46016741 | D104: 175 | E104: 9.21266 | F104: 2.124369219e-22 | G104: 2.7472615e-18 | H104: 316
A105: 1 | B105: 46050258 | C105: 46050495 | D105: 88 | E105: 5.35248 | F105: 2.509978492e-13 | G105: 1.388577104e-09 | H105: 130
A106: 1 | B106: 47069666 | C106: 47070155 | D106: 256 | E106: 11.51583 | F106: 9.061498022e-31 | G106: 2.107851446e-26 | H106: 365
A107: 1 | B107: 47077493 | C107: 47077825 | D107: 147 | E107: 8.21041 | F107: 1.661230897e-19 | G107: 1.683798041e-15 | H107: 114
A108: 1 | B108: 47082323 | C108: 47082644 | D108: 94 | E108: 6.67634 | F108: 6.19483866e-14 | G108: 3.706465824e-10 | H108: 158
A109: 1 | B109: 47184423 | C109: 47184777 | D109: 37 | E109: 4.6336 | F109: 6.56099943e-08 | G109: 0.0001629033442 | H109: 170
A110: 1 | B110: 47875053 | C110: 47875350 | D110: 237 | E110: 9.85116 | F110: 9.700407975e-29 | G110: 1.98166391e-24 | H110: 144
A111: 1 | B111: 49085175 | C111: 49085560 | D111: 107 | E111: 7.23982 | F111: 2.302077817e-15 | G111: 1.60106882e-11 | H111: 110
A112: 1 | B112: 51110054 | C112: 51110420 | D112: 98 | E112: 7.42125 | F112: 2.396348624e-14 | G112: 1.492691295e-10 | H112: 235
A113: 1 | B113: 51443220 | C113: 51443459 | D113: 22 | E113: 3.76681 | F113: 3.344182732e-06 | G113: 0.005453056531 | H113: 109
A114: 1 | B114: 52033404 | C114: 52033668 | D114: 180 | E114: 8.88684 | F114: 7.132963472e-23 | G114: 9.60328903e-19 | H114: 124
A115: 1 | B115: 52035176 | C115: 52035741 | D115: 130 | E115: 7.78922 | F115: 9.56092695e-18 | G115: 8.306536925e-14 | H115: 447
A116: 1 | B116: 52307585 | C116: 52308146 | D116: 28 | E116: 4.49726 | F116: 6.852199518e-07 | G116: 0.001375086442 | H116: 205
A117: 1 | B117: 53069987 | C117: 53070223 | D117: 76 | E117: 6.06644 | F117: 4.737835743e-12 | G117: 2.248277944e-08 | H117: 134
A118: 1 | B118: 53128351 | C118: 53128640 | D118: 88 | E118: 6.57185 | F118: 2.478449076e-13 | G118: 1.371418488e-09 | H118: 119
A119: 1 | B119: 53421358 | C119: 53421658 | D119: 98 | E119: 7.42125 | F119: 2.396348624e-14 | G119: 1.492691295e-10 | H119: 158
A120: 1 | B120: 54362371 | C120: 54362627 | D120: 135 | E120: 8.06276 | F120: 3.067608977e-18 | G120: 2.786185322e-14 | H120: 109
A121: 1 | B121: 55353014 | C121: 55353282 | D121: 49 | E121: 4.6437 | F121: 3.868565906e-09 | G121: 1.193630754e-05 | H121: 138
A122: 1 | B122: 55400560 | C122: 55400847 | D122: 213 | E122: 11.08762 | F122: 2.612041063e-26 | G122: 4.515855118e-22 | H122: 125
A123: 1 | B123: 55972562 | C123: 55972861 | D123: 163 | E123: 9.42137 | F123: 3.802506805e-21 | G123: 4.445288991e-17 | H123: 204
A124: 1 | B124: 56184460 | C124: 56184747 | D124: 125 | E124: 8.58208 | F124: 3.501789208e-17 | G124: 2.883367507e-13 | H124: 139
A125: 1 | B125: 56664920 | C125: 56665187 | D125: 75 | E125: 6.71019 | F125: 5.738917743e-12 | G125: 2.674422393e-08 | H125: 92
A126: 1 | B126: 56666041 | C126: 56666514 | D126: 523 | E126: 21.58684 | F126: 3.908228973e-58 | G126: 4.103269102e-53 | H126: 370
A127: 1 | B127: 58898585 | C127: 58898867 | D127: 102 | E127: 5.51334 | F127: 8.02195091e-15 | G127: 5.342198241e-11 | H127: 104
A128: 1 | B128: 59192793 | C128: 59193485 | D128: 245 | E128: 12.29915 | F128: 1.222672094e-29 | G128: 2.642956407e-25 | H128: 494
A129: 1 | B129: 59305928 | C129: 59306328 | D129: 19 | E129: 3.8513 | F129: 7.010516245e-06 | G129: 0.01067726447 | H129: 76
A130: 1 | B130: 59522879 | C130: 59523124 | D130: 77 | E130: 5.31911 | F130: 3.722716807e-12 | G130: 1.776846863e-08 | H130: 123
A131: 1 | B131: 59582763 | C131: 59583059 | D131: 20 | E131: 4.04753 | F131: 5.668654658e-06 | G131: 0.008918873414 | H131: 74
A132: 1 | B132: 60061490 | C132: 60061778 | D132: 135 | E132: 8.63081 | F132: 3.075246975e-18 | G132: 2.792672446e-14 | H132: 128
A133: 1 | B133: 61340322 | C133: 61340619 | D133: 26 | E133: 4.18023 | F133: 1.23387169e-06 | G133: 0.002381387118 | H133: 142
A134: 1 | B134: 61623210 | C134: 61623463 | D134: 237 | E134: 11.78064 | F134: 9.745856221e-29 | G134: 1.989069692e-24 | H134: 99
A135: 1 | B135: 61720519 | C135: 61720893 | D135: 69 | E135: 6.08033 | F135: 2.603334657e-11 | G135: 1.108868381e-07 | H135: 204
A136: 1 | B136: 63658717 | C136: 63659073 | D136: 22 | E136: 4.21175 | F136: 3.160239522e-06 | G136: 0.005448538199 | H136: 81
A137: 1 | B137: 64465567 | C137: 64466017 | D137: 299 | E137: 11.15431 | F137: 3.973562057e-35 | G137: 1.181136254e-30 | H137: 284
A138: 1 | B138: 64639118 | C138: 64639559 | D138: 56 | E138: 5.26438 | F138: 6.316405456e-10 | G138: 2.220751683e-06 | H138: 310
A139: 1 | B139: 64809187 | C139: 64809750 | D139: 153 | E139: 9.14274 | F139: 3.902563695e-20 | G139: 4.185621952e-16 | H139: 200
A140: 1 | B140: 65640109 | C140: 65640495 | D140: 102 | E140: 7.45388 | F140: 7.728051365e-15 | G140: 5.148491499e-11 | H140: 293
A141: 1 | B141: 65713543 | C141: 65713887 | D141: 309 | E141: 13.01886 | F141: 3.541930213e-36 | G141: 1.108306805e-31 | H141: 146
A142: 1 | B142: 65719842 | C142: 65720079 | D142: 49 | E142: 5.20145 | F142: 3.736801254e-09 | G142: 1.155659783e-05 | H142: 129
A143: 1 | B143: 66279691 | C143: 66279951 | D143: 149 | E143: 9.82742 | F143: 9.792644755e-20 | G143: 1.023057397e-15 | H143: 153
A144: 1 | B144: 66727926 | C144: 66728551 | D144: 586 | E144: 23.86658 | F144: 1.46774294e-64 | G144: 2.115339115e-59 | H144: 161
A145: 1 | B145: 66902189 | C145: 66902499 | D145: 88 | E145: 6.09198 | F145: 2.764903638e-13 | G145: 1.520337473e-09 | H145: 189
A146: 1 | B146: 67107569 | C146: 67108095 | D146: 89 | E146: 6.84037 | F146: 2.239752345e-13 | G146: 1.249856059e-09 | H146: 139
A147: 1 | B147: 67933914 | C147: 67934240 | D147: 469 | E147: 14.78594 | F147: 1.392900198e-52 | G147: 1.092924093e-47 | H147: 199
A148: 1 | B148: 68141705 | C148: 68142135 | D148: 28 | E148: 4.49726 | F148: 6.852199518e-07 | G148: 0.001375086442 | H148: 385
A149: 1 | B149: 68145473 | C149: 68145761 | D149: 253 | E149: 12.78104 | F149: 1.812758708e-30 | G149: 4.079622703e-26 | H149: 115
A150: 1 | B150: 68166358 | C150: 68166605 | D150: 90 | E150: 6.22079 | F150: 1.589132099e-13 | G150: 8.927091784e-10 | H150: 123
A151: 1 | B151: 68257580 | C151: 68258119 | D151: 236 | E151: 12.08466 | F151: 1.211936876e-28 | G151: 2.449458016e-24 | H151: 346
A152: 1 | B152: 68639595 | C152: 68639920 | D152: 66 | E152: 4.92626 | F152: 5.362656753e-11 | G152: 2.208614912e-07 | H152: 113
A153: 1 | B153: 68919088 | C153: 68919361 | D153: 39 | E153: 4.9475 | F153: 3.963327859e-08 | G153: 0.0001026526109 | H153: 107
A154: 1 | B154: 70544165 | C154: 70544399 | D154: 14 | E154: 3.74378 | F154: 2.536529982e-05 | G154: 0.03305673833 | H154: 115
A155: 1 | B155: 70876329 | C155: 70876832 | D155: 102 | E155: 6.22566 | F155: 9.002642409e-15 | G155: 5.845073814e-11 | H155: 342
A156: 1 | B156: 72171813 | C156: 72172054 | D156: 40 | E156: 5.14769 | F156: 3.637726133e-08 | G156: 9.738677853e-05 | H156: 171
A157: 1 | B157: 75545394 | C157: 75546077 | D157: 500 | E157: 14.54418 | F157: 8.940256931e-56 | G157: 8.261520788e-51 | H157: 404
A158: 1 | B158: 75558025 | C158: 75558262 | D158: 31 | E158: 4.67208 | F158: 3.651909445e-07 | G158: 0.0007739448238 | H158: 90
A159: 1 | B159: 76374603 | C159: 76374841 | D159: 69 | E159: 6.55161 | F159: 2.398280631e-11 | G159: 1.042485445e-07 | H159: 122
A160: 1 | B160: 76402724 | C160: 76403012 | D160: 149 | E160: 9.82742 | F160: 9.792644755e-20 | G160: 1.023057397e-15 | H160: 143
A161: 1 | B161: 78149147 | C161: 78149523 | D161: 357 | E161: 14.14802 | F161: 4.585957229e-41 | G161: 1.904276465e-36 | H161: 142
A162: 1 | B162: 78225091 | C162: 78225756 | D162: 88 | E162: 5.35248 | F162: 2.509978492e-13 | G162: 1.388577104e-09 | H162: 402
A163: 1 | B163: 78298619 | C163: 78298952 | D163: 123 | E163: 8.72205 | F163: 6.079949891e-17 | G163: 4.940603481e-13 | H163: 237
A164: 1 | B164: 78443578 | C164: 78444241 | D164: 269 | E164: 13.75082 | F164: 4.066118207e-32 | G164: 1.021786123e-27 | H164: 363
A165: 1 | B165: 78690866 | C165: 78691132 | D165: 56 | E165: 5.26438 | F165: 6.316405456e-10 | G165: 2.220751683e-06 | H165: 181
A166: 1 | B166: 78884978 | C166: 78885379 | D166: 65 | E166: 6.29616 | F166: 6.191273651e-11 | G166: 2.523945658e-07 | H166: 132
A167: 1 | B167: 84443864 | C167: 84444099 | D167: 22 | E167: 4.21175 | F167: 3.160239522e-06 | G167: 0.005448538199 | H167: 159
A168: 1 | B168: 84972253 | C168: 84972493 | D168: 42 | E168: 4.94027 | F168: 2.060297806e-08 | G168: 5.683030672e-05 | H168: 113
A169: 1 | B169: 85069669 | C169: 85069952 | D169: 253 | E169: 8.38429 | F169: 2.197809266e-30 | G169: 4.926970931e-26 | H169: 113
A170: 1 | B170: 85155977 | C170: 85156279 | D170: 55 | E170: 5.17685 | F170: 8.965200362e-10 | G170: 3.08091701e-06 | H170: 172
A171: 1 | B171: 85312974 | C171: 85313248 | D171: 60 | E171: 5.51606 | F171: 2.330290153e-10 | G171: 8.861148199e-07 | H171: 209
A172: 1 | B172: 85779709 | C172: 85779995 | D172: 449 | E172: 16.00896 | F172: 1.57775658e-50 | G172: 1.103265404e-45 | H172: 161
A173: 1 | B173: 85930191 | C173: 85930526 | D173: 136 | E173: 7.84753 | F173: 2.443205515e-18 | G173: 2.248329713e-14 | H173: 171
A174: 1 | B174: 86042441 | C174: 86042707 | D174: 54 | E174: 5.34647 | F174: 1.000552773e-09 | G174: 3.415466264e-06 | H174: 196
A175: 1 | B175: 86072982 | C175: 86073231 | D175: 96 | E175: 6.12369 | F175: 3.710137456e-14 | G175: 2.247191068e-10 | H175: 140
A176: 1 | B176: 86620291 | C176: 86620703 | D176: 503 | E176: 16.42268 | F176: 5.369576078e-56 | G176: 4.988385406e-51 | H176: 169
A177: 1 | B177: 86895571 | C177: 86896012 | D177: 506 | E177: 21.52672 | F177: 2.183584486e-56 | G177: 2.090547309e-51 | H177: 133
A178: 1 | B178: 86952886 | C178: 86953183 | D178: 97 | E178: 6.89507 | F178: 2.55487702e-14 | G178: 1.58792505e-10 | H178: 175
A179: 1 | B179: 87523577 | C179: 87523987 | D179: 276 | E179: 10.08709 | F179: 8.317829234e-33 | G179: 2.173001369e-28 | H179: 127
A180: 1 | B180: 87558780 | C180: 87559283 | D180: 162 | E180: 10.29539 | F180: 5.048705055e-21 | G180: 5.83781059e-17 | H180: 372
A181: 1 | B181: 89458711 | C181: 89459167 | D181: 150 | E181: 6.37935 | F181: 8.156427871e-20 | G181: 8.547320715e-16 | H181: 156
A182: 1 | B182: 91966375 | C182: 91967056 | D182: 366 | E182: 13.18062 | F182: 5.378237791e-42 | G182: 2.322843765e-37 | H182: 483
A183: 1 | B183: 92202369 | C183: 92202757 | D183: 224 | E183: 9.81536 | F183: 1.684690008e-27 | G183: 3.171465563e-23 | H183: 286
A184: 1 | B184: 92794847 | C184: 92795259 | D184: 723 | E184: 22.70263 | F184: 1.770190477e-78 | G184: 4.618596265e-73 | H184: 221
A185: 1 | B185: 94534965 | C185: 94535446 | D185: 36 | E185: 4.87932 | F185: 9.647393656e-08 | G185: 0.0002306640962 | H185: 144
A186: 1 | B186: 94582187 | C186: 94582462 | D186: 521 | E186: 15.82355 | F186: 7.364614183e-58 | G186: 7.57547728e-53 | H186: 122
A187: 1 | B187: 94787170 | C187: 94788121 | D187: 471 | E187: 18.07744 | F187: 8.16394368e-53 | G187: 6.463831103e-48 | H187: 115
A188: 1 | B188: 94791145 | C188: 94791437 | D188: 241 | E188: 12.02708 | F188: 3.622346576e-29 | G188: 7.554226461e-25 | H188: 161
A189: 1 | B189: 94792008 | C189: 94792360 | D189: 96 | E189: 7.30674 | F189: 3.712786703e-14 | G189: 2.247191068e-10 | H189: 110
A190: 1 | B190: 94884118 | C190: 94884576 | D190: 109 | E190: 6.81324 | F190: 1.755173285e-15 | G190: 1.237912647e-11 | H190: 280
A191: 1 | B191: 95045417 | C191: 95045675 | D191: 344 | E191: 11.4946 | F191: 9.874838464e-40 | G191: 3.787389754e-35 | H191: 138
A192: 1 | B192: 95205161 | C192: 95205515 | D192: 382 | E192: 12.97012 | F192: 1.208954622e-43 | G192: 5.750028536e-39 | H192: 221
A193: 1 | B193: 95349697 | C193: 95349990 | D193: 223 | E193: 10.35874 | F193: 2.225717292e-27 | G193: 4.150782719e-23 | H193: 157
A194: 1 | B194: 95392333 | C194: 95393270 | D194: 249 | E194: 9.88351 | F194: 5.546767982e-30 | G194: 1.222615789e-25 | H194: 607
A195: 1 | B195: 95417187 | C195: 95417446 | D195: 166 | E195: 9.26721 | F195: 2.052626824e-21 | G195: 2.451602186e-17 | H195: 116
A196: 1 | B196: 96881573 | C196: 96882205 | D196: 13 | E196: 3.11283 | F196: 4.492312918e-05 | G196: 0.04774633051 | H196: 80
A197: 1 | B197: 96939496 | C197: 96939843 | D197: 32 | E197: 4.42713 | F197: 2.722889392e-07 | G197: 0.0006115049825 | H197: 80
A198: 1 | B198: 97639666 | C198: 97640159 | D198: 51 | E198: 5.32029 | F198: 2.380455132e-09 | G198: 7.710809966e-06 | H198: 97
A199: 1 | B199: 98961823 | C199: 98962097 | D199: 212 | E199: 12.09371 | F199: 3.095993213e-26 | G199: 5.311167523e-22 | H199: 120
A200: 1 | B200: 100818037 | C200: 100818310 | D200: 24 | E200: 3.63163 | F200: 1.94298747e-06 | G200: 0.003477442839 | H200: 67
... 3795 more rows

Sheet Supplementary Table S5
A1: Supplementary Table S5: Intersection of both TFAP2A ChIP-seq Replicates: High confidence peaks (hc-peaks)
A2: Hc-peak information | E2: Overlap with chromatin marks in CS15 craniofacial tissuea | H2: Overlap with TFAP2A binding sites in HeLa S3 cellsb
A3: Chromosome | B3: Start | C3: End | E3: No. of overlapping DNase1 hypersensitivity regions | F3: No. of overlapping H3K27ac peaks | H3: No. of overlapping TFAP2A binding sites | J3: Putative target genesc (distance in Peak to TSS in bp)
A4: 1 | B4: 1051289 | C4: 1051666 | E4: 1 | F4: 1 | H4: 1 | J4: C1orf159 (0)
A5: 1 | B5: 1294857 | C5: 1295365 | E5: 1 | F5: 1 | H5: 0 | J5: MXRA8 (-1196)
A6: 1 | B6: 1624557 | C6: 1625068 | E6: 1 | F6: 1 | H6: 0 | J6: SLC35E2B (-730)
A7: 1 | B7: 1790859 | C7: 1791073 | E7: 1 | F7: 1 | H7: 0 | J7: NADK (-81057), GNB1 (+31529)
A8: 1 | B8: 2139812 | C8: 2140256 | E8: 1 | F8: 1 | H8: 2 | J8: SKI (-20100), C1orf86 (-13821)
A9: 1 | B9: 3439314 | C9: 3439561 | E9: 1 | F9: 1 | H9: 0 | J9: ARHGEF16 (+68448), MEGF6 (+88621)
A10: 1 | B10: 3459567 | C10: 3460333 | E10: 1 | F10: 1 | H10: 0 | J10: MEGF6 (+68109), ARHGEF16 (+88960)
A11: 1 | B11: 6550053 | C11: 6550326 | E11: 1 | F11: 1 | H11: 1 | J11: TNFRSF25 (-23955), PLEKHG5 (+6966)
A12: 1 | B12: 6930278 | C12: 6930822 | E12: 2 | F12: 1 | H12: 0 | J12: VAMP3 (-900779), CAMTA1 (+85166)
A13: 1 | B13: 7020467 | C13: 7020989 | E13: 1 | F13: 1 | H13: 2 | J13: VAMP3 (-810601), CAMTA1 (+175344)
A14: 1 | B14: 7373361 | C14: 7373647 | E14: 1 | F14: 0 | H14: 1 | J14: VAMP3 (-457825), CAMTA1 (+528120)
A15: 1 | B15: 8021466 | C15: 8021705 | E15: 1 | F15: 1 | H15: 1 | J15: PARK7 (-166)
A16: 1 | B16: 8964069 | C16: 8964284 | E16: 1 | F16: 0 | H16: 1 | J16: CA6 (-41769), ENO1 (-25428)
A17: 1 | B17: 10488080 | C17: 10488351 | E17: 1 | F17: 0 | H17: 1 | J17: APITD1-CORT (-1943)
A18: 1 | B18: 11538912 | C18: 11539165 | E18: 1 | F18: 1 | H18: 0 | J18: PTCHD2 (-256)
A19: 1 | B19: 11741261 | C19: 11741658 | E19: 1 | F19: 1 | H19: 1 | J19: MAD2L2 (+10247), FBXO6 (+17279)
A20: 1 | B20: 12203731 | C20: 12203967 | E20: 1 | F20: 1 | H20: 0 | J20: TNFRSF1B (-23211), TNFRSF8 (+80415)
A21: 1 | B21: 12221848 | C21: 12222013 | E21: 1 | F21: 0 | H21: 0 | J21: TNFRSF1B (-5129), TNFRSF8 (+98497)
A22: 1 | B22: 12540937 | C22: 12541121 | E22: 1 | F22: 1 | H22: 0 | J22: DHRS3 (+136708), VPS13D (+250905)
A23: 1 | B23: 15280610 | C23: 15280981 | E23: 1 | F23: 0 | H23: 0 | J23: TMEM51 (-198232), KAZN (+355596)
A24: 1 | B24: 15850541 | C24: 15850907 | E24: 1 | F24: 1 | H24: 0 | J24: DNAJC16 (-2584), CASP9 (+66)
A25: 1 | B25: 16007212 | C25: 16007434 | E25: 1 | F25: 0 | H25: 1 | J25: PLEKHM2 (-3504)
A26: 1 | B26: 16126630 | C26: 16126889 | E26: 1 | F26: 0 | H26: 2 | J26: SPEN (-47599), FBLIM1 (+35766)
A27: 1 | B27: 16424064 | C27: 16424195 | E27: 0 | F27: 0 | H27: 0 | J27: FAM131C (-24009), EPHA2 (+58452)
A28: 1 | B28: 16500045 | C28: 16500295 | E28: 1 | F28: 1 | H28: 2 | J28: EPHA2 (-17588), ARHGEF19 (+38934)
A29: 1 | B29: 16502431 | C29: 16502708 | E29: 1 | F29: 1 | H29: 1 | J29: EPHA2 (-19988), ARHGEF19 (+36534)
A30: 1 | B30: 16947597 | C30: 16947873 | E30: 1 | F30: 1 | H30: 0 | J30: CROCC (-300710), NBPF1 (-7753)
A31: 1 | B31: 17278154 | C31: 17278385 | E31: 1 | F31: 0 | H31: 1 | J31: MFAP2 (+29060), CROCC (+29825)
A32: 1 | B32: 17613987 | C32: 17614229 | E32: 1 | F32: 0 | H32: 1 | J32: PADI4 (-20584), PADI3 (+38515)
A33: 1 | B33: 19775114 | C33: 19775743 | E33: 1 | F33: 1 | H33: 0 | J33: CAPZB (+36550), PQLC2 (+136607)
A34: 1 | B34: 19777378 | C34: 19777587 | E34: 1 | F34: 1 | H34: 0 | J34: CAPZB (+34496), PQLC2 (+138661)
A35: 1 | B35: 21023237 | C35: 21023805 | E35: 1 | F35: 1 | H35: 1 | J35: DDOST (-35521), KIF17 (+20989)
A36: 1 | B36: 21564985 | C36: 21565393 | E36: 1 | F36: 1 | H36: 0 | J36: EIF4G3 (-61846), ECE1 (+51793)
A37: 1 | B37: 21629960 | C37: 21630182 | E37: 1 | F37: 1 | H37: 0 | J37: NBPF3 (-136560), ECE1 (-13089)
A38: 1 | B38: 22774027 | C38: 22774471 | E38: 1 | F38: 1 | H38: 0 | J38: ZBTB40 (-4095)
A39: 1 | B39: 23039077 | C39: 23039370 | E39: 1 | F39: 1 | H39: 0 | J39: KDM1A (-306762), EPHB2 (+1761)
A40: 1 | B40: 24742098 | C40: 24742279 | E40: 1 | F40: 1 | H40: 0 | J40: STPG1 (-602), NIPAL3 (-95)
A41: 1 | B41: 25010249 | C41: 25010609 | E41: 1 | F41: 0 | H41: 1 | J41: CLIC4 (-61419), SRRM1 (+40926)
A42: 1 | B42: 25070315 | C42: 25070898 | E42: 1 | F42: 1 | H42: 1 | J42: CLIC4 (-1241)
A43: 1 | B43: 25071281 | C43: 25071561 | E43: 1 | F43: 1 | H43: 0 | J43: CLIC4 (-427)
A44: 1 | B44: 26034248 | C44: 26034586 | E44: 1 | F44: 1 | H44: 0 | J44: SEPN1 (-92250), MAN1C1 (+90458)
A45: 1 | B45: 26100017 | C45: 26100396 | E45: 1 | F45: 1 | H45: 1 | J45: SEPN1 (-26460), MAN1C1 (+156248)
A46: 1 | B46: 26185681 | C46: 26186083 | E46: 1 | F46: 1 | H46: 1 | J46: AUNIP (+21)
A47: 1 | B47: 26219023 | C47: 26219282 | E47: 1 | F47: 1 | H47: 0 | J47: PAQR7 (-21409), STMN1 (+13804)
A48: 1 | B48: 26947098 | C48: 26947403 | E48: 1 | F48: 1 | H48: 1 | J48: ARID1A (-75273), RPS6KA1 (+74908)
A49: 1 | B49: 27626083 | C49: 27626322 | E49: 1 | F49: 1 | H49: 0 | J49: TMEM222 (-22448), WDTC1 (+65044)
A50: 1 | B50: 27648444 | C50: 27648666 | E50: 1 | F50: 1 | H50: 0 | J50: TMEM222 (-96)
A51: 1 | B51: 27866915 | C51: 27867259 | E51: 1 | F51: 1 | H51: 1 | J51: WASF2 (-50418), AHDC1 (+63056)
A52: 1 | B52: 28696306 | C52: 28696596 | E52: 1 | F52: 1 | H52: 2 | J52: PHACTR4 (-68231), MED18 (+40902)
A53: 1 | B53: 29064115 | C53: 29064437 | E53: 1 | F53: 1 | H53: 1 | J53: OPRD1 (-74378), YTHDF2 (+1005)
A54: 1 | B54: 29508324 | C54: 29508599 | E54: 1 | F54: 1 | H54: 1 | J54: SRSF4 (+37)
A55: 1 | B55: 30181944 | C55: 30182729 | E55: 1 | F55: 1 | H55: 2 | J55: PTPRU (+619309)
A56: 1 | B56: 30531888 | C56: 30532223 | E56: 1 | F56: 0 | H56: 2 | J56: MATN1 (+664378), PTPRU (+969028)
A57: 1 | B57: 31296895 | C57: 31297306 | E57: 1 | F57: 1 | H57: 1 | J57: LAPTM5 (-66434), SDC3 (+84507)
A58: 1 | B58: 31480329 | C58: 31480530 | E58: 1 | F58: 0 | H58: 0 | J58: SDC3 (-98822), PUM1 (+58112)
A59: 1 | B59: 32166516 | C59: 32167194 | E59: 1 | F59: 1 | H59: 1 | J59: PEF1 (-56367), COL16A1 (+3065)
A60: 1 | B60: 32221030 | C60: 32221235 | E60: 1 | F60: 1 | H60: 0 | J60: COL16A1 (-51213), BAI2 (+8503)
A61: 1 | B61: 32253956 | C61: 32254271 | E61: 1 | F61: 1 | H61: 1 | J61: BAI2 (-24478), SPOCD1 (+27538)
A62: 1 | B62: 33004771 | C62: 33005061 | E62: 1 | F62: 1 | H62: 1 | J62: ZBTB8A (-112)
A63: 1 | B63: 33168425 | C63: 33169762 | E63: 1 | F63: 1 | H63: 2 | J63: SYNC (-374)
A64: 1 | B64: 33263856 | C64: 33264111 | E64: 1 | F64: 0 | H64: 0 | J64: S100PBP (-19172), KIAA1522 (+56498)
A65: 1 | B65: 33282852 | C65: 33283046 | E65: 1 | F65: 1 | H65: 0 | J65: S100PBP (-207), YARS (+805)
A66: 1 | B66: 33629191 | C66: 33629553 | E66: 1 | F66: 1 | H66: 1 | J66: TRIM62 (+17895), ADC (+82658)
A67: 1 | B67: 35438991 | C67: 35439237 | E67: 1 | F67: 0 | H67: 0 | J67: DLGAP3 (-43928), ZMYM6NB (+11840)
A68: 1 | B68: 36621408 | C68: 36621753 | E68: 1 | F68: 1 | H68: 0 | J68: MAP7D1 (-222)
A69: 1 | B69: 39555840 | C69: 39555927 | E69: 1 | F69: 0 | H69: 0 | J69: BMP8A (-401434), MACF1 (+6850)
A70: 1 | B70: 39670833 | C70: 39671110 | E70: 1 | F70: 1 | H70: 0 | J70: BMP8A (-286346), MACF1 (+121938)
A71: 1 | B71: 42137920 | C71: 42138472 | E71: 2 | F71: 1 | H71: 2 | J71: EDN2 (-187854), HIVEP3 (+245973)
A72: 1 | B72: 42631464 | C72: 42631557 | E72: 1 | F72: 0 | H72: 0 | J72: GUCA2A (-1122)
A73: 1 | B73: 42675585 | C73: 42675784 | E73: 1 | F73: 0 | H73: 0 | J73: GUCA2A (-45296), FOXJ3 (+124951)
A74: 1 | B74: 44300812 | C74: 44301060 | E74: 1 | F74: 0 | H74: 0 | J74: ARTN (-98056), ST3GAL3 (+127718)
A75: 1 | B75: 44495855 | C75: 44496123 | E75: 1 | F75: 1 | H75: 2 | J75: KLF17 (-88533), SLC6A9 (-12992)
A76: 1 | B76: 44793515 | C76: 44793864 | E76: 1 | F76: 0 | H76: 1 | J76: ERI3 (+27190), DMAP1 (+114527)
A77: 1 | B77: 45097383 | C77: 45097640 | E77: 1 | F77: 1 | H77: 0 | J77: TMEM53 (+42715), RNF220 (+226646)
A78: 1 | B78: 45265394 | C78: 45265909 | E78: 1 | F78: 1 | H78: 1 | J78: PLK3 (-245)
A79: 1 | B79: 45272787 | C79: 45273191 | E79: 1 | F79: 1 | H79: 1 | J79: TCTEX1D4 (-32)
A80: 1 | B80: 46016164 | C80: 46016666 | E80: 1 | F80: 1 | H80: 2 | J80: AKR1A1 (+200)
A81: 1 | B81: 46050258 | C81: 46050495 | E81: 1 | F81: 1 | H81: 0 | J81: NASP (+645)
A82: 1 | B82: 47069899 | C82: 47070155 | E82: 1 | F82: 1 | H82: 1 | J82: MKNK1 (-141)
A83: 1 | B83: 47077493 | C83: 47077820 | E83: 0 | F83: 0 | H83: 1 | J83: MKNK1 (-7771), MOB3C (+3148)
A84: 1 | B84: 47875053 | C84: 47875350 | E84: 1 | F84: 1 | H84: 0 | J84: FOXE3 (-6542), CMPK1 (+75733)
A85: 1 | B85: 49085199 | C85: 49085534 | E85: 1 | F85: 0 | H85: 0 | J85: SPATA6 (-147522), BEND5 (+157223)
A86: 1 | B86: 51110183 | C86: 51110374 | E86: 0 | F86: 0 | H86: 0 | J86: DMRTA2 (-221107), FAF1 (+315656)
A87: 1 | B87: 52033404 | C87: 52033668 | E87: 1 | F87: 0 | H87: 0 | J87: OSBPL9 (-49228), EPS15 (-48536)
A88: 1 | B88: 52308010 | C88: 52308146 | E88: 0 | F88: 0 | H88: 0 | J88: NRD1 (+36399), OSBPL9 (+225314)
A89: 1 | B89: 53128351 | C89: 53128640 | E89: 1 | F89: 1 | H89: 1 | J89: FAM159A (+29480), COA7 (+35542)
A90: 1 | B90: 53421464 | C90: 53421658 | E90: 0 | F90: 0 | H90: 0 | J90: PODN (-106324), SCP2 (+28660)
A91: 1 | B91: 55353014 | C91: 55353282 | E91: 1 | F91: 1 | H91: 1 | J91: DHCR24 (-257)
A92: 1 | B92: 55400599 | C92: 55400817 | E92: 1 | F92: 1 | H92: 0 | J92: DHCR24 (-47817), TMEM61 (-45757)
A93: 1 | B93: 55972562 | C93: 55972861 | E93: 1 | F93: 0 | H93: 1 | J93: USP24 (-291926)
A94: 1 | B94: 56184472 | C94: 56184728 | E94: 1 | F94: 1 | H94: 0 | J94: USP24 (-503814), PPAP2B (+860641)
A95: 1 | B95: 56666094 | C95: 56666505 | E95: 1 | F95: 1 | H95: 1 | J95: USP24 (-985514), PPAP2B (+378941)
A96: 1 | B96: 58898585 | C96: 58898867 | E96: 1 | F96: 1 | H96: 0 | J96: OMA1 (+113746)
A97: 1 | B97: 59193082 | C97: 59193485 | E97: 1 | F97: 0 | H97: 1 | J97: MYSM1 (-27520), JUN (+56501)
A98: 1 | B98: 59305928 | C98: 59306008 | E98: 1 | F98: 1 | H98: 0 | J98: FGGY (-456685), JUN (-56183)
A99: 1 | B99: 59306213 | C99: 59306328 | E99: 1 | F99: 1 | H99: 0 | J99: FGGY (-456382), JUN (-56486)
A100: 1 | B100: 59522879 | C100: 59523073 | E100: 1 | F100: 1 | H100: 0 | J100: JUN (-273191), FGGY (-239677)
A101: 1 | B101: 61340339 | C101: 61340569 | E101: 1 | F101: 0 | H101: 0 | J101: CYP2J2 (-947992), NFIA (-207080)
A102: 1 | B102: 61623210 | C102: 61623463 | E102: 1 | F102: 1 | H102: 0 | J102: NFIA (+75803), TM2D1 (+567758)
A103: 1 | B103: 64465567 | C103: 64466017 | E103: 1 | F103: 0 | H103: 0 | J103: UBE2U (-203698), ROR1 (+226078)
A104: 1 | B104: 64639381 | C104: 64639559 | E104: 1 | F104: 1 | H104: 0 | J104: UBE2U (-30020), ROR1 (+399756)
A105: 1 | B105: 64809187 | C105: 64809509 | E105: 1 | F105: 0 | H105: 1 | J105: CACHD1 (-127127), UBE2U (+139858)
A106: 1 | B106: 65640290 | C106: 65640482 | E106: 1 | F106: 0 | H106: 0 | J106: DNAJC6 (-134842), AK4 (+26873)
A107: 1 | B107: 65713543 | C107: 65713887 | E107: 1 | F107: 0 | H107: 1 | J107: DNAJC6 (-61513), AK4 (+100202)
A108: 1 | B108: 66279740 | C108: 66279951 | E108: 1 | F108: 0 | H108: 0 | J108: SGIP1 (-720119), PDE4B (+21649)
A109: 1 | B109: 66727926 | C109: 66728545 | E109: 1 | F109: 0 | H109: 1 | J109: SGIP1 (-271729), PDE4B (+470039)
A110: 1 | B110: 66902189 | C110: 66902496 | E110: 1 | F110: 0 | H110: 1 | J110: SGIP1 (-97622), PDE4B (+644146)
A111: 1 | B111: 67933914 | C111: 67934240 | E111: 1 | F111: 1 | H111: 0 | J111: GADD45A (-216667), SERBP1 (-38008)
A112: 1 | B112: 68145473 | C112: 68145753 | E112: 1 | F112: 0 | H112: 1 | J112: SERBP1 (-249544), GADD45A (-5131)
A113: 1 | B113: 68257580 | C113: 68258119 | E113: 1 | F113: 1 | H113: 1 | J113: GNG12 (+41300), GADD45A (+107106)
A114: 1 | B114: 68639595 | C114: 68639797 | E114: 1 | F114: 1 | H114: 0 | J114: DIRAS3 (-122382), WLS (+58532)
A115: 1 | B115: 68919088 | C115: 68919361 | E115: 0 | F115: 0 | H115: 1 | J115: RPE65 (-3583)
A116: 1 | B116: 70876511 | C116: 70876777 | E116: 1 | F116: 1 | H116: 1 | J116: CTH (-311)
A117: 1 | B117: 75545394 | C117: 75546077 | E117: 0 | F117: 0 | H117: 0 | J117: CRYZ (-346644), LHX8 (-48383)
A118: 1 | B118: 76402724 | C118: 76403012 | E118: 0 | F118: 0 | H118: 0 | J118: ASB17 (-4752)
A119: 1 | B119: 78149156 | C119: 78149397 | E119: 1 | F119: 1 | H119: 1 | J119: ZZZ3 (-934)
A120: 1 | B120: 78225259 | C120: 78225565 | E120: 1 | F120: 1 | H120: 1 | J120: USP33 (+125)
A121: 1 | B121: 78298756 | C121: 78298952 | E121: 1 | F121: 0 | H121: 0 | J121: NEXN (-55459), FAM73A (+53545)
A122: 1 | B122: 78443578 | C122: 78444188 | E122: 1 | F122: 1 | H122: 1 | J122: FUBP1 (+887)
A123: 1 | B123: 78885027 | C123: 78885222 | E123: 1 | F123: 0 | H123: 0 | J123: PTGFR (-71632), GIPC2 (+373539)
A124: 1 | B124: 85069669 | C124: 85069952 | E124: 1 | F124: 0 | H124: 1 | J124: CTBS (-29664), SSX2IP (+86417)
A125: 1 | B125: 85156026 | C125: 85156226 | E125: 1 | F125: 1 | H125: 0 | J125: SSX2IP (+102)
A126: 1 | B126: 85779736 | C126: 85779974 | E126: 1 | F126: 1 | H126: 0 | J126: BCL10 (-37082), DDAH1 (+150968)
A127: 1 | B127: 85930191 | C127: 85930478 | E127: 1 | F127: 1 | H127: 1 | J127: DDAH1 (+488)
A128: 1 | B128: 86072982 | C128: 86073231 | E128: 1 | F128: 1 | H128: 0 | J128: CYR61 (+26663), ZNHIT6 (+100994)
A129: 1 | B129: 86620291 | C129: 86620618 | E129: 1 | F129: 1 | H129: 0 | J129: ZNHIT6 (-446354), COL24A1 (+1991)
A130: 1 | B130: 86895581 | C130: 86895820 | E130: 1 | F130: 0 | H130: 1 | J130: CLCA1 (-38350), CLCA2 (+5932)
A131: 1 | B131: 86952948 | C131: 86953183 | E131: 1 | F131: 0 | H131: 0 | J131: CLCA4 (-59695), CLCA1 (+19015)
A132: 1 | B132: 87523635 | C132: 87523952 | E132: 1 | F132: 0 | H132: 0 | J132: LMO4 (-270357), HS2ST1 (+143437)
A133: 1 | B133: 89458711 | C133: 89459065 | E133: 1 | F133: 1 | H133: 1 | J133: CCBL2 (-284), RBMXL1 (-245)
A134: 1 | B134: 91966524 | C134: 91967056 | E134: 1 | F134: 1 | H134: 1 | J134: CDC7 (+125)
A135: 1 | B135: 92202369 | C135: 92202757 | E135: 1 | F135: 1 | H135: 1 | J135: TGFBR3 (+149224), CDC7 (+235898)
A136: 1 | B136: 92794847 | C136: 92795259 | E136: 1 | F136: 0 | H136: 0 | J136: GLMN (-30520), GFI1 (+154458)
A137: 1 | B137: 94582193 | C137: 94582462 | E137: 1 | F137: 1 | H137: 0 | J137: GCLM (-207362), ABCA4 (+4360)
A138: 1 | B138: 94787207 | C138: 94787445 | E138: 1 | F138: 1 | H138: 0 | J138: ABCD3 (-96685), ARHGAP29 (-84205)
A139: 1 | B139: 94791145 | C139: 94791437 | E139: 1 | F139: 1 | H139: 1 | J139: ABCD3 (-92720), ARHGAP29 (-88170)
A140: 1 | B140: 95045417 | C140: 95045675 | E140: 1 | F140: 0 | H140: 1 | J140: SLC44A3 (-240360), F3 (-38190)
A141: 1 | B141: 95205169 | C141: 95205515 | E141: 1 | F141: 0 | H141: 0 | J141: F3 (-197986), SLC44A3 (-80564)
A142: 1 | B142: 95349697 | C142: 95349928 | E142: 1 | F142: 1 | H142: 0 | J142: CNN3 (+43021), SLC44A3 (+63907)
A143: 1 | B143: 95392333 | C143: 95393270 | E143: 1 | F143: 1 | H143: 0 | J143: CNN3 (+32)
A144: 1 | B144: 96881573 | C144: 96882137 | E144: 1 | F144: 0 | H144: 0 | J144: PTBP2 (-305523)
A145: 1 | B145: 96939496 | C145: 96939652 | E145: 1 | F145: 0 | H145: 0 | J145: PTBP2 (-247804)
A146: 1 | B146: 98961823 | C146: 98962041 | E146: 0 | F146: 0 | H146: 0 | J146: DPYD (-575353), SNX7 (-165347)
A147: 1 | B147: 100818076 | C147: 100818310 | E147: 1 | F147: 1 | H147: 0 | J147: CDC14A (+146)
A148: 1 | B148: 109817510 | C148: 109818012 | E148: 1 | F148: 1 | H148: 2 | J148: PSRC1 (+8029), CELSR2 (+25120)
A149: 1 | B149: 110334859 | C149: 110335135 | E149: 1 | F149: 1 | H149: 1 | J149: CSF1 (-118258), EPS8L3 (-28348)
A150: 1 | B150: 110457318 | C150: 110457622 | E150: 1 | F150: 0 | H150: 1 | J150: AHCYL1 (-69838), CSF1 (+4215)
A151: 1 | B151: 110880830 | C151: 110881226 | E151: 1 | F151: 1 | H151: 1 | J151: RBM15 (-100)
A152: 1 | B152: 110933626 | C152: 110933887 | E152: 1 | F152: 1 | H152: 0 | J152: SLC16A4 (-53)
A153: 1 | B153: 111682402 | C153: 111682808 | E153: 1 | F153: 1 | H153: 1 | J153: DRAM2 (+57), CEPT1 (+356)
A154: 1 | B154: 114302000 | C154: 114302292 | E154: 1 | F154: 1 | H154: 1 | J154: PHTF1 (-48)
A155: 1 | B155: 116916534 | C155: 116916841 | E155: 1 | F155: 1 | H155: 1 | J155: ATP1A1 (+199)
A156: 1 | B156: 117129524 | C156: 117129744 | E156: 1 | F156: 1 | H156: 0 | J156: CD58 (-15973), IGSF3 (+80680)
A157: 1 | B157: 117664145 | C157: 117664960 | E157: 1 | F157: 1 | H157: 2 | J157: TRIM45 (-203)
A158: 1 | B158: 118337875 | C158: 118338099 | E158: 1 | F158: 0 | H158: 0 | J158: GDAP2 (+134266), FAM46C (+189431)
A159: 1 | B159: 119623348 | C159: 119623584 | E159: 1 | F159: 0 | H159: 0 | J159: TBX15 (-91287), WARS2 (+59828)
A160: 1 | B160: 121097884 | C160: 121098177 | E160: 0 | F160: 0 | H160: 0 | J160: FCGR1B (-162094)
A161: 1 | B161: 144072343 | C161: 144072736 | E161: 0 | F161: 0 | H161: 0 | J161: FAM72D (-159397), NBPF8 (-74272)
A162: 1 | B162: 144085189 | C162: 144085368 | E162: 0 | F162: 0 | H162: 0 | J162: FAM72D (-172136), NBPF8 (-61533)
A163: 1 | B163: 145039788 | C163: 145040097 | E163: 1 | F163: 1 | H163: 0 | J163: NOTCH2NL (-184656), PDE4DIP (-44921)
A164: 1 | B164: 145216808 | C164: 145217125 | E164: 1 | F164: 0 | H164: 1 | J164: PDE4DIP (-221945), NOTCH2NL (-7632)
A165: 1 | B165: 149911225 | C165: 149911472 | E165: 1 | F165: 1 | H165: 0 | J165: MTMR11 (-2558)
A166: 1 | B166: 151119053 | C166: 151119264 | E166: 1 | F166: 1 | H166: 0 | J166: SEMA6C (-226)
A167: 1 | B167: 151416466 | C167: 151416650 | E167: 1 | F167: 0 | H167: 1 | J167: POGZ (+15383), PSMB4 (+44548)
A168: 1 | B168: 151882158 | C168: 151882316 | E168: 1 | F168: 1 | H168: 0 | J168: THEM4 (+47)
A169: 1 | B169: 151918272 | C169: 151918476 | E169: 1 | F169: 0 | H169: 1 | J169: THEM4 (-36090), S100A10 (+48492)
A170: 1 | B170: 152020757 | C170: 152021167 | E170: 1 | F170: 1 | H170: 1 | J170: S100A11 (-11451), TCHHL1 (+40578)
A171: 1 | B171: 153508495 | C171: 153508937 | E171: 1 | F171: 1 | H171: 1 | J171: S100A6 (+4)
A172: 1 | B172: 153581329 | C172: 153581748 | E172: 1 | F172: 1 | H172: 0 | J172: S100A16 (+274)
A173: 1 | B173: 153599960 | C173: 153600279 | E173: 1 | F173: 1 | H173: 1 | J173: S100A1 (-753)
A174: 1 | B174: 153936209 | C174: 153936742 | E174: 1 | F174: 1 | H174: 0 | J174: CREB3L4 (-3903), SLC39A1 (-525)
A175: 1 | B175: 154600256 | C175: 154600427 | E175: 1 | F175: 1 | H175: 0 | J175: ADAR (-19660), KCNN3 (+242414)
A176: 1 | B176: 154989727 | C176: 154990151 | E176: 1 | F176: 1 | H176: 2 | J176: ZBTB7B (+14644), DCST2 (+16297)
A177: 1 | B177: 155162918 | C177: 155163140 | E177: 1 | F177: 1 | H177: 0 | J177: MUC1 (-323)
A178: 1 | B178: 156096112 | C178: 156096297 | E178: 1 | F178: 1 | H178: 0 | J178: SEMA4A (-27113), LMNA (+11707)
A179: 1 | B179: 156100005 | C179: 156100299 | E179: 1 | F179: 1 | H179: 1 | J179: SEMA4A (-23166), LMNA (+15654)
A180: 1 | B180: 156460131 | C180: 156460368 | E180: 1 | F180: 1 | H180: 0 | J180: C1orf61 (-61066), MEF2D (+10370)
A181: 1 | B181: 156609528 | C181: 156609844 | E181: 1 | F181: 1 | H181: 1 | J181: BCAN (-2054)
A182: 1 | B182: 156630055 | C182: 156630246 | E182: 1 | F182: 1 | H182: 0 | J182: NES (+17038), BCAN (+18411)
A183: 1 | B183: 157971981 | C183: 157972194 | E183: 1 | F183: 1 | H183: 0 | J183: CD1D (-177649), KIRREL (+8688)
A184: 1 | B184: 157973175 | C184: 157973502 | E184: 1 | F184: 1 | H184: 0 | J184: CD1D (-176398), KIRREL (+9939)
A185: 1 | B185: 158007507 | C185: 158007829 | E185: 1 | F185: 1 | H185: 1 | J185: CD1D (-142069), KIRREL (+44268)
A186: 1 | B186: 158115084 | C186: 158115287 | E186: 1 | F186: 0 | H186: 1 | J186: CD1D (-34551), KIRREL (+151786)
A187: 1 | B187: 158969482 | C187: 158969549 | E187: 1 | F187: 1 | H187: 0 | J187: IFI16 (-10166), PYHIN1 (+68174)
A188: 1 | B188: 159894422 | C188: 159894692 | E188: 1 | F188: 1 | H188: 1 | J188: TAGLN2 (+965)
A189: 1 | B189: 161168389 | C189: 161168642 | E189: 1 | F189: 1 | H189: 0 | J189: NDUFS2 (-589), ADAMTS4 (+330)
A190: 1 | B190: 162660719 | C190: 162660959 | E190: 1 | F190: 1 | H190: 0 | J190: HSD17B7 (-99697), DDR2 (+58584)
A191: 1 | B191: 162816686 | C191: 162816919 | E191: 1 | F191: 0 | H191: 0 | J191: RGS4 (-221762), HSD17B7 (+56267)
A192: 1 | B192: 163844610 | C192: 163844962 | E192: 1 | F192: 1 | H192: 0 | J192: PBX1 (-684086), NUF2 (+553042)
A193: 1 | B193: 164740386 | C193: 164740754 | E193: 1 | F193: 1 | H193: 1 | J193: PBX1 (+211698), LMX1A (+585382)
A194: 1 | B194: 168172357 | C194: 168172745 | E194: 1 | F194: 0 | H194: 0 | J194: SFT2D2 (-22695), TIPRL (+24380)
A195: 1 | B195: 169219257 | C195: 169219506 | E195: 0 | F195: 0 | H195: 0 | J195: NME7 (+117823), ATP1B1 (+144447)
A196: 1 | B196: 169337037 | C196: 169337454 | E196: 1 | F196: 1 | H196: 2 | J196: NME7 (-41), BLZF1 (+38)
A197: 1 | B197: 170532191 | C197: 170532394 | E197: 1 | F197: 1 | H197: 0 | J197: PRRX1 (-100754), GORAB (+31023)
A198: 1 | B198: 170863041 | C198: 170863363 | E198: 1 | F198: 1 | H198: 0 | J198: FMO3 (-196816), PRRX1 (+230155)
A199: 1 | B199: 171189392 | C199: 171189546 | E199: 1 | F199: 1 | H199: 0 | J199: FMO1 (-37627), FMO2 (+35081)
A200: 1 | B200: 172328217 | C200: 172328430 | E200: 1 | F200: 1 | H200: 0 | J200: C1orf105 (-61504), DNM3 (+517703)
... 2651 more rows

Sheet Supplementary Table S6
A1: Supplementary Table S6: Gene Ontology Analysis (GREAT): GO Biological processes enriched in craniofacial-specific hc-peaks (FDR<0.05)
A2: Term Name | B2: Binomial rank | C2: Binomial raw p-valuea | D2: Binomial FDR q-valuea | E2: Binomial fold enrichment | F2: Binomial observed region hits | G2: Binomial region set coverage | H2: Genes associated with GO term and craniofacial-specific hc-peaksb
A3: phagocytosis, recognition | B3: 1 | C3: 4.527372e-09 | D3: 5.951230494e-05 | E3: 9.021348 | F3: 13 | G3: 0.01620948 | H3: CD36, COLEC12, FCN2, IGLL1, MFGE8, SCARB1
A4: regulation of B cell differentiation | B4: 4 | C4: 4.017057e-08 | D4: 0.0001320105357 | E4: 6.216182 | F4: 15 | G4: 0.01870324 | H4: INHBA, MMP14, PCID2, SFRP1, SYK, ZFP36L1, ZFP36L2
A5: apoptotic cell clearance | B5: 5 | C5: 4.734532e-08 | D5: 0.0001244708463 | E5: 7.36217 | F5: 13 | G5: 0.01620948 | H5: CD36, FCN2, GAS6, LRP1, SCARB1, THBS1, TYRO3
A6: phagocytosis | B6: 6 | C6: 5.222834e-08 | D6: 0.0001144235882 | E6: 2.777012 | F6: 37 | G6: 0.04613466 | H6: ABL1, ACTG1, ACTR2, ANXA11, ARHGAP12, CD36, COLEC12, CYFIP2, DNM2, FCN2, GAS6, GSN, GULP1, HSP90AA1, IGLL1, LRP1, MFGE8, MYH9, PLD2, SCARB1, SPON2, SYK, SYT7, THBS1, TYRO3, VAV2
A7: regulation of lymphocyte differentiation | B7: 8 | C7: 1.831411e-07 | D7: 0.0003009237199 | E7: 2.637016 | F7: 37 | G7: 0.04613466 | H7: ABL1, ADA, CBFB, CD83, CYP26B1, FBXO7, GAS6, GLI2, GLI3, INHBA, IRF1, LOXL3, MMP14, PCID2, RASGRP1, SFRP1, SOX13, SYK, TGFB1, ZEB1, ZFP36L1, ZFP36L2, ZMIZ1
A8: barbed-end actin filament capping | B8: 17 | C8: 2.073697e-06 | D8: 0.00160345571 | E8: 9.945754 | F8: 8 | G8: 0.009975062 | H8: ADD1, CAPZA3, CAPZB, EPS8, GSN, RDX, VIL1
A9: negative regulation of cellular response to growth factor stimulus | B9: 18 | C9: 2.624933e-06 | D9: 0.001916930238 | E9: 2.350449 | F9: 37 | G9: 0.04613466 | H9: ABL1, BAMBI, BCL9L, DAB2IP, DCN, DLX1, DNM2, FAM129B, GPR124, HSPA5, LTBP1, MTMR4, NOG, PMEPA1, PRDM14, PTPN1, SFRP1, SMAD3, SPRY1, SPRY2, TGFB1, THBS1, VASN, WNT5A
A10: negative regulation of actin filament depolymerization | B10: 22 | C10: 5.213021e-06 | D10: 0.003114780047 | E10: 5.755376 | F10: 11 | G10: 0.01371571 | H10: ADD1, CAPZA3, CAPZB, EPS8, GSN, LMOD1, RDX, SPTAN1, SWAP70, VIL1
A11: actin filament capping | B11: 33 | C11: 6.868524e-06 | D11: 0.00273596206 | E11: 6.249536 | F11: 10 | G11: 0.01246883 | H11: ADD1, CAPZA3, CAPZB, EPS8, GSN, LMOD1, RDX, SPTAN1, VIL1
A12: sterol metabolic process | B12: 40 | C12: 8.914379e-06 | D12: 0.002929487799 | E12: 2.894816 | F12: 23 | G12: 0.0286783 | H12: ACAT2, APOL1, CEL, CES1, CUBN, CYB5R2, CYP17A1, CYP26A1, CYP26B1, CYP4V2, DHCR24, FDX1, HSD17B7, OSBPL1A, PTCHD2, RXRA, SCARB1, SORL1, SREBF1, TRERF1
A13: regulation of endocytic recycling | B13: 41 | C13: 9.599935e-06 | D13: 0.003077832819 | E13: 12.82849 | F13: 6 | G13: 0.007481297 | H13: EHD1, EHD2, RAB11B, SORL1
A14: regulation of leukocyte differentiation | B14: 45 | C14: 1.090574e-05 | D14: 0.003185687829 | E14: 2.001702 | F14: 46 | G14: 0.05735661 | H14: ABL1, ADA, CASP8, CBFB, CD83, CDK6, CEBPB, CUL4A, CYP26B1, FBXO7, GAS6, GLI2, GLI3, INHBA, IRF1, JUN, LIF, LOXL3, MMP14, PCID2, RASGRP1, ROR2, SFRP1, SOX13, SYK, TGFB1, TOB2, ZEB1, ZFP36L1, ZFP36L2, ZMIZ1
A15: regulation of cellular response to transforming growth factor beta stimulus | B15: 49 | C15: 1.405345e-05 | D15: 0.003770053066 | E15: 2.671851 | F15: 25 | G15: 0.03117207 | H15: BAMBI, BCL9L, CITED2, DAB2, DKK3, DLX1, DNM2, HSPA5, ITGA8, LTBP1, LTBP4, MTMR4, NPNT, PMEPA1, SMAD3, TGFB1, THBS1, VASN, ZEB1
A16: positive regulation of endocytic recycling | B16: 62 | C16: 2.690267e-05 | D16: 0.005703799954 | E16: 14.85861 | F16: 5 | G16: 0.006234414 | H16: EHD1, EHD2, SORL1
A17: regulation of transforming growth factor beta receptor signaling pathway | B17: 65 | C17: 3.557995e-05 | D17: 0.007195360658 | E17: 2.58062 | F17: 24 | G17: 0.02992519 | H17: BAMBI, BCL9L, CITED2, DAB2, DKK3, DNM2, HSPA5, ITGA8, LTBP1, LTBP4, MTMR4, NPNT, PMEPA1, SMAD3, TGFB1, THBS1, VASN, ZEB1
A18: regulation of actin filament depolymerization | B18: 96 | C18: 0.0001177615 | D18: 0.01612473872 | E18: 3.769917 | F18: 12 | G18: 0.01496259 | H18: ADD1, CAPZA3, CAPZB, EPS8, GSN, LMOD1, LRRC16A, RDX, SPTAN1, SWAP70, VIL1
A19: positive regulation of cell-substrate adhesion | B19: 106 | C19: 0.0001668673 | D19: 0.02069311942 | E19: 2.238125 | F19: 26 | G19: 0.03241895 | H19: ABL1, CCR7, CD36, CDK6, COL16A1, CYR61, DISC1, DNM2, FBLN2, LRRC16A, NID1, NPNT, NRP1, RREB1, RSU1, SDC4, SFRP1, SMAD3, SMOC2, UTRN
A20: negative regulation of protein polymerization | B20: 123 | C20: 0.0002575508 | D20: 0.02752443306 | E20: 3.25474 | F20: 13 | G20: 0.01620948 | H20: ADD1, CAPZA3, CAPZB, EPS8, FKBP4, GSN, LMOD1, RDX, SPTAN1, STMN1, VIL1
A21: trigeminal ganglion development | B21: 125 | C21: 0.0002630544 | D21: 0.0276628007 | E21: 6.995384 | F21: 6 | G21: 0.007481297 | H21: NRP1, SEMA3A, SIX1
A22: activation of signaling protein activity involved in unfolded protein response | B22: 136 | C22: 0.0003279315 | D22: 0.03169602623 | E22: 8.662728 | F22: 5 | G22: 0.006234414 | H22: DAB2IP, ERN1, HSPA5, PTPN1
A23: positive regulation of cell-matrix adhesion | B23: 140 | C23: 0.000352301 | D23: 0.03307854746 | E23: 2.990699 | F23: 14 | G23: 0.01745636 | H23: ABL1, CCR7, CD36, CDK6, COL16A1, DISC1, NRP1, SDC4, SFRP1, SMAD3, UTRN
A24: regulation of adherens junction organization | B24: 151 | C24: 0.0003926752 | D24: 0.03418354638 | E24: 2.717364 | F24: 16 | G24: 0.01995012 | H24: ABL1, ADD1, BCAS3, COL16A1, DLC1, MACF1, MMP14, NRP1, RDX, SDC4, SFRP1, SMAD3, THBS1
A25: regulation of cell-matrix adhesion | B25: 155 | C25: 0.0004156365 | D25: 0.03524865673 | E25: 2.142525 | F25: 25 | G25: 0.03117207 | H25: ABL1, ACER2, BCAS3, CCR7, CD36, CDK6, COL16A1, DDR1, DISC1, DLC1, MACF1, MMP14, NRP1, SDC4, SEMA3E, SFRP1, SMAD3, THBS1, UTRN
A26: blastoderm segmentation | B26: 163 | C26: 0.0004435381 | D26: 0.03576876273 | E26: 3.748807 | F26: 10 | G26: 0.01246883 | H26: FZD5, NEUROG1, NRP1, SEMA3A, TBX3, TIFAB, WNT5A
A27: cell cycle arrest | B27: 165 | C27: 0.0004688244 | D27: 0.0373496772 | E27: 2.023964 | F27: 28 | G27: 0.03491272 | H27: ABL1, BRINP1, C11orf82, CDC14A, CDC14B, CDK6, CUL4A, DHCR24, ERN1, GADD45A, GAS6, HEPACAM, INHBA, IRF1, RPTOR, SMAD3, STRADB, TGFB1, THBS1, WNT10B
A28: platelet-derived growth factor receptor signaling pathway | B28: 167 | C28: 0.0005201217 | D28: 0.04094011824 | E28: 3.191107 | F28: 12 | G28: 0.01496259 | H28: ABL1, ARID5B, BCAR1, BCR, FER, NRP1, PDGFC, PDGFRL, PTPN1, TIPARP
A29: embryo implantation | B29: 182 | C29: 0.0006445399 | D29: 0.04655207135 | E29: 3.315088 | F29: 11 | G29: 0.01371571 | H29: DDR1, FBLN1, FKBP4, IGFBP7, LIF, MMP2, PCSK5, PRDM14, RXRA
A30: positive regulation of actin filament bundle assembly | B30: 200 | C30: 0.0007361882 | D30: 0.04838596944 | E30: 2.904148 | F30: 13 | G30: 0.01620948 | H30: ABL1, ID1, LRRC16A, NRP1, SDC4, SFRP1, SH3PXD2B, SMAD3, SORBS3, SWAP70, SYNPO, VIL1
A32: a - Association values calculated by binomial test with GREAT
A33: b - Genes assigned to craniofacial-specific hc-peaks and GO-terms with GREAT (association rules described in methods)

Sheet Supplementary Table S7
A1: Supplementary Table S7: Gene Ontology Analysis (GREAT): Human phenotypes associated with craniofacial-specific hc-peaks (FDR<0.05)
A2: Term Name | B2: Binomial rank | C2: Binomial raw p-valuea | D2: Binomial FDR q-valuea | E2: Binomial fold enrichment | F2: Binomial observed region hits | G2: Binomial region set coverage | H2: Genes associated with GO term and craniofacial-specific hc-peaksb
A3: finger joint hypermobility | B3: 1 | C3: 3.196721e-06 | D3: 0.02132852251 | E3: 6.064913 | F3: 11 | G3: 0.01371571 | H3: COL5A1, COL6A1, COL6A2, COL6A3, GORAB, PTDSS1
A4: abnormality of facial soft tissue | B4: 3 | C4: 1.127626e-05 | D4: 0.02507840224 | E4: 2.360656 | F4: 32 | G4: 0.03990025 | H4: ASXL1, BIN1, CAMTA1, CHRNA1, COL13A1, COL6A1, COL6A2, COL6A3, DNM2, ENSG00000258947, FBXO7, FRMD4A, GFPT1, GLI3, IGSF3, KCTD1, LMNA, LTBP4, MGAT2, MTMR2, PEX2, RIN2, SEMA3E, SEPN1, SETBP1, SIX1
A5: nocturnal hypoventilation | B5: 14 | C5: 3.572016e-05 | D5: 0.01702320768 | E5: 13.99158 | F5: 5 | G5: 0.006234414 | H5: COL6A1, COL6A2, COL6A3, SEPN1
A6: talipes equinovarus | B6: 17 | C6: 7.105368e-05 | D6: 0.02788647959 | E6: 2.058086 | F6: 35 | G6: 0.0436409 | H6: BIN1, COL3A1, COL6A1, COL6A2, COL6A3, CTBP1, CTDP1, DCHS1, DHCR24, DSE, EHMT1, FBXO7, FLNB, GCH, GDF5, GPR126, HACE1, ITGA8, KAT6B, MED13L, MTMR2, PEX2, PIEZO2, PITX1, SAMD9, SBF2, SCYL1, SETBP1, SH3PXD2B, TRIM2
A7: talipes | B7: 18 | C7: 7.496143e-05 | D7: 0.02778570339 | E7: 2.028264 | F7: 36 | G7: 0.04488778 | H7: BIN1, COL3A1, COL6A1, COL6A2, COL6A3, CTBP1, CTDP1, DCHS1, DHCR24, DSE, EHMT1, FBXO7, FLNB, GCH1, GDF5, GPR126, HACE1, ITGA8, KAT6B, LMNA, MED13L, MTMR2, PEX2, PIEZO2, PITX1, SAMD9, SBF2, SCYL1, SETBP1, SH3PXD2B, TRIM2
A8: abnormality of the gingiva | B8: 19 | C8: 7.987088e-05 | D8: 0.02804729007 | E8: 3.010901 | F8: 17 | G8: 0.02119701 | H8: ALMS1, COL3A1, DHCR24, GORAB, ITGB3, LYST, MGAT2, MMP14, MMP2, NFIX, RIN2, ROR2, SAMD9, SH3PXD2B, WNT5A
A9: positional foot deformity | B9: 20 | C9: 8.192922e-05 | D9: 0.02733158779 | E9: 2.019022 | F9: 36 | G9: 0.04488778 | H9: BIN1, COL3A1, COL6A1, COL6A2, COL6A3, CTBP1, CTDP1, DCHS1, DHCR24, DSE, EHMT1, FBXO7, FLNB, GCH1, GDF5, GPR126, HACE1, ITGA8, KAT6B, LMNA, MED13L, MTMR2, PEX2, PIEZO2, PITX1, SAMD9, SBF2, SCYL1, SETBP1, SH3PXD2B, TRIM2
A10: hyperextensibility at wrists | B10: 26 | C10: 0.0001404578 | D10: 0.03604363237 | E10: 15.75643 | F10: 4 | G10: 0.004987531 | H10: COL6A1, COL6A2, COL6A3
A11: increased laxity of fingers | B11: 26 | C11: 0.0001404578 | D11: 0.03604363237 | E11: 15.75643 | F11: 4 | G11: 0.004987531 | H11: COL6A1, COL6A2, COL6A3
A12: increased laxity of ankles | B12: 26 | C12: 0.0001404578 | D12: 0.03604363237 | E12: 15.75643 | F12: 4 | G12: 0.004987531 | H12: COL6A1, COL6A2, COL6A3
A14: a - Association values calculated by binomial test with GREAT
A15: b - Enriched genes assigned to craniofacial-specific hc-peaks and GO-terms with GREAT (association rules described in methods)

Sheet Supplementary Table S8
A1: Supplementary Table S8: Gene Ontology Analysis (GREAT): Mouse single knockout phenotypes associated with craniofacial-specific hc-peaks (FDR<0.05)
A2: Term Name | B2: Binomial rank | C2: Binomial raw p-valuea | D2: Binomial FDR q-valuea | E2: Binomial fold enrichment | F2: Binomial observed region hits | G2: Binomial region set coverage | H2: Genes associated with GO term and craniofacial-specific hc-peaksb
A3: abnormal embryonic hematopoiesis | B3: 11 | C3: 2.9053e-06 | D3: 0.002416417245 | E3: 3.581128 | F3: 19 | G3: 0.02369077 | H3: ADAR, ARID3A, CASP8, CBFB, IRF2BP2, KLF6, SMAD5, TGFB1, ZFP36L1, ZFP36L2
A4: abnormal palatal shelf elevation | B4: 13 | C4: 5.69741e-06 | D4: 0.004009661853 | E4: 3.727902 | F4: 17 | G4: 0.02119701 | H4: DHRS3, FGF18, FOXF2, GLI2, HAND2, HHAT, LOXL3, MNT, PDGFC, PITX1, ROR2, TBX2
A5: alisphenoid bone hypoplasia | B5: 14 | C5: 8.12037e-06 | D5: 0.005306661795 | E5: 10.10779 | F5: 7 | G5: 0.00872818 | H5: ECE1, MN1, PRRX1
A6: malocclusion | B6: 25 | C6: 3.183359e-05 | D6: 0.0116498206 | E6: 3.399806 | F6: 16 | G6: 0.01995012 | H6: AFF3, ANTXR1, CCND1, DIAPH1, EHD1, EHMT1, LMNA, MAST4, MMP14, RAI1, SPRY4, TGFB1
A7: hepatic necrosis | B7: 28 | C7: 4.05407e-05 | D7: 0.01324667372 | E7: 3.060974 | F7: 18 | G7: 0.02244389 | H7: ADA, CHD2, CXCL12, GSTZ1, ITGB3, JARID2, JUN, KRT8, LIF, STAT1, TGFB1, TIMP3
A8: abnormal wound healing | B8: 36 | C8: 7.147302e-05 | D8: 0.01816407389 | E8: 2.277475 | F8: 28 | G8: 0.03491272 | H8: ABHD2, AEBP1, AIMP1, ARNTL, CD44, CLIC4, CORO7, DDR2, DLC1, GSN, IER3, IRF1, IRS1, ITGB3, LUM, PGF, PLEC, PPARA, SCARB1, SDC4, SMAD3, SORBS3, SORL1, STMN1, THBS2, VIL1, ZEB1
A9: abnormal pterygoid bone morphology | B9: 44 | C9: 0.0001145435 | D9: 0.02381723822 | E9: 4.951976 | F9: 9 | G9: 0.01122195 | H9: DLX2, FOXF2, HAND2, MN1, PRRX1, ZEB1
A10: abnormal fibroblast physiology | B10: 45 | C10: 0.0001239296 | D10: 0.02519626468 | E10: 2.022455 | F10: 34 | G10: 0.04239401 | H10: APPL2, ARHGEF28, ARID5B, CD44, CIRBP, CORO7, DLC1, DOK1, EHD1, EP300, FLNB, FNDC3B, GADD45A, IGFBP7, ING1, JUN, LMNA, LUM, MCM8, MDM2, MIS18A, PALLD, PLEC, SDC4, SLC7A11, STON1-GTF2A1L, TLN2, TXNRD1, UBE2O, USE1
A11: altered tumor pathology | B11: 51 | C11: 0.0001523383 | D11: 0.02732829621 | E11: 2.294865 | F11: 25 | G11: 0.03117207 | H11: ANTXR1, CD248, CD44, DOT1L, ETS2, HDAC11, HIC1, ID1, ITGB3, LOXL2, LYST, MMP2, MUC1, NRP1, PGF, RALGDS, SMAD3, STARD13, STAT1, TNFSF10
A12: abnormal induced cell death | B12: 52 | C12: 0.0001706525 | D12: 0.03002499466 | E12: 2.125461 | F12: 29 | G12: 0.0361596 | H12: ADAR, ANTXR1, CASP9, CD44, CEBPB, CHD2, CUL4A, DAB2IP, DAPK1, GCLM, ING1, JUN, MCM8, MDM2, NOA1, NTMT1, OMA1, PPIF, STAT1, SWAP70, TRAF1, TRAF2, USP47, VASN, WEE1, XRCC2
A13: abnormal smooth muscle morphology | B13: 53 | C13: 0.000192855 | D13: 0.03329113953 | E13: 2.258776 | F13: 25 | G13: 0.03117207 | H13: ADA, ARID5B, ARNTL, CALD1, COL3A1, CXCL12, GLI2, KL, LMNA, LTBP1, NRP1, PARVA, PLXND1, SMAD5, THBS1, TIPARP, TMEM204, VAV2
A14: decreased tumor growth/size | B14: 54 | C14: 0.0001988208 | D14: 0.03368539813 | E14: 3.168471 | F14: 14 | G14: 0.01745636 | H14: ANTXR1, CD248, CD44, DOT1L, ETS2, ID1, LOXL2, MMP2, MUC1, NRP1, PGF, RALGDS
A15: abnormal tumor morphology | B15: 62 | C15: 0.0002889196 | D15: 0.04263428097 | E15: 2.456708 | F15: 20 | G15: 0.02493766 | H15: ANTXR1, CD248, CD44, DOT1L, ETS2, HDAC11, ID1, ITGB3, LOXL2, MMP2, MUC1, NRP1, PGF, RALGDS, STARD13, TNFSF10
A16: abnormal mean corpuscular volume | B16: 65 | C16: 0.0003090526 | D16: 0.04350034211 | E16: 2.048704 | F16: 29 | G16: 0.0361596 | H16: ADD1, APPL2, BHLHE40, CDK5RAP2, CHN1, DBN1, DKK3, ENC1, FBXO7, IREB2, ITGB3, JMJD8, KLF13, LYST, MGAT2, PLAC9, PPAP2B, PPP1R15B, RAD18, SDC4, SORBS2, SOX13, STAT1, TBC1D4, TIMP3, TTC7A, USP24
A17: abnormal palatine bone morphology | B17: 72 | C17: 0.000370649 | D17: 0.04709816251 | E17: 2.8442 | F17: 15 | G17: 0.01870324 | H17: ARID5B, DLX2, ECE1, FOXF2, GLI2, GLI3, MN1, MNT, PRRX1, TIPARP
A19: a - Association values calculated by binomial test with GREAT
A20: b - Genes assigned to craniofacial-specific hc-peaks and GO-terms with GREAT (association rules described in methods)

Sheet Supplementary Table S9
A1: Supplementary Table S9: Gene Ontology Analysis (GREAT): GO Biological processes enriched in hc-peaks (FDR<0.05)
A2: Term Name | B2: Binomial rank | C2: Binomial raw p-valuea | D2: Binomial FDR q-valuea | E2: Binomial fold enrichment | F2: Binomial observed region hits | G2: Binomial region set coverage | H2: Genes associated with GO term and hc-peaksb
A3: extracellular matrix organization | B3: 2 | C3: 4.21E-21 | D3: 2.77E-17 | E3: 2.095816 | F3: 194 | G3: 0.06818981 | H3: ABI3BP,ADAM10, ADAMTS14, ADAMTS20, ADAMTS3, ADAMTS4, ADAMTS5, ANXA2, B4GALT1, BCAN, BCL3, CAPN2, CCDC80, CD44, CD47, CDH1, COL13A1, COL16A1, COL18A1, COL19A1, COL1A1, COL1A2, COL3A1, COL4A1, COL4A2, COL4A4, COL5A1, COL5A2, COL6A1, COL6A2, COL6A3, COL7A1, COL9A1, CRISPLD2, CSGALNACT1, CTRB1, CTSL, CYP1B1, CYR61, DAG1, DCN, DDR1, DDR2, DNAJB6, EGFLAM, ELN, FBLN1, FBLN2, FBN1, FLRT2, FN1, FOXC1, FOXF2, GAS6, GREM1, HAPLN1, HAS2, HAS3, HSD17B12, IHH, ITGA3, ITGA4, ITGA6, ITGA7, ITGA8, ITGA9, ITGB1, ITGB3, ITGB4, ITGB6, KDR, KIF9, LAMA2, LAMB1, LAMB2, LAMC1, LAMC2, LOXL2, LOXL3, LUM, MATN1, MFAP2, MMP11, MMP14, MMP2, MPV17, MYO1E, NF1, NID1, NPNT, NR2E1, OPTC, POSTN, PTK2, PXDN, SERAC1, SERPINB5, SH3PXD2A, SH3PXD2B, SMOC2, SOX9, SPARC, SPOCK2, SULF1, TGFB1, TGFB2, TGFBI, THBS1, THSD4, TLL1, TNC, TNFRSF11B, VCAN, VIT, VWF, WT1
A4: extracellular structure organization | B4: 3 | C4: 4.99E-21 | D4: 2.19E-17 | E4: 2.092417 | F4: 194 | G4: 0.06818981 | H4: ADAM10, ADAMTS14, ADAMTS20, ADAMTS3, ADAMTS4, ADAMTS5, ANXA2, B4GALT1, BCAN, BCL3, CAPN2, CCDC80, CD44, CD47, CDH1, COL13A1, COL16A1, COL18A1, COL19A1, COL1A1, COL1A2, COL3A1, COL4A1, COL4A2, COL4A4, COL5A1, COL5A2, COL6A1, COL6A2, COL6A3, COL7A1, COL9A1, CRISPLD2, CSGALNACT1, CTRB1, CTSL, CYP1B1, CYR61, DAG1, DCN, DDR1, DDR2, DNAJB6, EGFLAM, ELN, FBLN1, FBLN2, FBN1, FLRT2, FN1, FOXC1, FOXF2, GAS6, GREM1, HAPLN1, HAS2, HAS3, HSD17B12, IHH, ITGA3, ITGA4, ITGA6, ITGA7, ITGA8, ITGA9, ITGB1, ITGB3, ITGB4, ITGB6, KDR, KIF9, LAMA2, LAMB1, LAMB2, LAMC1, LAMC2, LOXL2, LOXL3, LUM, MATN1, MFAP2, MMP11, MMP14, MMP2, MPV17, MYO1E, NF1, NID1, NPNT, NR2E1, OPTC, POSTN, PTK2, PXDN, SERAC1, SERPINB5, SH3PXD2A, SH3PXD2B, SMOC2, SOX9, SPARC, SPOCK2, SULF1, TGFB1, TGFB2, TGFBI, THBS1, THSD4, TLL1, TNC, TNFRSF11B, VCAN, VIT, VWF, WT1
A5: regulation of lymphocyte differentiation | B5: 17 | C5: 1.52E-13 | D5: 1.18E-10 | E5: 2.189927 | F5: 109 | G5: 0.03831283 | H5: ABL1, ADA, AXL, BCL6, BMP4, CAMK4, CBFB, CD28, CD83, CTLA4, CYP26B1, DUSP10, FAS, FBXO7, GAS6, GLI2, GLI3, HLX, IHH, IKZF3, IL12B, IL12RB1, IL6, IL7R, INHBA, IRF1, KIAA0922, LOXL3, MMP14, MYB, NFATC2, PCID2, PRDM1, RARA, RASGRP1, RUNX1, SFRP1, SHB, SMAD7, SOCS1, SOCS5, SOX13, SYK, TGFB1, TGFBR2, ZAP70, ZBTB7B, ZEB1, ZFP36L1, ZFP36L2, ZMIZ1
A6: positive regulation of cell-substrate adhesion | B6: 23 | C6: 8.03E-13 | D6: 4.59E-10 | E6: 2.28103 | F6: 94 | G6: 0.03304042 | H6: ABI3BP, ABL1, CCDC80, CCR7, CD36, CDK6, COL16A1, CSF1, CYR61, DAG1, DISC1, DNM2, DOCK5, EDIL3, EGFLAM, FBLN2, FN1, GSK3B, HAS2, HSD17B12, ILK, ITGA3, ITGA6, KDR, LIMS1, LRRC16A, NET1, NID1, NINJ1, NPNT, NRP1, PLEKHA2, PRKCE, PTN, RREB1, RSU1, S100A10, SDC4, SFRP1, SMAD3, SMOC2, SPOCK2, THY1, UNC13D, UTRN, VEGFA, VIT
A7: positive regulation of cell-matrix adhesion | B7: 38 | C7: 7.77E-11 | D7: 2.69E-08 | E7: 2.950753 | F7: 49 | G7: 0.0172232 | H7: ABL1, CCR7, CD36, CDK6, COL16A1, CSF1, DAG1, DISC1, GSK3B, ILK, KDR, LIMS1, NINJ1, NRP1, PLEKHA2, S100A10, SDC4, SFRP1, SMAD3, THY1, UTRN, VEGFA
A8: positive regulation of leukocyte differentiation | B8: 39 | C8: 1.24E-10 | D8: 4.19E-08 | E8: 2.044475 | F8: 97 | G8: 0.0340949 | H8: ADA, AXL, BCL6, CASP8, CD83, CREB1, CSF1, DUSP10, GAS6, GLI2, GLI3, HLX, IHH, IL12B, IL12RB1, IL5, IL6, IL7R, JUN, KITLG, KLF10, LEF1, LIF, MMP14, MYB, PCID2, PF4, PRDM1, RARA, RASGRP1, ROR2, RUNX1, SHB, SOCS1, SOCS5, SYK, TGFB1, TGFBR2, TNFSF11, TRAF6, TRIB1, ZAP70, ZFP36L1, ZMIZ1
A9: regulation of cell-matrix adhesion | B9: 59 | C9: 1.40E-09 | D9: 3.11E-07 | E9: 2.05351 | F9: 85 | G9: 0.02987698 | H9: ABL1, ACER2, BCAS3, BCL6, CCR7, CD36, CDK6, CDKN2A, CLASP1, CLASP2, COL16A1, CORO1C, CSF1, DAG1, DAPK3, DDR1, DISC1, DLC1, EFNA5, GREM1, GSK3B, ILK, KDR, LIMS1, MACF1, MMP14, NF1, NINJ1, NRP1, PIK3CB, PLAU, PLEKHA2, POSTN, PTK2, S100A10, SDC4, SEMA3E, SFRP1, SMAD3, THBS1, THY1, UTRN, VEGFA
A10: positive regulation of apoptotic signaling pathway | B10: 64 | C10: 2.67E-09 | D10: 5.48E-07 | E10: 2.043883 | F10: 83 | G10: 0.02917399 | H10: BCL10, BCL2L11, BID, BMF, BMPR1B, CASP8, CAV1, CTNNA1, CTSC, CTSH, DAB2IP, DAPK3, DFNA5, FAF1, FAS, FBXW7, FIS1, GNB2L1, GSK3B, GSN, INHBA, INHBB, MSX1, NF1, NKX3-1, PARK7, PIAS4, PMAIP1, PPIF, PPP2R1B, PPP3CC, PRKCD, SFRP1, SKIL, SMAD3, SPOP, STK3, STK4, TFAP4, TFDP1, TFDP2, THBS1, TIMP3, NFRSF10B, TNFSF10, TP63, TRAF2, WDR35, YWHAH, YWHAQ
A11: regulation of cellular response to transforming growth factor beta stimulus | B11: 66 | C11: 2.86E-09 | D11: 5.69E-07 | E11: 2.169186 | F11: 72 | G11: 0.02530756 | H11: ADAM17, BAMBI, BCL9L, CAV1, CAV2, CD109, CITED2, DAB2, DKK3, DLX1, DNM2, EID2, FBN1, HSPA5, ING2, ITGA3, ITGA8, LTBP1, LTBP4, MTMR4, NPNT, PEG10, PMEPA1, RASL11B, SKI, SKIL, SKOR1, SMAD3, SMAD6, SMAD7, SMURF2, SOX11, STK11, TGFB1, TGFB3, TGFBR2, TGFBR3, THBS1, UBC, VASN, ZEB1
A12: regulation of transforming growth factor beta receptor signaling pathway | B12: 89 | C12: 2.40E-08 | D12: 3.545967138e-06 | E12: 2.091481 | F12: 69 | G12: 0.02425308 | H12: ADAM17, BAMBI, BCL9L, CAV1, CAV2, CD109, CITED2, DAB2, DKK3, DNM2, EID2, FBN1, HSPA5, ING2, ITGA3, ITGA8, LTBP1, LTBP4, MTMR4, NPNT, PEG10, PMEPA1, RASL11B, SKI, SKIL, SKOR1, SMAD3, SMAD6, SMAD7, SMURF2, SOX11, STK11, TGFB1, TGFB3, TGFBR2, TGFBR3, THBS1, UBC, VASN, ZEB1
A13: protein kinase B signaling | B13: 108 | C13: 6.50E-08 | D13: 7.906898852e-06 | E13: 2.932616 | F13: 34 | G13: 0.01195079 | H13: AKT1S1, AXL, CASP9, CREB1, EPHA2, GAS6, ILK, KDR, MDM2, MKRN1, NKX3-1, PIK3C2B, PLK3, SOX9, TGFB1, THEM4, TYRO3, ZFP36L1
A14: dendritic cell differentiation | B14: 111 | C14: 8.41E-08 | D14: 9.95892319e-06 | E14: 3.608297 | F14: 25 | G14: 0.008787346 | H14: AXL, AZI2, BATF, BATF3, CAMK4, CCR7, CSF2, GAS6, LYN, RBPJ, TGFB1, TGFBR2, TRAF6
A15: negative regulation of cellular response to transforming growth factor beta stimulus | B15: 119 | C15: 1.08E-07 | D15: 1.190423351e-05 | E15: 2.387332 | F15: 47 | G15: 0.01652021 | H15: ADAM17, BAMBI, BCL9L, CAV1, CAV2, CD109, DLX1, DNM2, EID2, FBN1, HSPA5, LTBP1, MTMR4, PEG10, PMEPA1, RASL11B, SKI, SKIL, SKOR1, SMAD3, SMAD6, SMAD7, SMURF2, TGFB1, TGFB3, TGFBR2, TGFBR3, UBC, VASN
A16: response to denervation involved in regulation of muscle adaptation | B16: 139 | C16: 2.09E-07 | D16: 1.976105818e-05 | E16: 5.115415 | F16: 16 | G16: 0.005623902 | H16: DAG1, FBXO32, HDAC4, MTMR4, MYOG, SGCA, UTRN
A17: response to muscle inactivity | B17: 147 | C17: 2.77E-07 | D17: 2.479744337e-05 | E17: 5.005877 | F17: 16 | G17: 0.005623902 | H17: DAG1, FBXO32, HDAC4, MTMR4, MYOG, SGCA, UTRN
A18: positive regulation of extrinsic apoptotic signaling pathway | B18: 155 | C18: 3.46E-07 | D18: 2.93370534e-05 | E18: 2.554656 | F18: 38 | G18: 0.01335677 | H18: BCL10, BID, BMPR1B, CAV1, CTNNA1, DAPK3, FAF1, FAS, INHBA, NF1, PMAIP1, PPP2R1B, SFRP1, SKIL, STK3, STK4, THBS1, TIMP3, TNFSF10, TRAF2
A19: regulation of cell migration involved in sprouting angiogenesis | B19: 162 | C19: 3.84E-07 | D19: 3.118637456e-05 | E19: 3.064657 | F19: 28 | G19: 0.009841828 | H19: ABL1, DLL4, HDAC5, HDAC7, KIAA1462, KLF4, MEOX2, NR2E1, NRP1, PDCD10, PTGS2, STARD13, VEGFA
A20: response to inactivity | B20: 171 | C20: 4.90E-07 | D20: 3.763880109e-05 | E20: 4.515055 | F20: 17 | G20: 0.005975395 | H20: CAT, DAG1, FBXO32, HDAC4, MTMR4, MYOG, SGCA, UTRN
A21: regulation of adherens junction organization | B21: 179 | C21: 5.52E-07 | D21: 4.051808925e-05 | E21: 2.250183 | F21: 47 | G21: 0.01652021 | H21: ABL1, ADD1, BCAS3, CLASP1, CLASP2, COL16A1, CORO1C, DAPK3, DLC1, EFNA5, GREM1, KDR, LIMS1, MACF1, MMP14, NRP1, PTK2, RDX, S100A10, SDC4, SFRP1, SMAD3, THBS1, THY1, VEGFA
A22: sprouting angiogenesis | B22: 204 | C22: 1.027726e-06 | D22: 6.622283466e-05 | E22: 2.085642 | F22: 53 | G22: 0.01862917 | H22: ANGPT1, BMP4, BMPER, CCBE1, E2F7, E2F8, EGR3, EPHA2, EPHB4, ESM1, FAM105B, GPR124, GREM1, ITGB1, KDR, LEF1, LOXL2, NRP1, PARVA, PGF, SEMA3E, SEMA5A, SLIT2, TDGF1, THBS1, VEGFA
A23: negative regulation of transforming growth factor beta receptor signaling pathway | B23: 209 | C23: 1.138204e-06 | D23: 7.158704105e-05 | E23: 2.258025 | F23: 44 | G23: 0.01546573 | H23: ADAM17, BAMBI, BCL9L, CAV1, CAV2, CD109, DNM2, EID2, FBN1, HSPA5, LTBP1, MTMR4, PEG10, PMEPA1, RASL11B, SKI, SKIL, SKOR1, SMAD3, SMAD6, SMAD7, SMURF2, TGFB1, TGFB3, TGFBR2, TGFBR3, UBC, VASN
A24: regulation of focal adhesion assembly | B24: 215 | C24: 1.323536e-06 | D24: 8.092037544e-05 | E24: 2.221263 | F24: 45 | G24: 0.01581722 | H24: ABL1, BCAS3, CLASP1, CLASP2, COL16A1, CORO1C, DAPK3, DLC1, EFNA5, GREM1, KDR, LIMS1, MACF1, MMP14, NRP1, PTK2, S100A10, SDC4, SFRP1, SMAD3, THBS1, THY1, VEGFA
A25: positive regulation of adherens junction organization | B25: 244 | C25: 2.862643e-06 | D25: 0.0001542190256 | E25: 2.959056 | F25: 25 | G25: 0.008787346 | H25: ABL1, ADD1, COL16A1, KDR, LIMS1, NRP1, S100A10, SDC4, SFRP1, SMAD3, THY1, VEGFA
A26: positive regulation of extrinsic apoptotic signaling pathway via death domain receptors | B26: 250 | C26: 3.380098e-06 | D26: 0.0001777255528 | E26: 3.097474 | F26: 23 | G26: 0.008084359 | H26: BMPR1B, FAF1, NF1, PMAIP1, SFRP1, SKIL, STK3, STK4, THBS1, TIMP3
A27: positive regulation of actin filament bundle assembly | B27: 258 | C27: 3.906322e-06 | D27: 0.0001990255918 | E27: 2.330072 | F27: 37 | G27: 0.01300527 | H27: ABL1, BAG4, EVL, ID1, LRRC16A, NRP1, RAPGEF3, S100A10, SDC4, SFRP1, SH3PXD2B, SMAD3, SORBS3, SWAP70, SYNPO, SYNPO2, TACR1, TGFB3, TPM1, VIL1
A28: positive regulation of focal adhesion assembly | B28: 269 | C28: 4.827584e-06 | D28: 0.0002359055453 | E28: 2.94521 | F28: 24 | G28: 0.008435852 | H28: ABL1, COL16A1, KDR, LIMS1, NRP1, S100A10, SDC4, SFRP1, SMAD3, THY1, VEGFA
A29: response to estrogen | B29: 270 | C29: 4.959169e-06 | D29: 0.0002414380611 | E29: 2.087975 | F29: 46 | G29: 0.01616872 | H29: ABCC2, ARID5A, ARSB, BCAS3, CAV1, CCND1, CITED2, CRHBP, CTNNA1, EP300, EPO, ESR1, GLI3, IGFBP2, LDHA MDM2, MMP14, PDGFRB, PTPRN, RARA, RGS9, SFRP1, SMAD6, SRD5A1, TGFB3, TGFBR2, TNFRSF11B, WBP2, ZNF366
A30: regulation of nitric oxide biosynthetic process | B30: 274 | C30: 5.312669e-06 | D30: 0.0002548723869 | E30: 2.433384 | F30: 33 | G30: 0.0115993 | H30: ATP2B4, CAV1, CD34, CD36, DDAH1, DNM2, EDN1, EGFR, HSP90AA1, IL6, KHSRP, KLF2, KLF4, KLRK1, PKD2, PTGS2, PTX3, SMAD3, WDR35
A31: hepatocyte apoptotic process | B31: 302 | C31: 1.045001e-05 | D31: 0.0004548522565 | E31: 4.512803 | F31: 13 | G31: 0.00456942 | H31: ARF6, BID, FAS, GSN, KRT8, STK3, STK4
A32: chorio-allantoic fusion | B32: 338 | C32: 2.022705e-05 | D32: 0.0007866407463 | E32: 3.388527 | F32: 17 | G32: 0.005975395 | H32: CYR61, DNAJB6, LEF1, WNT7B, ZFP36L1
A33: regulation of extrinsic apoptotic signaling pathway via death domain receptors | B33: 341 | C33: 2.101579e-05 | D33: 0.0008101248081 | E33: 2.207803 | F33: 35 | G33: 0.01230228 | H33: BMPR1B, CASP8, DAPK1, FAF1, FAS, HGF, LGALS3, NF1, PARK7, PMAIP1, SFRP1, SKIL, STK3, STK4, THBS1, TIMP3, TNFAIP3, TNFRSF10B, TNFSF10, TRAF2
A34: collagen fibril organization | B34: 410 | C34: 4.385442e-05 | D34: 0.00140601549 | E34: 2.24695 | F34: 31 | G34: 0.01089631 | H34: ADAMTS14, ADAMTS3, ANXA2, COL1A1, COL1A2, COL3A1, COL5A1, COL5A2, CYP1B1, DDR2, FOXC1, GREM1, LOXL2, LUM, MMP11, NF1, TGFB2
A35: substrate adhesion-dependent cell spreading | B35: 450 | C35: 7.101355e-05 | D35: 0.002074384699 | E35: 2.293735 | F35: 28 | G35: 0.009841828 | H35: ABL1, ANTXR1, AXL, FER, FERMT2, FN1, FZD4, FZD7, ILK, ITGA4, ITGA8, ITGB3, LAMB1, LAMC1, NRP1, PARVA, PEAK1, SRGAP2, TYRO3, VAMP3
A36: lens fiber cell differentiation | B36: 462 | C36: 7.910211e-05 | D36: 0.002250643368 | E36: 2.36332 | F36: 26 | G36: 0.00913884 | H36: EPHA2, KDM5B, MAF, NTRK3, PROX2, SIX3, SKIL, SLC7A11, SMAD3, TGFB1, TMOD1, WNT5B, WNT7B
A37: negative regulation of endothelial cell proliferation | B37: 496 | C37: 0.0001057658 | D37: 0.002803006938 | E37: 2.238685 | F37: 28 | G37: 0.009841828 | H37: AIMP1, ATOH8, CAV1, CAV2, DLL4, NF1, NR2F2, PDCD10, PTPRM, SCG2, SPARC, STAT1, SULF1, THBS1, XDH
A38: platelet-derived growth factor receptor signaling pathway | B38: 524 | C38: 0.0001313541 | D38: 0.003295132909 | E38: 2.173953 | F38: 29 | G38: 0.01019332 | H38: ABL1, ARID5B, BCAR1, BCR, FER, MYO1E, NRP1, PDGFC, PDGFRB, PDGFRL, PLEKHA1, PTPN1, RAPGEF1, TIPARP, VEGFA
A39: regulation of sprouting angiogenesis | B39: 562 | C39: 0.0001758357 | D39: 0.004112740706 | E39: 2.10439 | F39: 30 | G39: 0.01054482 | H39: ABL1, DLL4, GHSR, HDAC5, HDAC7, KIAA1462, KLF4, MEOX2, NR2E1, NRP1, PDCD10, PTGS2, STARD13, TMEM2, VEGFA
A40: endothelial cell proliferation | B40: 567 | C40: 0.0001782352 | D40: 0.004132101771 | E40: 2.380641 | F40: 23 | G40: 0.008084359 | H40: BMP4, BMPER, CD34, DLG1, EPHA2, ERN1, LOXL2, MMP14, PIK3CB, SCARB1, SEMA5A
A41: response to hydrostatic pressure | B41: 605 | C41: 0.0002191631 | D41: 0.004761816445 | E41: 7.254402 | F41: 6 | G41: 0.002108963 | H41: ATP2B4, COL18A1, KRT8, PKD2, WNT10B
A42: embryonic hemopoiesis | B42: 613 | C42: 0.000226871 | D42: 0.004864958067 | E42: 2.339761 | F42: 23 | G42: 0.008084359 | H42: KDR, KIT, KITLG, PBX1, SH2B3, STK3, STK4, TGFBR2, TPO, VEGFA
A43: blastoderm segmentation | B43: 657 | C43: 0.0003332639 | D43: 0.006667814255 | E43: 2.324919 | F43: 22 | G43: 0.007732865 | H43: C5orf20, FZD5, NEUROG1, NRP1, SEMA3A, TBX3, TDGF1, TIFAB, WNT5A, WT1
A44: collagen biosynthetic process | B44: 658 | C44: 0.0003339923 | D44: 0.006672232194 | E44: 3.90083 | F44: 10 | G44: 0.003514938 | H44: ADAMTS3, ARG1, COL1A1, COL5A1, TRAM2
A45: retinoic acid catabolic process | B45: 661 | C45: 0.0003409134 | D45: 0.006779586449 | E45: 4.274906 | F45: 9 | G45: 0.003163445 | H45: CRABP1, CYP26A1, CYP26B1, CYP26C1
A46: monocyte differentiation | B46: 662 | C46: 0.0003424629 | D46: 0.006800113022 | E46: 2.665277 | F46: 17 | G46: 0.005975395 | H46: BMP4, CSF1R, CSF2, IFI16, IL31RA, JUN, MYH9, SP3, VEGFA
A47: commissural neuron axon guidance | B47: 717 | C47: 0.0004856003 | D47: 0.008902672167 | E47: 2.904304 | F47: 14 | G47: 0.004920914 | H47: DAG1, EPHB2, FZD3, NFIB, NRP1, RYK, VEGFA
A48: regulation of fibroblast apoptotic process | B48: 751 | C48: 0.0005559644 | D48: 0.009731227747 | E48: 2.402886 | F48: 19 | G48: 0.006678383 | H48: BCL2L11, BID, BTG1, CFDP1, GAS6, SFRP1, STK17B, TP63, XRCC2
A49: face morphogenesis | B49: 775 | C49: 0.0006321838 | D49: 0.01072265297 | E49: 2.091161 | F49: 25 | G49: 0.008787346 | H49: ANKRD11, ARID5B, ASPH, COL1A1, CRISPLD2, DKK1, LEF1, MMP2, MSX1, NOG, PAX9, PLEKHA1, RRAS, SKI, STRA6, TGFB1, TGFB3, TIPARP
A50: barbed-end actin filament capping | B50: 807 | C50: 0.0007543588 | D50: 0.01228754204 | E50: 3.504611 | F50: 10 | G50: 0.003514938 | H50: ADD1, CAPZA2, CAPZA3, CAPZB, EPS8, GSN, RDX, VIL1
A51: parasympathetic nervous system development | B51: 820 | C51: 0.0007987256 | D51: 0.01280396099 | E51: 2.2197 | F51: 21 | G51: 0.007381371 | H51: ADARB1, GDNF, NAV2, NRP1, PHOX2A, PLXNA4, SEMA3A, SIX1, TFAP2A
A52: response to laminar fluid shear stress | B52: 821 | C52: 0.000802275 | D52: 0.01284519473 | E52: 2.643975 | F52: 15 | G52: 0.005272408 | H52: ABCA1, ETS1, KLF2, KLF4, SMAD6, SMAD7, TGFB1, TGFB3
A53: angiogenesis involved in wound healing | B53: 823 | C53: 0.0008138051 | D53: 0.01299813857 | E53: 2.881626 | F53: 13 | G53: 0.00456942 | H53: ADIPOR2, B4GALT1, CD34, DAG1, ETS1, GPR4, ITGB3, PIK3CB
A54: response to water | B54: 851 | C54: 0.0009290309 | D54: 0.01435030691 | E54: 3.705782 | F54: 9 | G54: 0.003163445 | H54: ATP2B4, AVPR1A, CD9, COL18A1, KRT8, LRP11, PKD2, WNT10B
A55: cellular response to hepatocyte growth factor stimulus | B55: 888 | C55: 0.001101344 | D55: 0.01630311586 | E55: 2.663114 | F55: 14 | G55: 0.004920914 | H55: BCAR1, CREB1, GCLC, GCLM, HGF, IL6, NRP1, TDGF1, VIL1
A56: cranial nerve morphogenesis | B56: 898 | C56: 0.001165167 | D56: 0.01705581316 | E56: 2.032578 | F56: 24 | G56: 0.008435852 | H56: ADARB1, C5orf20, EPHB2, GLI3, NEUROG1, NRP1, PHOX2A, PLXNA4, SEMA3A, SIX1, TFAP2A, TIFAB
A57: hematopoietic stem cell differentiation | B57: 901 | C57: 0.001198178 | D57: 0.01748063242 | E57: 3.570429 | F57: 9 | G57: 0.003163445 | H57: BATF, CDK6, CHD2, MEOX1, SFRP1, SP7, XRCC5
A58: response to hepatocyte growth factor | B58: 1031 | C58: 0.002166066 | D58: 0.02761681627 | E58: 2.471918 | F58: 14 | G58: 0.004920914 | H58: BCAR1, CREB1, GCLC, GCLM, HGF, IL6, NRP1, TDGF1, VIL1
A59: positive regulation of extracellular matrix assembly | B59: 1053 | C59: 0.002397914 | D59: 0.02993407363 | E59: 2.664503 | F59: 12 | G59: 0.004217926 | H59: CLASP1, CLASP2, DAG1, SMAD3, SOX9, TGFB1
A60: cellular response to vitamin | B60: 1100 | C60: 0.002768148 | D60: 0.0330793686 | E60: 2.08197 | F60: 19 | G60: 0.006678383 | H60: ATP2B1, COL1A1, GAS6, MDM2, PENK, PIM1, POSTN, PTN, SFRP1, TNC, VDR
A61: positive regulation of fibroblast apoptotic process | B61: 1137 | C61: 0.00334813 | D61: 0.03870815202 | E61: 2.444691 | F61: 13 | G61: 0.00456942 | H61: BCL2L11, BID, BTG1, SFRP1, STK17B, TP63
A62: trigeminal nerve development | B62: 1147 | C62: 0.003489415 | D62: 0.03998985194 | E62: 2.13587 | F62: 17 | G62: 0.005975395 | H62: C5orf20, NEUROG1, NRP1, PLXNA4, SEMA3A, TFAP2A, TIFAB
A63: regulation of cellular response to vascular endothelial growth factor stimulus | B63: 1170 | C63: 0.003904859 | D63: 0.04387125774 | E63: 2.060379 | F63: 18 | G63: 0.006326889 | H63: ADAMTS12, ADAMTS3, CCBE1, DAB2IP, DCN, GPR124, KIAA1462, PTP4A3, XDH
A65: a - Association values calculated by binomial test with GREAT
A66: b - Genes assigned to hc-peaks and GO-terms with GREAT (association rules described in methods)

Sheet Supplementary Table S10
A1: Supplementary Table S10: Gene Ontology Analysis (GREAT): Human phenotypes associated with hc-peaks (FDR<0.05)
A2: Term Name | B2: Binomial rank | C2: Binomial raw p-valuea | D2: Binomial FDR q-valuea | E2: Binomial fold enrichment | F2: Binomial observed region hits | G2: Binomial region set coverage | H2: Genes associated with GO term and hc-peaksb
A3: scarring | B3: 1 | C3: 7.26E-09 | D3: 4.845277123e-05 | E3: 3.28933 | F3: 33 | G3: 0.0115993 | H3: COL1A1, COL1A2, COL3A1, COL5A1, COL5A2, COL7A1, DST, EP300, ERCC6-PGBD3, ITGA6, ITGB4, LAMC2, PLEC, SH3BP2, TFAP2A, TGFBI, TNFRSF11B, ZNF469
A4: dermal atrophy | B4: 2 | C4: 2.23E-08 | D4: 7.455546336e-05 | E4: 2.956226 | F4: 36 | G4: 0.01265378 | H4: COL1A1, COL1A2, COL3A1, COL5A1, COL5A2, COL7A1, DST, ERCC3, ERCC6-PGBD3, FBN1, ITGA6, ITGB4, LAMC2, LMNA, PLEC, SH3BP2, SMAD3, TFAP2A, TP63, XPC
A5: atrophic scars | B5: 4 | C5: 1.95E-07 | D5: 0.0003259186932 | E5: 3.967196 | F5: 21 | G5: 0.007381371 | H5: COL1A1, COL1A2, COL3A1, COL5A1, COL5A2, COL7A1, DST, ITGA6, ITGB4, LAMC2, PLEC
A6: aplasia/Hypoplasia of the skin | B6: 5 | C6: 2.45E-07 | D6: 0.0003271828704 | E6: 2.190376 | F6: 53 | G6: 0.01862917 | H6: ALX4, ARHGAP31, COL1A1, COL1A2, COL3A1, COL5A1, COL5A2, COL7A1, CTBP1, DLL4, DST, ERCC3, ERCC6-PGBD3, FBN1, HSPA9, ITGA6, ITGB4, LAMC2, LIFR, LMNA, PDGFRB, PLEC, PTDSS1, RBPJ, SATB2, SH3BP2, SMAD3, TFAP2A, TP63, XPC
A7: atypical scarring of skin | B7: 7 | C7: 4.05E-07 | D7: 0.0003856001383 | E7: 3.217424 | F7: 26 | G7: 0.00913884 | H7: COL1A1, COL1A2, COL3A1, COL5A1, COL5A2, COL7A1, DST, EP300, ERCC6-PGBD3, ITGA6, ITGB4, LAMC2, PLEC, TFAP2A, ZNF469
A8: mitral valve prolapse | B8: 16 | C8: 6.950725e-06 | D8: 0.002898452325 | E8: 2.330995 | F8: 35 | G8: 0.01230228 | H8: ABCC6, CHST3, COL1A1, COL1A2, COL3A1, COL5A1, COL5A2, DCHS1, ELN, FBN1, SH3PXD2B, SKI, SMAD3, TGFB2, TGFBR2, VWF, ZNF469
A9: finger joint hypermobility | B9: 100 | C9: 0.0003771892 | D9: 0.02516606342 | E9: 2.642244 | F9: 17 | G9: 0.005975395 | H9: COL1A1, COL5A1, COL5A2, COL6A1, COL6A2, COL6A3, FBN1, GORAB, KCNH1, PTDSS1
A11: a - Association values calculated by binomial test with GREAT
A12: b - Genes assigned to hc-peaks and GO-terms with GREAT (association rules described in methods)

Sheet Supplementary Table S11
A1: Supplementary Table S11: Gene Ontology Analysis (GREAT): Mouse single knockout phenotypes associated with hc-peaks (FDR<0.05)
A2: Term Name | B2: Binomial rank | C2: Binomial raw p-valuea | D2: Binomial FDR q-valuea | E2: Binomial fold enrichment | F2: Binomial observed region hits | G2: Binomial region set coverage | H2: Genes associated with GO term and hc-peaksb
A3: abnormal skin physiology | B3: 24 | C3: 1.21E-13 | D3: 4.63E-11 | E3: 2.10552 | F3: 120 | G3: 0.04217926 | H3: ABCG2, ADAM17, AHR, CACNA1C, CD109, CD44, CD47, CDH5, CEBPB, CLIC4, COL1A1, COL3A1, COL5A1, COL5A2, CTNNA1, CYP26B1, CYSLTR2, DCN, DGKD, DIAPH1, DSE, EPS15, ERCC5, ESR2, FBN1, GADD45A, HIC1, ILK, ITGB1, ITGB3, ITGB4, JDP2, KITLG, KLF10, KLF4, LAMC2, LGR4, LRIG1, LTBP4, LUM, NSMAF, PKP3, PLEC, PPP1R13L, PSTPIP2, RARG, SCN9A, SH3BP2, SLC30A4, SMAD3, SOCS1, TAX1BP1, TBK1, TGFB1, THBS1, THBS2, TOM1L2, TP63, VDR, XPC
A4: abnormal wound healing | B4: 43 | C4: 7.91E-11 | D4: 1.68E-08 | E4: 2.10948 | F4: 92 | G4: 0.03233743 | H4: ABHD2, ADAMTS7, AEBP1, AIMP1, ANKRD1, ARNTL, B4GALT1, CAV1, CCM2L, CD44, CLIC4, COL1A1, COL9A1, CORO7, CSRP1, DDR2, DLC1, DST, ELN, ESR1, ESR2, F3, FN1, GSK3B, GSN, IER3, IL6, IRF1, IRS1, IRS2, ITGB3, JDP2, LPP, LUM, MAP3K1, MMP11, PDGFRB, PENK, PGF, PLEC, PPARA, PTGS2, RRAS, SCARB1, SDC1, SDC4, SERPIND1, SMAD3, SORBS3, SORL1, SPARC, STMN1, SUCO, THBS2, TP63, VIL1, ZEB1
A5: altered tumor pathology | B5: 53 | C5: 6.37E-10 | D5: 1.10E-07 | E5: 2.121891 | F5: 82 | G5: 0.0288225 | H5: ADAMTS12, ANTXR1, CAV2, CCDC80, CCM2L, CD226, CD248, CD44, DOT1L, EPHA2, ETS2, GPR4, GZMA, HDAC11, HIC1, ID1, IFNAR1, IFNGR1, IL5, ITGB3, KIT, KLF10, LATS1, LOXL2, LYST, MGAT5, MMP2, MUC1, NRP1, PGF, PLAU, PLK3, POSTN, PRF1, PTP4A3, RALGDS, RRAS, RRAS2, SKIL, SMAD3, SPARC, STARD13, STAT1, TNFRSF10B, TNFSF10, TOM1L2
A6: abnormal smooth muscle morphology | B6: 61 | C6: 2.76E-09 | D6: 4.14E-07 | E6: 2.063053 | F6: 81 | G6: 0.028471 | H6: ADA, AHR, ARID5B, ARNTL, BACH1, BMP4, CALD1, COL19A1, COL3A1, CXCL12, DLL4, ELN, ESR2, FN1, GLI2, GPR4, HTR2A, IHH, ITGA7, KL, KLF2, LMNA, LTBP1, MKL2, NRP1, NTF3, PARVA, PLEKHA1, PLXND1, PRKCD, PTRF, RAPGEF1, SERPIND1, SMAD5, STK11, THBS1, TIPARP, TMEM204, TP63, VAV2
A7: abnormal dendritic cell physiology | B7: 63 | C7: 3.98E-09 | D7: 5.78E-07 | E7: 2.056132 | F7: 80 | G7: 0.02811951 | H7: ADA, ADAM17, AHR, AZI2, BATF3, BCL10, CCR7, CD1D, CD200R1L, CSF1, CSF1R, DDX58, FCGR1B, FSCN1, HRH4, HSP90AA1, IDO1, IFNAR1, IL12B, IL21R, IL6ST, LGALS3, LYN, MARCO, MAVS, MMP14, NRP1, OXSR1, PTGER4, PTX3, RRAS2, RXRA, SAMSN1, SEMA3A, SEMA4A, SLC7A11, ST6GAL1, STK4, SYK, TLR2, TNFRSF11B, TRAF6
A8: abnormal myeloid dendritic cell morphology | B8: 75 | C8: 1.24E-08 | D8: 1.507348984e-06 | E8: 4.304339 | F8: 23 | G8: 0.008084359 | H8: AHR, BATF3, BCL3, CSF1, CSF1R, ITGB6, MFAP2, SPPL2A, STK4, TGFB1, TNFSF11
A9: abnormal tumor morphology | B9: 78 | C9: 2.21E-08 | D9: 2.592447738e-06 | E9: 2.181505 | F9: 63 | G9: 0.02214411 | H9: ADAMTS12, ANTXR1, CAV2, CCM2L, CD226, CD248, CD44, DOT1L, ETS2, GPR4, GZMA, HDAC11, ID1, IFNAR1, ITGB3, KIT, KLF10, LATS1, LOXL2, MGAT5, MMP2, MUC1, NRP1, PGF, PLAU, PLK3, POSTN, PRF1, PTP4A3, RALGDS, RRAS2, SKIL, SPARC, STARD13, TNFSF10
A10: abnormal embryonic hematopoiesis | B10: 80 | C10: 2.98E-08 | D10: 3.406650735e-06 | E10: 2.497217 | F10: 47 | G10: 0.01652021 | H10: ADAR, ARID3A, CASP8, CBFB, IRF2BP2, KLF6, MED24, MYB, PDGFRB, POFUT2, RAPGEF2, RCOR1, RUNX1, SMAD5, TGFB1, TGFBR2, UBC, ZFAT, ZFP36L1, ZFP36L2
A11: abnormal lung elastance | B11: 84 | C11: 3.86E-08 | D11: 4.204166996e-06 | E11: 8.424903 | F11: 12 | G11: 0.004217926 | H11: ADA, CAV1, HCK, LAMC2, SEPN1, WWTR1
A12: abnormal vascular smooth muscle morphology | B12: 94 | C12: 1.17E-07 | D12: 1.138917158e-05 | E12: 2.122655 | F12: 60 | G12: 0.02108963 | H12: ADA, AHR, ARNTL, BACH1, BMP4, COL3A1, CXCL12, DLL4, ELN, ESR2, FN1, GPR4, ITGA7, KLF2, LMNA, LTBP1, MKL2, NRP1, NTF3, PARVA, PLEKHA1, PLXND1, PRKCD, RAPGEF1, SERPIND1, SMAD5, STK11, THBS1, VAV2
A13: abnormal physiological neovascularization | B13: 125 | C13: 1.432888e-06 | D13: 0.0001048759385 | E13: 3.000414 | F13: 26 | G13: 0.00913884 | H13: B4GALT1, CD44, CD47, CLIC4, CXCL12, EPAS1, ITGB3, MFGE8, RRAS, THBS1
A14: abnormal white fat cell morphology | B14: 133 | C14: 2.005362e-06 | D14: 0.0001379477965 | E14: 2.086991 | F14: 50 | G14: 0.01757469 | H14: AKR1B15, ARNTL, ARRDC3, CAV1, COPRS, CSPG4, EPG5, ESR1, KSR1, LCLAT1, LPIN1, MRAP2, NCOA3, NCOR2, OMA1, PHF2, PRKAG2, RAB18, RAPGEF3, SAMD4A, SERTAD2, SIK2, SNAP25, TBC1D4, TGFB1, TLR2, TRIB1
A15: fragile skeleton | B15: 141 | C15: 2.845072e-06 | D15: 0.000184606835 | E15: 3.341227 | F15: 21 | G15: 0.007381371 | H15: AKR1A1, COL1A1, COL1A2, CSF1, CSF1R, FAM20C, FAM46A, GLRB, ID1, MYOG, SUCO, TNFRSF11B
A16: abnormal fibroblast migration | B16: 149 | C16: 3.736673e-06 | D16: 0.0002294417535 | E16: 2.334794 | F16: 37 | G16: 0.01300527 | H16: APPL2, ARHGEF28, ARID5B, CAV1, CORO7, DLC1, EGFR, EHD1, FLNB, FNDC3B, ITGB1, MAP3K1, NCOA3, PALLD, PDGFRB, PLEC, PTK2, RAPGEF1, RAPH1, RHOB, SDC4, STON1-GTF2A1L, SYNE2, ZYX
A17: vascular smooth muscle hyperplasia | B17: 163 | C17: 5.66366e-06 | D17: 0.000317894634 | E17: 4.1756 | F17: 15 | G17: 0.005272408 | H17: ARNTL, ITGA7, PRKCD, SERPIND1, THBS1, VAV2
A18: decreased tumor growth/size | B18: 166 | C18: 7.102184e-06 | D18: 0.0003914330206 | E18: 2.296764 | F18: 36 | G18: 0.01265378 | H18: ANTXR1, CAV2, CCM2L, CD248, CD44, DOT1L, ETS2, GPR4, ID1, KIT, LOXL2, MGAT5, MMP2, MUC1, NRP1, PGF, PLAU, PTP4A3, RALGDS, SKIL
A19: decreased cell migration | B19: 194 | C19: 1.388188e-05 | D19: 0.0006546665986 | E19: 2.19644 | F19: 37 | G19: 0.01300527 | H19: APPL2, ARHGEF28, ARID5B, CAV1, CLIC4, EGFR, EHD1, FLNB, FNDC3B, ILK, ITGB1, MAP3K1, NCOA3, PALLD, PLEC, PTK2, RAPGEF1, RAPH1, RHOB, SDC4, SYNE2, ZYX
A20: abnormal myeloid dendritic cell number | B20: 195 | C20: 1.459489e-05 | D20: 0.0006847623006 | E20: 3.847383 | F20: 15 | G20: 0.005272408 | H20: BATF3, CSF1, CSF1R, ITGB6, MFAP2, SPPL2A, STK4, TGFB1, TNFSF11
A21: lordosis | B21: 201 | C21: 1.760328e-05 | D21: 0.0008012557648 | E21: 2.717052 | F21: 24 | G21: 0.008435852 | H21: CHD2, CISD2, COL5A2, FLNB, HAPLN1, HIP1, MBNL2, MMP14, NFIX, SH3PXD2B, SIRT6, SMG9, THBS1
A22: decreased fibroblast cell migration | B22: 204 | C22: 1.799529e-05 | D22: 0.0008070534716 | E22: 2.287686 | F22: 33 | G22: 0.0115993 | H22: APPL2, ARHGEF28, ARID5B, CAV1, EGFR, EHD1, FLNB, FNDC3B, ITGB1, MAP3K1, NCOA3, PALLD, PLEC, PTK2, RAPGEF1, RAPH1, RHOB, SDC4, SYNE2, ZYX
A23: abnormal thrombosis | B23: 206 | C23: 1.929954e-05 | D23: 0.0008571431624 | E23: 2.028388 | F23: 43 | G23: 0.01511424 | H23: AHR, ANK1, ANXA2, ARNTL, CD36, EPCAM, F3, FBN1, ITGB3, LAT, LEPREL1, NT5E, PDGFRB, PDLIM7, PF4, PLAU, PPP1R13L, PROC, PROZ, PTGS2, RHBDF1, SERPIND1, SMAD6, STIM1, TGFB1, TUSC2
A24: abnormal bone strength | B24: 218 | C24: 2.470181e-05 | D24: 0.001036682843 | E24: 2.111831 | F24: 38 | G24: 0.01335677 | H24: AKR1A1, BBX, CAV1, COL1A1, COL1A2, CSF1, CSF1R, ESR1, ESR2, FAM20C, FAM46A, GLRB, ID1, KLF10, MYOG, NCOR2, SPARC, SUCO, TNFRSF11B, WNT16
A25: dermal-epidermal separation | B25: 223 | C25: 2.631996e-05 | D25: 0.00107982652 | E25: 5.349366 | F25: 10 | G25: 0.003514938 | H25: COL7A1, ITGB4, LAMC2, PLEC, TP63
A26: retarded hair growth | B26: 233 | C26: 3.299404e-05 | D26: 0.00129554709 | E26: 3.405232 | F26: 16 | G26: 0.005623902 | H26: ARNTL, INHBA, LPIN1, OAT, PKP3, RORA
A27: pale kidney | B27: 235 | C27: 3.331823e-05 | D27: 0.001297142495 | E27: 2.49488 | F27: 26 | G27: 0.00913884 | H27: AQP11, ARID5B, CHD2, COL4A4, GLIS2, MYO1E, PTGS2, RRM2B, TIPARP, TTC7A, VEGFA, WWTR1, XDH, ZFP36L2
A28: rectal prolapse | B28: 244 | C28: 3.794021e-05 | D28: 0.001422602382 | E28: 2.527969 | F28: 25 | G28: 0.008787346 | H28: ABL1, AHR, EFEMP1, IL6ST, KRT8, LTBP4, MGAT2, PLAU, RAD23B, RAPH1, SMAD3, TP63
A29: delayed wound healing | B29: 245 | C29: 3.915302e-05 | D29: 0.001462085633 | E29: 2.376836 | F29: 28 | G29: 0.009841828 | H29: AIMP1, ANKRD1, B4GALT1, CCM2L, CD44, CLIC4, DDR2, DST, ESR2, IER3, IL6, LUM, PENK, PGF, PPARA, SDC1, SDC4, SORBS3, SPARC
A30: abnormal involution of the mammary gland | B30: 247 | C30: 4.251625e-05 | D30: 0.001574822556 | E30: 2.629319 | F30: 23 | G30: 0.008084359 | H30: AEBP1, AFAP1, BCL2L11, BMF, CD44, IGFBP7, IL6, IL6ST, LIF, MFGE8, TIMP3, XDH
A31: cortical cataracts | B31: 267 | C31: 5.589669e-05 | D31: 0.001915351374 | E31: 5.465935 | F31: 9 | G31: 0.003163445 | H31: BMP4, EPHA2, FOXE3, SPARC
A32: abnormal visceral yolk sac blood island morphology | B32: 273 | C32: 6.081966e-05 | D32: 0.002038238349 | E32: 2.206212 | F32: 31 | G32: 0.01089631 | H32: BMP4, CDH5, FGFR1, FN1, KDR, RAPGEF2, RNF7, TDGF1, VEGFA, YAP1, ZFAT, ZFP36L1
A33: impaired macrophage phagocytosis | B33: 279 | C33: 6.592374e-05 | D33: 0.002161778843 | E33: 2.439865 | F33: 25 | G33: 0.008787346 | H33: ABCA1, CD36, CD44, CEBPB, CLIC4, FCGR1B, GRK6, HCK, IER3, LGALS3, LYST, MARCO, MFGE8, PTX3, RASA4, RASA4B, SH3BP2
A34: abnormal class switch recombination | B34: 282 | C34: 6.678797e-05 | D34: 0.002166819637 | E34: 2.134215 | F34: 33 | G34: 0.0115993 | H34: ARID3A, BATF, BCL3, CCR7, CD28, DOCK2, ERCC1, ESR1, EXO1, ICOSLG, IFNGR2, LYN, NHEJ1, PTGS2, RNF168, SESN1, SMAD7, SPPL2A, SWAP70, TP53BP1, VAV2, XRCC5, ZAP70, ZEB1
A35: abnormal palatal shelf elevation | B35: 284 | C35: 6.983785e-05 | D35: 0.002249811583 | E35: 2.101777 | F35: 34 | G35: 0.01195079 | H35: DHRS3, DLG1, FGF18, FGFR1, FOXF2, GLI2, GSK3B, HAND2, HHAT, LOXL3, MNT, PAX9, PDGFC, PITX1, ROR2, RSPO2, TBX2, TGFB2
A36: abnormal epicardium morphology | B36: 305 | C36: 9.592886e-05 | D36: 0.002877551279 | E36: 2.486853 | F36: 23 | G36: 0.008084359 | H36: ABI1, EP300, EPO, FLRT2, ITGA4, OSR1, TBX18, TGFBR3, ZFP36L1
A37: osteoporosis | B37: 325 | C37: 0.0001365582 | D37: 0.003844218375 | E37: 2.136486 | F37: 30 | G37: 0.01054482 | H37: AKR1A1, ARNTL, CSF1, CSF1R, EFEMP1, FHL2, ID1, IFNGR1, IL6ST, KL, LMNA, MMP14, NCOA1, SLC39A14, TNFRSF11B, TOB2, ZAP70
A38: abnormal renal glomerulus basement membrane thickness | B38: 331 | C38: 0.0001460362 | D38: 0.00403651116 | E38: 2.605094 | F38: 20 | G38: 0.007029877 | H38: COL4A4, DDR1, FAS, GDNF, ITGA3, LAMB2, LMX1B, MYO1E, RRM2B, SMAD3, VEGFA, WT1
A39: increased tumor growth/size | B39: 333 | C39: 0.0001509165 | D39: 0.004146351527 | E39: 2.226816 | F39: 27 | G39: 0.009490334 | H39: ADAMTS12, CD226, GZMA, HDAC11, IFNAR1, ITGB3, KIT, KLF10, PLK3, POSTN, PRF1, RRAS2, SPARC, STARD13, TNFSF10
A40: absent stapedial artery | B40: 336 | C40: 0.000158616 | D40: 0.0043189815 | E40: 3.437678 | F40: 13 | G40: 0.00456942 | H40: ADAMTS3, ADCY9, DLX1, DLX2, HM13, SH3PXD2A, SIX1, TRAF6
A41: impaired wound healing | B41: 359 | C41: 0.0002209972 | D41: 0.005632042849 | E41: 2.344193 | F41: 23 | G41: 0.008084359 | H41: AEBP1, ANKRD1, ARNTL, CAV1, CD44, FN1, IL6, LPP, LUM, PDGFRB, PLEC, SDC4, TP63, VIL1
A42: abnormal renal glomerulus basement membrane morphology | B42: 363 | C42: 0.0002378528 | D42: 0.005994807899 | E42: 2.19952 | F42: 26 | G42: 0.00913884 | H42: BCL2L11, COL4A1, COL4A4, DDR1, FAS, GDNF, ITGA3, LAMB2, LMX1B, MYO1E, RRM2B, SMAD3, SYK, VEGFA, WT1
A43: abnormal urothelium morphology | B43: 375 | C43: 0.000291394 | D43: 0.007109236549 | E43: 2.805631 | F43: 16 | G43: 0.005623902 | H43: AHR, DLG1, ESR2, FSTL1, ITGB4, LAMC2, SCARB2, TP63
A44: abnormal iridocorneal angle | B44: 403 | C44: 0.0004254545 | D44: 0.009658767297 | E44: 2.457987 | F44: 19 | G44: 0.006678383 | H44: ADAM17, BMP4, CYP1B1, FOXC1, FOXE3, FOXF2, LGR4, LMX1B, LYST, PXDN, VAV2, ZEB1
A45: brain inflammation | B45: 420 | C45: 0.0004819462 | D45: 0.01049839472 | E45: 3.446514 | F45: 11 | G45: 0.003866432 | H45: CD28, FAS, IL6, LGALS3, MAVS, MGAT5B, MMP2, PRF1, TGFB1
A46: abnormal canal of Schlemm morphology | B46: 451 | C46: 0.0006292999 | D46: 0.01276599731 | E46: 3.334981 | F46: 11 | G46: 0.003866432 | H46: ADAM17, BMP4, CYP1B1, FOXC1, FOXE3, FOXF2, LGR4
A47: abnormal aqueous drainage system morphology | B47: 468 | C47: 0.0007892596 | D47: 0.0154293506 | E47: 2.33148 | F47: 19 | G47: 0.006678383 | H47: ADAM17, BMP4, CYP1B1, FOXC1, FOXE3, FOXF2, LGR4, LMX1B, LYST, PXDN, VAV2, ZEB1
A48: disorganized yolk sac vascular plexus | B48: 478 | C48: 0.0008928596 | D48: 0.01708948218 | E48: 2.306542 | F48: 19 | G48: 0.006678383 | H48: F3, FBXW7, FN1, FZD5, GLMN, NRP1, PPAP2B, PTK2, SMAD5, UBP1, YAP1
A49: vascular inflammation | B49: 486 | C49: 0.0009497807 | D49: 0.01787971939 | E49: 2.598857 | F49: 15 | G49: 0.005272408 | H49: BCL2L11, CHD2, CTLA4, ENSG00000264545, FAS, FBN1, IFNGR1, KLF15, SSBP2, TGFB1, TIMP3, TUSC2
A50: absent maxillary shelf | B50: 487 | C50: 0.000966491 | D50: 0.01815693256 | E50: 2.700843 | F50: 14 | G50: 0.004920914 | H50: DLX2, GLI2, HAND2, MSX1, PAX9, PRRX1, TGFB2
A51: decreased T cell apoptosis | B51: 494 | C51: 0.001023694 | D51: 0.01895906155 | E51: 2.224198 | F51: 20 | G51: 0.007029877 | H51: BCL2L11, BMF, CASP9, ETS1, KLF13, MDM2, NDRG1, NR3C1, PERP, PRF1, PRKCQ, RHOH, TNFRSF25
A52: vasculitis | B52: 533 | C52: 0.001397759 | D52: 0.02399267747 | E52: 2.594957 | F52: 14 | G52: 0.004920914 | H52: BCL2L11, CHD2, CTLA4, ENSG00000264545, FAS, FBN1, IFNGR1, SSBP2, TGFB1, TIMP3, TUSC2
A53: abnormal bile duct physiology | B53: 534 | C53: 0.001403811 | D53: 0.02405143603 | E53: 2.337964 | F53: 17 | G53: 0.005975395 | H53: ABCB4, ABCC2, ADA, AHR, ARL3, ATXN2, PCTP, PEX2, PKD2, SCP2
A54: abnormal aorta tunica adventitia morphology | B54: 580 | C54: 0.001857999 | D54: 0.0293083325 | E54: 4.121316 | F54: 7 | G54: 0.002460457 | H54: COL1A1, CSF2, DDR1, FBN1, KLF15, LMNA
A55: absent lower incisors | B55: 583 | C55: 0.001890182 | D55: 0.02966256452 | E55: 2.418676 | F55: 15 | G55: 0.005272408 | H55: FST, GLI2, INHBA, LEF1, MSX1, NFIC, PAX9, SATB2
A56: absent primordial germ cells | B56: 589 | C56: 0.001944364 | D56: 0.03020201398 | E56: 2.734912 | F56: 12 | G56: 0.004217926 | H56: BMP4, BMP8A, KITLG, MAD2L2, PRDM1
A57: absent ductus venosus valve | B57: 614 | C57: 0.002227446 | D57: 0.0331903965 | E57: 2.37654 | F57: 15 | G57: 0.005272408 | H57: ADAMTS3, ADCY9, CORO1C, FAM46C, HM13, SH3PXD2A, SMG9, TCF7L2, TRAF6, TRAPPC9
A58: peripheral nervous system degeneration | B58: 626 | C58: 0.002370006 | D58: 0.03463767555 | E58: 2.668409 | F58: 12 | G58: 0.004217926 | H58: ARSB, DST, LPIN1, NDRG1, NMNAT2, SCN8A, SCYL1
A59: skin fibrosis | B59: 642 | C59: 0.002543213 | D59: 0.03624276595 | E59: 3.189667 | F59: 9 | G59: 0.003163445 | H59: COL3A1, FBN1, MMP14, NTMT1, PBK, SYT7
A60: abnormal trabecular meshwork morphology | B60: 690 | C60: 0.003117472 | D60: 0.04133587149 | E60: 2.879745 | F60: 10 | G60: 0.003514938 | H60: BMP4, CYP1B1, FOXC1, FOXE3, FOXF2, LGR4
A61: anterior iris synechia | B61: 702 | C61: 0.003352627 | D61: 0.0436939949 | E61: 2.144619 | F61: 17 | G61: 0.005975395 | H61: ADAM17, BMP4, COL4A1, CYP1B1, FOXC1, FOXE3, FOXF2, LGR4, LMX1B, PPP1R13L, SH3PXD2B, VAV2, ZEB1
A62: exophthalmos | B62: 717 | C62: 0.003747089 | D62: 0.04781327373 | E62: 2.321758 | F62: 14 | G62: 0.004920914 | H62: DDR2, FOXF2, LHFPL2, LMNA, MAP3K1, MMP14, SH3PXD2B, TOM1L2, TPO
A63: abnormal anterior cardinal vein morphology | B63: 722 | C63: 0.003840891 | D63: 0.04867079191 | E63: 2.315076 | F63: 14 | G63: 0.004920914 | H63: DLL4, EPHB4, GLI3, MYCN, NR2F2, RBPJ, WASF2
A65: a - Association values calculated by binomial test with GREAT
A66: b - Genes assigned to hc-peaks and GO-terms with GREAT (association rules described in methods)

Sheet Supplementary Table S12
A1: Supplementary Table S12: Association of SNPs within hc-peaks with topologically associating domains harbouring nsCL/P GWAS risk loci
A2: Locus information | F2: Topollogically associating domain (TAD) informationa | I2: SNPs within TAD and hc-peak
A3: nsCL/P risk Locus | B3: lead SNP(rsID) | C3: Chromosome | D3: Position (hg19) | F3: GWASTAD-region start | G3: GWASTAD-region end | I3: rsID | J3: Chromosome | K3: Postion (hg19) | L3: Meta all p-valueb
A4: 1p36 | B4: rs4920524 | C4: 1 | D4: 18,978,372 | F4: 18,927,413 | G4: 19,207,412 | I4: none
A5: 1p36.13 | B5: rs34746930 | C5: 1 | D5: 19,781,724 | F5: 19,607,413 | G5: 20,007,412 | I5: rs10442634 | J5: 1 | K5: 19775246 | L5: 0.561
I6: rs79308175 | J6: 1 | K6: 19775375 | L6: 0.463
I7: rs10442635 | J7: 1 | K7: 19775492 | L7: 0.555
I8: rs1546264 | J8: 1 | K8: 19775566 | L8: 0.0822
A9: 1p22 | B9: rs66515264 | C9: 1 | D9: 94,558,110 | F9: 94,387,412 | G9: 94,947,411 | I9: rs3789445 | J9: 1 | K9: 94582249 | L9: 0.212
A10: 1q32.1 | B10: rs3753517 | C10: 1 | D10: 209,978,098 | F10: 209,973,377 | G10: 210,533,376 | I10: rs2473814 | J10: 1 | K10: 210405907 | L10: 0.504
I11: rs674513 | J11: 1 | K11: 210424674 | L11: 0.943
I12: rs672819 | J12: 1 | K12: 210436404 | L12: 0.00246
A13: 2p25.1 | B13: rs2303914 | C13: 2 | D13: 9,983,686 | F13: 9,602,549 | G13: 10,202,548 | I13: rs12474540 | J13: 2 | K13: 9699313 | L13: 0.929
I14: rs11684381 | J14: 2 | K14: 9806285 | L14: 0.347
I15: rs2357257 | J15: 2 | K15: 9806406 | L15: 0.656
I16: rs447476 | J16: 2 | K16: 10037839 | L16: 0.00543
A17: 2p24.2 | B17: rs4832655 | C17: 2 | D17: 16,725,687 | F17: 15,722,549 | G17: 16,736,518 | I17: rs13399671 | J17: 2 | K17: 15870736 | L17: 0.599
A18: 2p21 | B18: rs6740960 | C18: 2 | D18: 42,181,679 | F18: 42,066,496 | G18: 42,586,495 | I18: none
A19: 2p21 | B19: rs7590268 | C19: 2 | D19: 43,540,125 | F19: 43,026,496 | G19: 43,826,495 | I19: rs113900630 | J19: 2 | K19: 43037100 | L19: 0.353
I20: rs3884675 | J20: 2 | K20: 43269180 | L20: 0.516
A21: 3p11.1 | B21: rs6551413 | C21: 3 | D21: 89,640,350 | F21: 89,157,310 | G21: 90,504,853 | I21: none
A22: 3q12.1 | B22: rs793488 | C22: 3 | D22: 99,495,567 | F22: 99,517,310 | G22: 99,997,309 | I22: none
A23: 3q28 | B23: rs76479869 | C23: 3 | D23: 189,553,372 | F23: 188,957,306 | G23: 189,677,305 | I23: rs3846096 | J23: 3 | K23: 189281812 | L23: 0.381
I24: rs710530 | J24: 3 | K24: 189655254 | L24: 0.237
I25: rs6806596 | J25: 3 | K25: 189655481 | L25: 0.6
I26: rs6784916 | J26: 3 | K26: 189655542 | L26: 0.6
A27: 3q29 | B27: rs62281742 | C27: 3 | D27: 196,816,509 | F27: 196,715,603 | G27: 197,795,602 | I27: none
A28: 4p16.2 | B28: rs111827470 | C28: 4 | D28: 4,817,113 | F28: 4,229,099 | G28: 4,869,098 | I28: none
A29: 4q28.1 | B29: rs58903996 | C29: 4 | D29: 124,925,457 | F29: 124,660,550 | G29: 125,220,549 | I29: none
A30: 5p12 | B30: rs34157826 | C30: 5 | D30: 44,127,933 | F30: 43,564,243 | G30: 44,804,242 | I30: none
A31: 5p12 | B31: rs60107710 | C31: 5 | D31: 44,577,755
A32: 5q13 | B32: rs6449957 | C32: 5 | D32: 67,483,732 | F32: 66,524,244 | G32: 67,564,243 | I32: none
A33: 6p24.3 | B33: rs1005619 | C33: 6 | D33: 9,485,016 | F33: 8,095,001 | G33: 10,452,013 | I33: rs8180668 | J33: 6 | K33: 10316668 | L33: 0.2
A34: 7p21.1 | B34: rs62453366 | C34: 7 | D34: 20,747,107 | F34: 20,713,475 | G34: 21,313,474 | I34: none
A35: 8p11.23 | B35: rs6984358 | C35: 8 | D35: 38,284,581 | F35: 37,640,842 | G35: 38,640,842 | I35: rs55962869 | J35: 8 | K35: 38034284 | L35: 0.0186
I36: rs17506599 | J36: 8 | K36: 38592423 | L36: 0.48
A37: 8q21 | B37: rs12543318 | C37: 8 | D37: 88,868,340 | F37: 87,530,884 | G37: 89,330,883 | I37: none
A38: 8q22.1 | B38: rs56716157 | C38: 8 | D38: 95,542,872 | F38: 95,010,824 | G38: 95,410,823 | I38: none
F39: 95,570,824 | G39: 96,290,823 | I39: rs7824517 | J39: 8 | K39: 96226251 | L39: 0.814
I40: rs62522651 | J40: 8 | K40: 96237896 | L40: 0.738
A41: 8q24 | B41: rs55658222 | C41: 8 | D41: 129,976,136 | F41: 127,850,818 | G41: 130,770,817 | I41: none
A42: 9q22.2 | B42: rs10908902 | C42: 9 | D42: 92,224,825 | F42: 91,930,180 | G42: 92,880,179 | I42: none
A43: 9q22.32 | B43: rs10512248 | C43: 9 | D43: 98,259,703 | F43: 97,880,179 | G43: 99,080,178 | I43: none
A44: 9q21.33 | B44: rs1867277 | C44: 9 | D44: 100,615,914 | F44: 100,440,179 | G44: 100,680,178 | I44: none
A45: 10q25 | B45: rs10886040 | C45: 10 | D45: 118,846,294 | F45: 118,370,010 | G45: 118,970,009 | I45: none
A46: 12q13.13 | B46: rs11170344 | C46: 12 | D46: 53,351,208 | F46: 52,513,733 | G46: 53,393,732 | I46: rs2608007 | J46: 12 | K46: 52637940 | L46: 0.857
I47: rs2682318 | J47: 12 | K47: 53265475 | L47: 0.0555
I48: rs7313347 | J48: 12 | K48: 53265499 | L48: 0.547
I49: rs7313139 | J49: 12 | K49: 53265509 | L49: 0.547
I50: rs2682314 | J50: 12 | K50: 53268216 | L50: 0.0406
I51: rs2638516 | J51: 12 | K51: 53268217 | L51: 0.0465
I52: rs2638515 | J52: 12 | K52: 53268289 | L52: 0.0708
A53: 12q13.2 | B53: rs773110 | C53: 12 | D53: 56,375,137 | F53: 56,113,733 | G53: 56,473,732 | I53: none
A54: 12q21.1 | B54: rs113800097 | C54: 12 | D54: 71,957,716 | F54: 70,033,733 | G54: 72,153,732 | I54: none
A55: 13q31.1 | B55: rs1854110 | C55: 13 | D55: 80,701,485 | F55: 80,141,999 | G55: 81,621,998 | I55: rs9565513 | J55: 13 | K55: 80205647 | L55: 0.867
A56: 14q22.1 | B56: rs4901118 | C56: 14 | D56: 51,856,109 | F56: 51,730,250 | G56: 52,450,249 | I56: rs4901119 | J56: 14 | K56: 51862526 | L56: 0.327
A57: 14q32.13 | B57: rs60573630 | C57: 14 | D57: 95,360,240 | F57: 95,130,247 | G57: 95,890,246 | I57: none
A58: 15q13 | B58: rs2600519 | C58: 15 | D58: 33,054,523 | F58: 32,892,708 | G58: 34,332,707 | I58: rs11855680 | J58: 15 | K58: 32962450 | L58: 0.57
I59: rs8041254 | J59: 15 | K59: 32962642 | L59: 0.436
I60: rs8037112 | J60: 15 | K60: 32962759 | L60: 0.426
A61: 15q22.2 | B61: rs4774469 | C61: 15 | D61: 63,311,927 | F61: 62,612,708 | G61: 63,412,946 | I61: rs370727 | J61: 15 | K61: 62757098 | L61: 0.648
I62: rs11854425 | J62: 15 | K62: 63233281 | L62: 0.0899
A63: 15q24 | B63: rs8026181 | C63: 15 | D63: 74,818,926 | F63: 74,652,947 | G63: 75,612,946 | I63: rs35911108 | J63: 15 | K63: 75322179 | L63: 0.85
I64: rs74247779 | J64: 15 | K64: 75397131 | L64: 0.831
A65: 16p13.3 | B65: rs8049367 | C65: 16 | D65: 3,980,445 | F65: 3,539,999 | G65: 4,499,998 | I65: rs13336930 | J65: 16 | K65: 4304019 | L65: 0.741
I66: rs251734 | J66: 16 | K66: 4321441 | L66: 0.858
A67: 17p13.1 | B67: rs12944377 | C67: 17 | D67: 8,947,708 | F67: 8,779,275 | G67: 9,459,274 | I67: none
A68: 17q21.32 | B68: rs197912 | C68: 17 | D68: 44,989,888 | F68: 44,764,820 | G68: 45,725,000 | I68: rs11868894 | J68: 17 | K68: 45353189 | L68: 0.251
A69: 17q22 | B69: rs227727 | C69: 17 | D69: 54,776,955 | F69: 53,045,001 | G69: 54,885,000 | I69: none
A70: 17q23.2 | B70: rs78022196 | C70: 17 | D70: 61,043,405 | F70: 60,526,268 | G70: 61,926,267 | I70: none
A71: 19p13.3 | B71: rs8103466 | C71: 19 | D71: 2,045,805 | F71: 1,849,000 | G71: 3,688,999 | I71: rs7256735 | J71: 19 | K71: 2169121 | L71: 0.602
I72: rs886449 | J72: 19 | K72: 2186237 | L72: 0.0775
A73: 19q12 | B73: rs73039428 | C73: 19 | D73: 33,521,150 | F73: 33,068,160 | G73: 33,708,159 | I73: none
A74: 20q12 | B74: rs6029258 | C74: 20 | D74: 39,284,775 | F74: 37,686,586 | G74: 40,006,585 | I74: rs62208470 | J74: 20 | K74: 39945771 | L74: 0.771
A75: 20q13.12 | B75: rs3091552 | C75: 20 | D75: 45,440,006 | F75: 45,366,593 | G75: 45,806,592 | I75: none
A77: a -Coordinates of topological associating domains (TAD) captured in human embryonic stem cells by Dixon et al. 2012 [35], intersection with nsCL/P risk loci as presented by Welzenbach et al. 2021 [21]
A78: b- Association results retrieved from the meta-GWAS analysis by Ludwig et al. 2017 [9] as described in the methods

Sheet Supplementary Table S13
A1: Supplementary Table S13: SNPs of nsCL/P GWAS meta-analysis by Ludwig et al. 2017 within hc-peaks
A2: SNP information | E2: Association information (nsCL/P GWAS meta-analysis) | J2: Genotype in HEPM cells
A3: rsID | B3: Chromosome | C3: Position (hg19) | E3: Alleles | F3: Meta all p-value | G3: Meta all allele | H3: Region | J3: Genotypea | K3: Allele 0 (a0) | L3: Allele 1 (a1) | M3: Expected frequency a1
A4: rs463271 | B4: 22 | C4: 18525700 | E4: C/T | F4: 2.72E-04 | G4: C | H4: 22:18525652-18525876 | J4: hetero | K4: T | L4: C | M4: 0.53
A5: rs12882215 | B5: 14 | C5: 75312926 | E5: C/T | F5: 3.30E-04 | G5: C | H5: 14:75312905-75313227 | J5: homo_a0 | K5: C | L5: T | M5: 0.04
A6: rs7144455 | B6: 14 | C6: 75312954 | E6: A/G | F6: 3.77E-04 | G6: G | H6: 14:75312905-75313227 | J6: homo_a1 | K6: A | L6: G | M6: 0.93
A7: rs4774822 | B7: 15 | C7: 56067671 | E7: G/T | F7: 6.27E-04 | G7: G | H7: 15:56067523-56067883 | J7: homo_a1 | K7: T | L7: G | M7: 0.49
A8: rs10101794 | B8: 8 | C8: 124541764 | E8: C/T | F8: 1.48E-03 | G8: C | H8: 8:124541747-124542032 | J8: homo_a0 | K8: T | L8: C | M8: 0.414
A9: rs75181683 | B9: 4 | C9: 57985792 | E9: A/G | F9: 1.99E-03 | G9: G | H9: 4:57985400-57985955 | J9: homo_a0 | K9: A | L9: G | M9: 0.035
A10: rs79250191 | B10: 4 | C10: 57985527 | E10: C/T | F10: 2.00E-03 | G10: T | H10: 4:57985400-57985955 | J10: homo_a0 | K10: C | L10: T | M10: 0.035
A11: rs36014129 | B11: 6 | C11: 25884519 | E11: A/G | F11: 2.04E-03 | G11: A | H11: 6:25884334-25884531 | J11: hetero | K11: G | L11: A | M11: 0.097
A12: rs672819 | B12: 1 | C12: 210436404 | E12: A/T | F12: 2.46E-03 | G12: T | H12: 1:210436244-210436516 | J12: hetero | K12: T | L12: A | M12: 0.162
A13: rs916296 | B13: 6 | C13: 36737476 | E13: C/T | F13: 3.16E-03 | G13: C | H13: 6:36737241-36737516 | J13: homo_a0 | K13: C | L13: T | M13: 0.046
A14: rs4073612 | B14: 11 | C14: 93865651 | E14: G/T | F14: 3.73E-03 | G14: G | H14: 11:93865499-93865735 | J14: hetero | K14: G | L14: T | M14: 0.474
A15: rs4073613 | B15: 11 | C15: 93865569 | E15: G/T | F15: 4.03E-03 | G15: G | H15: 11:93865499-93865735 | J15: hetero | K15: G | L15: T | M15: 0.474
A16: rs12906451 | B16: 15 | C16: 56067866 | E16: A/G | F16: 4.04E-03 | G16: A | H16: 15:56067523-56067883 | J16: homo_a0 | K16: A | L16: G | M16: 0.277
A17: rs2278089 | B17: 2 | C17: 152146672 | E17: G/T | F17: 4.10E-03 | G17: G | H17: 2:152146597-152146909 | J17: hetero | K17: G | L17: T | M17: 0.523
A18: rs77853347 | B18: 7 | C18: 73437491 | E18: A/G | F18: 4.24E-03 | G18: G | H18: 7:73437484-73437877 | J18: homo_a0 | K18: G | L18: A | M18: 0.085
A19: rs80256192 | B19: 14 | C19: 29122027 | E19: A/G | F19: 4.43E-03 | G19: G | H19: 14:29121968-29122394 | J19: hetero | K19: A | L19: G | M19: 0.123
A20: rs7084822 | B20: 10 | C20: 123872127 | E20: C/T | F20: 4.49E-03 | G20: C | H20: 10:123871886-123872249 | J20: homo_a1 | K20: C | L20: T | M20: 0.832
A21: rs3017044 | B21: 18 | C21: 19320676 | E21: A/G | F21: 4.87E-03 | G21: G | H21: 18:19320518-19321197 | J21: homo_a0 | K21: G | L21: A | M21: 0.07
A22: rs654207 | B22: 4 | C22: 2324865 | E22: C/T | F22: 4.98E-03 | G22: C | H22: 4:2324478-2325017 | J22: hetero | K22: C | L22: T | M22: 0.231
A23: rs11539445 | B23: 12 | C23: 32908237 | E23: A/C | F23: 5.42E-03 | G23: A | H23: 12:32908057-32908349 | J23: homo_a0 | K23: C | L23: A | M23: 0.205
A24: rs447476 | B24: 2 | C24: 10037839 | E24: A/G | F24: 5.43E-03 | G24: G | H24: 2:10037680-10037845 | J24: hetero | K24: G | L24: A | M24: 0.454
A25: rs4073614 | B25: 11 | C25: 93865567 | E25: A/G | F25: 5.81E-03 | G25: G | H25: 11:93865499-93865735 | J25: hetero | K25: G | L25: A | M25: 0.474
A26: rs12889634 | B26: 14 | C26: 37559513 | E26: C/T | F26: 5.86E-03 | G26: C | H26: 14:37559226-37559564 | J26: homo_a1 | K26: C | L26: T | M26: 0.908
A27: rs12989354 | B27: 2 | C27: 85999190 | E27: A/G | F27: 5.92E-03 | G27: A | H27: 2:85998989-85999762 | J27: homo_a1 | K27: G | L27: A | M27: 0.443
A28: rs4150044 | B28: 4 | C28: 78078142 | E28: C/T | F28: 7.71E-03 | G28: T | H28: 4:78077679-78078308 | J28: homo_a0 | K28: C | L28: T | M28: 0.11
A29: rs61859061 | B29: 10 | C29: 71734157 | E29: C/T | F29: 7.72E-03 | G29: T | H29: 10:71734103-71734655 | J29: homo_a0 | K29: C | L29: T | M29: 0.184
A30: rs114400894 | B30: 1 | C30: 95392563 | E30: C/T | F30: 7.76E-03 | G30: C | H30: 1:95392333-95393270 | J30: homo_a0 | K30: C | L30: T | M30: 0.02
A31: rs28637192 | B31: 4 | C31: 7958217 | E31: G/T | F31: 8.89E-03 | G31: T | H31: 4:7957991-7958310 | J31: homo_a0 | K31: G | L31: T | M31: 0.176
A32: rs56406401 | B32: 12 | C32: 109900538 | E32: C/T | F32: 8.96E-03 | G32: C | H32: 12:109900275-109900544 | J32: homo_a1 | K32: T | L32: C | M32: 0.068
A33: rs28364857 | B33: 4 | C33: 113558359 | E33: A/C | F33: 1.05E-02 | G33: A | H33: 4:113558156-113558481 | J33: homo_a0 | K33: C | L33: A | M33: 0.09
A34: rs6697498 | B34: 1 | C34: 86620599 | E34: C/T | F34: 1.06E-02 | G34: T | H34: 1:86620291-86620618 | J34: homo_a1 | K34: T | L34: C | M34: 0.77
A35: rs74806927 | B35: 20 | C35: 49341468 | E35: A/G | F35: 1.20E-02 | G35: G | H35: 20:49341366-49341774 | J35: homo_a0 | K35: G | L35: A | M35: 0.023
A36: rs113996248 | B36: 5 | C36: 177573011 | E36: A/G | F36: 1.27E-02 | G36: A | H36: 5:177572875-177573158 | J36: homo_a0 | K36: A | L36: G | M36: 0.042
A37: rs10423232 | B37: 19 | C37: 17246212 | E37: C/T | F37: 1.28E-02 | G37: T | H37: 19:17246086-17246408 | J37: hetero | K37: T | L37: C | M37: 0.277
A38: rs56753835 | B38: 19 | C38: 10929150 | E38: C/G | F38: 1.42E-02 | G38: G | H38: 19:10929020-10929323 | J38: homo_a0 | K38: G | L38: C | M38: 0.053
A39: rs60546385 | B39: 17 | C39: 2296408 | E39: C/T | F39: 1.44E-02 | G39: T | H39: 17:2296392-2296594 | J39: homo_a0 | K39: C | L39: T | M39: 0.046
A40: rs10415563 | B40: 19 | C40: 44711586 | E40: G/T | F40: 1.56E-02 | G40: G | H40: 19:44711370-44711876 | J40: homo_a0 | K40: G | L40: T | M40: 0.091
A41: rs820216 | B41: 17 | C41: 73689918 | E41: A/G | F41: 1.60E-02 | G41: A | H41: 17:73689779-73690016 | J41: hetero | K41: A | L41: G | M41: 0.352
A42: rs1008076 | B42: 19 | C42: 3968605 | E42: G/T | F42: 1.72E-02 | G42: G | H42: 19:3968602-3968954 | J42: hetero | K42: T | L42: G | M42: 0.423
A43: rs9370171 | B43: 6 | C43: 13509327 | E43: A/T | F43: 1.78E-02 | G43: T | H43: 6:13509185-13509494 | J43: homo_a0 | K43: A | L43: T | M43: 0.195
A44: rs28377130 | B44: 2 | C44: 236079946 | E44: C/T | F44: 1.86E-02 | G44: T | H44: 2:236079246-236080392 | J44: homo_a0 | K44: T | L44: C | M44: 0.163
A45: rs55962869 | B45: 8 | C45: 38034284 | E45: C/T | F45: 1.86E-02 | G45: T | H45: 8:38034173-38034601 | J45: homo_a0 | K45: T | L45: C | M45: 0.159
A46: rs11993015 | B46: 8 | C46: 67036312 | E46: C/T | F46: 1.90E-02 | G46: C | H46: 8:67036215-67036523 | J46: homo_a0 | K46: C | L46: T | M46: 0.025
A47: rs60271600 | B47: 12 | C47: 120632899 | E47: A/G | F47: 1.90E-02 | G47: G | H47: 12:120632513-120633062 | J47: homo_a0 | K47: A | L47: G | M47: 0.152
A48: rs10880253 | B48: 12 | C48: 42538837 | E48: C/T | F48: 1.91E-02 | G48: T | H48: 12:42538658-42539001 | J48: homo_a1 | K48: T | L48: C | M48: 0.655
A49: rs10880254 | B49: 12 | C49: 42538847 | E49: C/G | F49: 2.14E-02 | G49: C | H49: 12:42538658-42539001 | J49: homo_a1 | K49: C | L49: G | M49: 0.655
A50: rs12326073 | B50: 18 | C50: 8794278 | E50: C/T | F50: 2.17E-02 | G50: C | H50: 18:8794259-8794733 | J50: homo_a0 | K50: T | L50: C | M50: 0.18
A51: rs6504249 | B51: 17 | C51: 62676149 | E51: A/G | F51: 2.25E-02 | G51: A | H51: 17:62675832-62676357 | J51: homo_a1 | K51: A | L51: G | M51: 0.806
A52: rs6723177 | B52: 2 | C52: 109150438 | E52: A/G | F52: 2.34E-02 | G52: A | H52: 2:109150258-109150700 | J52: homo_a0 | K52: A | L52: G | M52: 0.042
A53: rs6752157 | B53: 2 | C53: 109150685 | E53: C/T | F53: 2.40E-02 | G53: C | H53: 2:109150258-109150700 | J53: homo_a0 | K53: C | L53: T | M53: 0.042
A54: rs67390008 | B54: 8 | C54: 11338594 | E54: C/T | F54: 2.50E-02 | G54: C | H54: 8:11338536-11338832 | J54: homo_a1 | K54: C | L54: T | M54: 0.437
A55: rs901820 | B55: 3 | C55: 157504534 | E55: C/T | F55: 2.61E-02 | G55: T | H55: 3:157504062-157504659 | J55: hetero | K55: C | L55: T | M55: 0.538
A56: rs1552487 | B56: 3 | C56: 157504375 | E56: G/T | F56: 2.62E-02 | G56: T | H56: 3:157504062-157504659 | J56: hetero | K56: G | L56: T | M56: 0.538
A57: rs9809803 | B57: 3 | C57: 157503091 | E57: A/G | F57: 2.63E-02 | G57: G | H57: 3:157502910-157503366 | J57: hetero | K57: A | L57: G | M57: 0.538
A58: rs9847213 | B58: 3 | C58: 157502930 | E58: C/T | F58: 2.64E-02 | G58: T | H58: 3:157502910-157503366 | J58: hetero | K58: C | L58: T | M58: 0.538
A59: rs1559599 | B59: 6 | C59: 143658343 | E59: C/T | F59: 2.77E-02 | G59: T | H59: 6:143658104-143658361 | J59: homo_a0 | K59: C | L59: T | M59: 0.113
A60: rs17840761 | B60: 9 | C60: 128003979 | E60: A/G | F60: 2.82E-02 | G60: G | H60: 9:128003878-128004126 | J60: homo_a0 | K60: G | L60: A | M60: 0.411
A61: rs11810872 | B61: 1 | C61: 44793667 | E61: A/G | F61: 2.86E-02 | G61: G | H61: 1:44793515-44793864 | J61: homo_a0 | K61: A | L61: G | M61: 0.25
A62: rs13381833 | B62: 18 | C62: 354264 | E62: C/T | F62: 2.91E-02 | G62: T | H62: 18:354169-354321 | J62: hetero | K62: C | L62: T | M62: 0.324
A63: rs391957 | B63: 9 | C63: 128004024 | E63: C/T | F63: 2.93E-02 | G63: T | H63: 9:128003878-128004126 | J63: homo_a0 | K63: T | L63: C | M63: 0.568
A64: rs72716202 | B64: 1 | C64: 86620375 | E64: G/T | F64: 2.97E-02 | G64: G | H64: 1:86620291-86620618 | J64: homo_a0 | K64: T | L64: G | M64: 0.107
A65: rs6827930 | B65: 4 | C65: 57931642 | E65: C/G | F65: 3.01E-02 | G65: C | H65: 4:57931541-57931939 | J65: homo_a0 | K65: G | L65: C | M65: 0.123
A66: rs2411822 | B66: 14 | C66: 65878395 | E66: A/G | F66: 3.11E-02 | G66: A | H66: 14:65878248-65878725 | J66: homo_a1 | K66: A | L66: G | M66: 0.425
A67: rs10262284 | B67: 7 | C67: 138575947 | E67: C/T | F67: 3.12E-02 | G67: C | H67: 7:138575561-138576111 | J67: homo_a1 | K67: T | L67: C | M67: 0.471
A68: rs386867 | B68: 3 | C68: 155394182 | E68: C/G | F68: 3.22E-02 | G68: G | H68: 3:155394073-155394402 | J68: homo_a0 | K68: G | L68: C | M68: 0.282
A69: rs55933859 | B69: 8 | C69: 11749271 | E69: G/T | F69: 3.24E-02 | G69: T | H69: 8:11748942-11749387 | J69: hetero | K69: G | L69: T | M69: 0.278
A70: rs264268 | B70: 18 | C70: 10926135 | E70: A/C | F70: 3.25E-02 | G70: C | H70: 18:10926092-10926318 | J70: homo_a0 | K70: A | L70: C | M70: 0.516
A71: rs55894533 | B71: 8 | C71: 11749242 | E71: A/C | F71: 3.37E-02 | G71: C | H71: 8:11748942-11749387 | J71: hetero | K71: A | L71: C | M71: 0.321
A72: rs61901382 | B72: 11 | C72: 120581323 | E72: A/G | F72: 3.39E-02 | G72: G | H72: 11:120581189-120581531 | J72: homo_a0 | K72: G | L72: A | M72: 0.227
A73: rs10751145 | B73: 11 | C73: 86643351 | E73: A/G | F73: 3.42E-02 | G73: G | H73: 11:86642636-86643476 | J73: homo_a1 | K73: A | L73: G | M73: 0.618
A74: rs2069 | B74: 4 | C74: 170046066 | E74: C/G | F74: 3.44E-02 | G74: C | H74: 4:170045928-170046128 | J74: hetero | K74: G | L74: C | M74: 0.068
A75: rs7948323 | B75: 11 | C75: 86643022 | E75: A/C | F75: 3.49E-02 | G75: A | H75: 11:86642636-86643476 | J75: homo_a1 | K75: C | L75: A | M75: 0.617
A76: rs152876 | B76: 5 | C76: 110848319 | E76: C/G | F76: 3.60E-02 | G76: G | H76: 5:110848019-110848487 | J76: homo_a0 | K76: G | L76: C | M76: 0.091
A77: rs1562181 | B77: 8 | C77: 123770957 | E77: C/T | F77: 3.62E-02 | G77: C | H77: 8:123770595-123771124 | J77: hetero | K77: T | L77: C | M77: 0.492
A78: rs16915403 | B78: 8 | C78: 93978444 | E78: C/G | F78: 3.74E-02 | G78: C | H78: 8:93978437-93978638 | J78: homo_a0 | K78: G | L78: C | M78: 0.188
A79: rs3796222 | B79: 3 | C79: 191048610 | E79: A/C | F79: 3.81E-02 | G79: C | H79: 3:191048334-191048620 | J79: homo_a0 | K79: A | L79: C | M79: 0.068
A80: rs2663098 | B80: 15 | C80: 99559918 | E80: C/T | F80: 3.81E-02 | G80: C | H80: 15:99559838-99560050 | J80: homo_a1 | K80: C | L80: T | M80: 0.768
A81: rs6703793 | B81: 1 | C81: 28696392 | E81: C/G | F81: 4.04E-02 | G81: C | H81: 1:28696306-28696596 | J81: homo_a0 | K81: C | L81: G | M81: 0.216
A82: rs2682314 | B82: 12 | C82: 53268216 | E82: A/G | F82: 4.06E-02 | G82: A | H82: 12:53268174-53268453 | J82: hetero | K82: G | L82: A | M82: 0.73
A83: rs980320 | B83: 3 | C83: 191048522 | E83: A/C | F83: 4.11E-02 | G83: C | H83: 3:191048334-191048620 | J83: homo_a0 | K83: C | L83: A | M83: 0.268
A84: rs980321 | B84: 3 | C84: 191048554 | E84: G/T | F84: 4.15E-02 | G84: T | H84: 3:191048334-191048620 | J84: hetero | K84: T | L84: G | M84: 0.261
A85: rs13355101 | B85: 5 | C85: 110848190 | E85: A/G | F85: 4.16E-02 | G85: A | H85: 5:110848019-110848487 | J85: homo_a0 | K85: G | L85: A | M85: 0.09
A86: rs900865 | B86: 11 | C86: 15729843 | E86: C/G | F86: 4.17E-02 | G86: G | H86: 11:15729570-15729853 | J86: hetero | K86: C | L86: G | M86: 0.471
A87: rs1398356 | B87: 3 | C87: 110308735 | E87: A/C | F87: 4.18E-02 | G87: A | H87: 3:110308568-110308808 | J87: homo_a1 | K87: C | L87: A | M87: 0.634
A88: rs10443 | B88: 14 | C88: 69260290 | E88: C/T | F88: 4.27E-02 | G88: T | H88: 14:69260061-69260292 | J88: homo_a0 | K88: C | L88: T | M88: 0.187
A89: rs2545675 | B89: 5 | C89: 98105191 | E89: C/T | F89: 4.37E-02 | G89: C | H89: 5:98105157-98105400 | J89: homo_a0 | K89: C | L89: T | M89: 0.386
A90: rs115640857 | B90: 5 | C90: 82664231 | E90: A/G | F90: 4.39E-02 | G90: A | H90: 5:82664211-82664460 | J90: homo_a0 | K90: A | L90: G | M90: 0.024
A91: rs3809704 | B91: 17 | C91: 36956337 | E91: A/G | F91: 4.39E-02 | G91: A | H91: 17:36956281-36956428 | J91: homo_a0 | K91: G | L91: A | M91: 0.023
A92: rs17207142 | B92: 19 | C92: 54024078 | E92: C/T | F92: 4.49E-02 | G92: C | H92: 19:54023955-54024157 | J92: homo_a0 | K92: C | L92: T | M92: 0.331
A93: rs6966071 | B93: 7 | C93: 134274397 | E93: C/G | F93: 4.62E-02 | G93: C | H93: 7:134274287-134274631 | J93: homo_a1 | K93: G | L93: C | M93: 0.543
A94: rs2638516 | B94: 12 | C94: 53268217 | E94: A/C | F94: 4.65E-02 | G94: A | H94: 12:53268174-53268453 | J94: hetero | K94: C | L94: A | M94: 0.73
A95: rs867619 | B95: 3 | C95: 46537750 | E95: C/G | F95: 4.71E-02 | G95: C | H95: 3:46537411-46537785 | J95: hetero | K95: C | L95: G | M95: 0.098
A96: rs11210982 | B96: 1 | C96: 44793760 | E96: A/G | F96: 4.74E-02 | G96: G | H96: 1:44793515-44793864 | J96: hetero | K96: G | L96: A | M96: 0.375
A97: rs57274670 | B97: 7 | C97: 150076156 | E97: C/G | F97: 4.74E-02 | G97: G | H97: 7:150076117-150076464 | J97: homo_a1 | K97: G | L97: C | M97: 0.317
A98: rs4663540 | B98: 2 | C98: 234259470 | E98: A/G | F98: 4.95E-02 | G98: G | H98: 2:234259372-234259650 | J98: hetero | K98: A | L98: G | M98: 0.637
A99: rs7160841 | B99: 14 | C99: 37414154 | E99: C/T | F99: 4.98E-02 | G99: T | H99: 14:37413888-37414189 | J99: homo_a1 | K99: T | L99: C | M99: 0.886
A100: rs76411650 | B100: 1 | C100: 95393198 | E100: A/C | F100: 5.09E-02 | G100: C | H100: 1:95392333-95393270 | J100: homo_a0 | K100: C | L100: A | M100: 0.045
A101: rs13412823 | B101: 2 | C101: 191399128 | E101: C/G | F101: 5.12E-02 | G101: G | H101: 2:191399091-191399462 | J101: homo_a0 | K101: G | L101: C | M101: 0.113
A102: rs35495496 | B102: 19 | C102: 54023978 | E102: C/G | F102: 5.15E-02 | G102: C | H102: 19:54023955-54024157 | J102: homo_a0 | K102: C | L102: G | M102: 0.331
A103: rs115445502 | B103: 1 | C103: 95392588 | E103: C/T | F103: 5.16E-02 | G103: C | H103: 1:95392333-95393270 | J103: homo_a0 | K103: C | L103: T | M103: 0.045
A104: rs34859319 | B104: 19 | C104: 54023957 | E104: A/G | F104: 5.18E-02 | G104: A | H104: 19:54023955-54024157 | J104: homo_a0 | K104: A | L104: G | M104: 0.331
A105: rs77757573 | B105: 7 | C105: 6362821 | E105: G/T | F105: 5.19E-02 | G105: T | H105: 7:6362719-6363022 | J105: homo_a0 | K105: G | L105: T | M105: 0.068
A106: rs78304177 | B106: 7 | C106: 6362791 | E106: G/T | F106: 5.20E-02 | G106: G | H106: 7:6362719-6363022 | J106: homo_a0 | K106: T | L106: G | M106: 0.068
A107: rs13412835 | B107: 2 | C107: 191399156 | E107: A/G | F107: 5.29E-02 | G107: G | H107: 2:191399091-191399462 | J107: homo_a0 | K107: G | L107: A | M107: 0.113
A108: rs6768217 | B108: 3 | C108: 143046193 | E108: G/T | F108: 5.34E-02 | G108: T | H108: 3:143046124-143046485 | J108: homo_a0 | K108: G | L108: T | M108: 0.223
A109: rs6966193 | B109: 7 | C109: 134274420 | E109: A/G | F109: 5.36E-02 | G109: A | H109: 7:134274287-134274631 | J109: homo_a1 | K109: G | L109: A | M109: 0.543
A110: rs6966210 | B110: 7 | C110: 134274466 | E110: A/G | F110: 5.37E-02 | G110: A | H110: 7:134274287-134274631 | J110: homo_a1 | K110: G | L110: A | M110: 0.543
A111: rs6965986 | B111: 7 | C111: 134274593 | E111: A/G | F111: 5.37E-02 | G111: G | H111: 7:134274287-134274631 | J111: homo_a1 | K111: A | L111: G | M111: 0.543
A112: rs9547845 | B112: 13 | C112: 37978303 | E112: A/C | F112: 5.41E-02 | G112: A | H112: 13:37978060-37978464 | J112: homo_a1 | K112: C | L112: A | M112: 0.659
A113: rs9547846 | B113: 13 | C113: 37978338 | E113: C/G | F113: 5.41E-02 | G113: G | H113: 13:37978060-37978464 | J113: homo_a1 | K113: C | L113: G | M113: 0.659
A114: rs7945275 | B114: 11 | C114: 86642888 | E114: A/G | F114: 5.47E-02 | G114: G | H114: 11:86642636-86643476 | J114: homo_a1 | K114: A | L114: G | M114: 0.598
A115: rs17446942 | B115: 2 | C115: 201153744 | E115: A/G | F115: 5.50E-02 | G115: A | H115: 2:201153472-201153885 | J115: homo_a0 | K115: G | L115: A | M115: 0.091
A116: rs2682318 | B116: 12 | C116: 53265475 | E116: C/T | F116: 5.55E-02 | G116: C | H116: 12:53265165-53265582 | J116: hetero | K116: T | L116: C | M116: 0.758
A117: rs6948014 | B117: 7 | C117: 134274486 | E117: C/T | F117: 5.62E-02 | G117: C | H117: 7:134274287-134274631 | J117: homo_a1 | K117: T | L117: C | M117: 0.543
A118: rs7100870 | B118: 10 | C118: 96122826 | E118: C/T | F118: 5.67E-02 | G118: C | H118: 10:96122762-96123001 | J118: homo_a0 | K118: C | L118: T | M118: 0.238
A119: rs17824426 | B119: 10 | C119: 112168369 | E119: A/G | F119: 5.69E-02 | G119: G | H119: 10:112168026-112168669 | J119: hetero | K119: G | L119: A | M119: 0.364
A120: rs2236936 | B120: 2 | C120: 102443821 | E120: C/G | F120: 5.79E-02 | G120: C | H120: 2:102443695-102443993 | J120: hetero | K120: C | L120: G | M120: 0.685
A121: rs2113627 | B121: 7 | C121: 6362942 | E121: A/C | F121: 5.80E-02 | G121: A | H121: 7:6362719-6363022 | J121: homo_a0 | K121: C | L121: A | M121: 0.072
A122: rs11642603 | B122: 16 | C122: 30886221 | E122: C/G | F122: 5.88E-02 | G122: C | H122: 16:30886120-30886363 | J122: homo_a0 | K122: C | L122: G | M122: 0.068
A123: rs920262 | B123: 2 | C123: 20019616 | E123: A/G | F123: 5.95E-02 | G123: G | H123: 2:20019213-20019685 | J123: homo_a0 | K123: A | L123: G | M123: 0.069
A124: rs77788856 | B124: 2 | C124: 233891343 | E124: C/T | F124: 6.11E-02 | G124: C | H124: 2:233891215-233891449 | J124: homo_a0 | K124: C | L124: T | M124: 0.043
A125: rs76819209 | B125: 3 | C125: 120215371 | E125: C/G | F125: 6.23E-02 | G125: G | H125: 3:120215193-120215741 | J125: homo_a0 | K125: C | L125: G | M125: 0.028
A126: rs76657518 | B126: 3 | C126: 120215654 | E126: A/G | F126: 6.23E-02 | G126: G | H126: 3:120215193-120215741 | J126: homo_a0 | K126: A | L126: G | M126: 0.028
A127: rs7253533 | B127: 19 | C127: 44711623 | E127: C/T | F127: 6.29E-02 | G127: C | H127: 19:44711370-44711876 | J127: homo_a0 | K127: C | L127: T | M127: 0.548
A128: rs55982265 | B128: 7 | C128: 100399802 | E128: C/T | F128: 6.31E-02 | G128: C | H128: 7:100399764-100400312 | J128: homo_a0 | K128: C | L128: T | M128: 0.079
A129: rs12609819 | B129: 19 | C129: 56915621 | E129: A/G | F129: 6.40E-02 | G129: A | H129: 19:56915436-56915911 | J129: hetero | K129: G | L129: A | M129: 0.603
A130: rs9788865 | B130: 16 | C130: 31009588 | E130: C/T | F130: 6.40E-02 | G130: T | H130: 16:31009549-31009901 | J130: homo_a1 | K130: C | L130: T | M130: 0.756
A131: rs10813831 | B131: 9 | C131: 32526146 | E131: A/G | F131: 6.44E-02 | G131: A | H131: 9:32526065-32526744 | J131: homo_a0 | K131: G | L131: A | M131: 0.217
A132: rs1563955 | B132: 1 | C132: 75545757 | E132: C/G | F132: 6.45E-02 | G132: C | H132: 1:75545394-75546077 | J132: homo_a0 | K132: C | L132: G | M132: 0.182
A133: rs6899242 | B133: 5 | C133: 71161099 | E133: A/G | F133: 6.46E-02 | G133: G | H133: 5:71161092-71161305 | J133: homo_a1 | K133: G | L133: A | M133: 0.703
A134: rs59098173 | B134: 9 | C134: 38026225 | E134: C/T | F134: 6.53E-02 | G134: T | H134: 9:38025993-38026297 | J134: hetero | K134: T | L134: C | M134: 0.329
A135: rs7320117 | B135: 13 | C135: 26742689 | E135: A/G | F135: 6.55E-02 | G135: A | H135: 13:26742655-26742890 | J135: hetero | K135: A | L135: G | M135: 0.071
A136: rs1006802 | B136: 4 | C136: 26237157 | E136: A/G | F136: 6.59E-02 | G136: A | H136: 4:26237156-26237364 | J136: homo_a0 | K136: A | L136: G | M136: 0.259
A137: rs6853315 | B137: 4 | C137: 48362577 | E137: C/T | F137: 6.90E-02 | G137: T | H137: 4:48362528-48362847 | J137: homo_a0 | K137: C | L137: T | M137: 0.228
A138: rs56410307 | B138: 1 | C138: 172466731 | E138: C/T | F138: 6.94E-02 | G138: C | H138: 1:172466416-172466811 | J138: hetero | K138: T | L138: C | M138: 0.334
A139: rs2113628 | B139: 7 | C139: 6362978 | E139: A/C | F139: 6.94E-02 | G139: A | H139: 7:6362719-6363022 | J139: homo_a0 | K139: C | L139: A | M139: 0.068
A140: rs2638515 | B140: 12 | C140: 53268289 | E140: C/T | F140: 7.08E-02 | G140: T | H140: 12:53268174-53268453 | J140: homo_a0 | K140: C | L140: T | M140: 0.021
A141: rs2014530 | B141: 22 | C141: 44757071 | E141: C/T | F141: 7.10E-02 | G141: T | H141: 22:44756893-44757160 | J141: homo_a1 | K141: C | L141: T | M141: 0.477
A142: rs2296751 | B142: 9 | C142: 93881354 | E142: G/T | F142: 7.16E-02 | G142: T | H142: 9:93881326-93881861 | J142: homo_a0 | K142: T | L142: G | M142: 0.114
A143: rs4335589 | B143: 12 | C143: 115570259 | E143: C/T | F143: 7.16E-02 | G143: C | H143: 12:115570006-115570308 | J143: homo_a0 | K143: C | L143: T | M143: 0.163
A144: rs4435145 | B144: 13 | C144: 47982805 | E144: A/G | F144: 7.18E-02 | G144: A | H144: 13:47982760-47982963 | J144: homo_a0 | K144: G | L144: A | M144: 0.467
A145: rs5759770 | B145: 22 | C145: 23743499 | E145: A/C | F145: 7.18E-02 | G145: C | H145: 22:23743338-23743589 | J145: homo_a1 | K145: A | L145: C | M145: 0.905
A146: rs10099711 | B146: 8 | C146: 134372731 | E146: G/T | F146: 7.36E-02 | G146: G | H146: 8:134372455-134372811 | J146: hetero | K146: G | L146: T | M146: 0.122
A147: rs387344 | B147: 13 | C147: 111152478 | E147: A/C | F147: 7.40E-02 | G147: C | H147: 13:111152236-111152609 | J147: homo_a1 | K147: A | L147: C | M147: 0.622
A148: rs12440026 | B148: 15 | C148: 70787501 | E148: C/T | F148: 7.48E-02 | G148: T | H148: 15:70787337-70787546 | J148: homo_a0 | K148: C | L148: T | M148: 0.671
A149: rs13412879 | B149: 2 | C149: 191399378 | E149: C/G | F149: 7.49E-02 | G149: C | H149: 2:191399091-191399462 | J149: homo_a0 | K149: C | L149: G | M149: 0.113
A150: rs34777901 | B150: 19 | C150: 17246172 | E150: C/T | F150: 7.53E-02 | G150: C | H150: 19:17246086-17246408 | J150: hetero | K150: C | L150: T | M150: 0.272
A151: rs2282409 | B151: 13 | C151: 25086526 | E151: A/G | F151: 7.56E-02 | G151: A | H151: 13:25086422-25087115 | J151: hetero | K151: G | L151: A | M151: 0.501
A152: rs11901125 | B152: 2 | C152: 75755389 | E152: C/T | F152: 7.56E-02 | G152: C | H152: 2:75755370-75755612 | J152: homo_a0 | K152: C | L152: T | M152: 0.044
A153: rs6681644 | B153: 1 | C153: 55353082 | E153: C/G | F153: 7.72E-02 | G153: C | H153: 1:55353014-55353282 | J153: hetero | K153: C | L153: G | M153: 0.456
A154: rs886449 | B154: 19 | C154: 2186237 | E154: A/G | F154: 7.75E-02 | G154: A | H154: 19:2186111-2186374 | J154: homo_a0 | K154: G | L154: A | M154: 0.182
A155: rs75052796 | B155: 9 | C155: 94811800 | E155: C/T | F155: 7.83E-02 | G155: C | H155: 9:94811535-94811829 | J155: homo_a0 | K155: C | L155: T | M155: 0.022
A156: rs79028285 | B156: 4 | C156: 124570854 | E156: A/G | F156: 7.87E-02 | G156: A | H156: 4:124570815-124571310 | J156: homo_a0 | K156: G | L156: A | M156: 0.023
A157: rs1546264 | B157: 1 | C157: 19775566 | E157: A/G | F157: 8.22E-02 | G157: A | H157: 1:19775114-19775743 | J157: homo_a0 | K157: G | L157: A | M157: 0.19
A158: rs77688371 | B158: 1 | C158: 188458641 | E158: A/C | F158: 8.22E-02 | G158: A | H158: 1:188458607-188458873 | J158: homo_a0 | K158: A | L158: C | M158: 0.093
A159: rs75303102 | B159: 2 | C159: 100873034 | E159: C/T | F159: 8.31E-02 | G159: C | H159: 2:100872951-100873187 | J159: homo_a0 | K159: C | L159: T | M159: 0.227
A160: rs12619125 | B160: 2 | C160: 191399201 | E160: A/G | F160: 8.34E-02 | G160: A | H160: 2:191399091-191399462 | J160: hetero | K160: G | L160: A | M160: 0.225
A161: rs6822930 | B161: 4 | C161: 5447833 | E161: A/G | F161: 8.36E-02 | G161: G | H161: 4:5447642-5447966 | J161: homo_a0 | K161: A | L161: G | M161: 0.09
A162: rs6846344 | B162: 4 | C162: 5447721 | E162: C/T | F162: 8.38E-02 | G162: T | H162: 4:5447642-5447966 | J162: homo_a0 | K162: C | L162: T | M162: 0.09
A163: rs4528519 | B163: 15 | C163: 67054949 | E163: A/G | F163: 8.45E-02 | G163: G | H163: 15:67054693-67055035 | J163: hetero | K163: G | L163: A | M163: 0.569
A164: rs12610115 | B164: 19 | C164: 56915855 | E164: A/C | F164: 8.52E-02 | G164: A | H164: 19:56915436-56915911 | J164: hetero | K164: C | L164: A | M164: 0.522
A165: rs75128576 | B165: 18 | C165: 10926214 | E165: G/T | F165: 8.78E-02 | G165: T | H165: 18:10926092-10926318 | J165: homo_a0 | K165: G | L165: T | M165: 0.126
A166: rs28378376 | B166: 8 | C166: 15398245 | E166: A/G | F166: 8.80E-02 | G166: A | H166: 8:15398073-15398436 | J166: homo_a0 | K166: G | L166: A | M166: 0.045
A167: rs12445479 | B167: 16 | C167: 9184894 | E167: A/C | F167: 8.83E-02 | G167: C | H167: 16:9184676-9185155 | J167: hetero | K167: A | L167: C | M167: 0.341
A168: rs6596224 | B168: 5 | C168: 134774384 | E168: C/T | F168: 8.94E-02 | G168: T | H168: 5:134773831-134774389 | J168: homo_a1 | K168: T | L168: C | M168: 0.727
A169: rs11854425 | B169: 15 | C169: 63233281 | E169: C/G | F169: 8.99E-02 | G169: C | H169: 15:63233187-63233480 | J169: homo_a0 | K169: G | L169: C | M169: 0.023
A170: rs1398357 | B170: 3 | C170: 110308651 | E170: C/T | F170: 9.00E-02 | G170: T | H170: 3:110308568-110308808 | J170: hetero | K170: C | L170: T | M170: 0.546
A171: rs79054139 | B171: 13 | C171: 36287192 | E171: C/T | F171: 9.07E-02 | G171: T | H171: 13:36287144-36287378 | J171: homo_a1 | K171: C | L171: T | M171: 0.313
A172: rs616822 | B172: 18 | C172: 59685558 | E172: A/C | F172: 9.11E-02 | G172: A | H172: 18:59685434-59685656 | J172: hetero | K172: A | L172: C | M172: 0.568
A173: rs2277463 | B173: 14 | C173: 101539762 | E173: A/G | F173: 9.19E-02 | G173: G | H173: 14:101539581-101539789 | J173: homo_a0 | K173: A | L173: G | M173: 0.433
A174: rs7018915 | B174: 9 | C174: 132245487 | E174: C/T | F174: 9.22E-02 | G174: C | H174: 9:132244994-132245554 | J174: hetero | K174: C | L174: T | M174: 0.199
A175: rs11872553 | B175: 18 | C175: 19320823 | E175: A/G | F175: 9.32E-02 | G175: G | H175: 18:19320518-19321197 | J175: homo_a0 | K175: G | L175: A | M175: 0.118
A176: rs7673927 | B176: 4 | C176: 138813309 | E176: C/G | F176: 9.37E-02 | G176: G | H176: 4:138813291-138813670 | J176: homo_a0 | K176: C | L176: G | M176: 0.698
A177: rs79379262 | B177: 9 | C177: 95896081 | E177: A/G | F177: 9.43E-02 | G177: A | H177: 9:95895864-95896113 | J177: homo_a0 | K177: G | L177: A | M177: 0.084
A178: rs34100029 | B178: 10 | C178: 81923598 | E178: C/G | F178: 9.43E-02 | G178: G | H178: 10:81923413-81924092 | J178: homo_a0 | K178: C | L178: G | M178: 0.182
A179: rs10466226 | B179: 10 | C179: 81924055 | E179: A/G | F179: 9.43E-02 | G179: G | H179: 10:81923413-81924092 | J179: homo_a0 | K179: A | L179: G | M179: 0.182
A180: rs2274351 | B180: 10 | C180: 104264107 | E180: C/T | F180: 9.44E-02 | G180: T | H180: 10:104263634-104264201 | J180: hetero | K180: C | L180: T | M180: 0.492
A181: rs35768130 | B181: 5 | C181: 6704551 | E181: C/T | F181: 9.62E-02 | G181: T | H181: 5:6704534-6704918 | J181: hetero | K181: C | L181: T | M181: 0.281
A182: rs2282410 | B182: 13 | C182: 25086528 | E182: G/T | F182: 9.70E-02 | G182: T | H182: 13:25086422-25087115 | J182: hetero | K182: G | L182: T | M182: 0.365
A183: rs13074161 | B183: 3 | C183: 73776786 | E183: C/G | F183: 9.81E-02 | G183: G | H183: 3:73776707-73776956 | J183: homo_a1 | K183: C | L183: G | M183: 0.787
A184: rs12326614 | B184: 18 | C184: 8794513 | E184: A/G | F184: 9.88E-02 | G184: A | H184: 18:8794259-8794733 | J184: homo_a0 | K184: G | L184: A | M184: 0.397
A185: rs6540978 | B185: 1 | C185: 11539056 | E185: C/T | F185: 1.01E-01 | G185: C | H185: 1:11538912-11539165 | J185: homo_a0 | K185: T | L185: C | M185: 0.486
A186: rs34148644 | B186: 10 | C186: 81923456 | E186: C/G | F186: 1.01E-01 | G186: C | H186: 10:81923413-81924092 | J186: homo_a0 | K186: G | L186: C | M186: 0.159
A187: rs2279469 | B187: 1 | C187: 164740405 | E187: C/G | F187: 1.01E-01 | G187: G | H187: 1:164740386-164740754 | J187: homo_a1 | K187: G | L187: C | M187: 0.499
A188: rs115679154 | B188: 10 | C188: 72142344 | E188: A/G | F188: 1.02E-01 | G188: A | H188: 10:72142242-72142711 | J188: homo_a0 | K188: G | L188: A | M188: 0.045
A189: rs61903827 | B189: 11 | C189: 86643069 | E189: A/G | F189: 1.02E-01 | G189: A | H189: 11:86642636-86643476 | J189: homo_a0 | K189: G | L189: A | M189: 0.094
A190: rs66538825 | B190: 1 | C190: 68919155 | E190: A/G | F190: 1.03E-01 | G190: A | H190: 1:68919088-68919361 | J190: homo_a0 | K190: A | L190: G | M190: 0.045
A191: rs76838269 | B191: 2 | C191: 232469455 | E191: A/G | F191: 1.03E-01 | G191: G | H191: 2:232469182-232469712 | J191: homo_a0 | K191: A | L191: G | M191: 0.455
A192: rs453435 | B192: 22 | C192: 18455621 | E192: A/G | F192: 1.04E-01 | G192: A | H192: 22:18455570-18455848 | J192: hetero | K192: A | L192: G | M192: 0.356
A193: rs12673319 | B193: 7 | C193: 134278968 | E193: C/G | F193: 1.04E-01 | G193: C | H193: 7:134278795-134279055 | J193: homo_a1 | K193: G | L193: C | M193: 0.553
A194: rs986046 | B194: 8 | C194: 127845702 | E194: A/G | F194: 1.05E-01 | G194: A | H194: 8:127845669-127846356 | J194: homo_a0 | K194: A | L194: G | M194: 0.193
A195: rs3828865 | B195: 6 | C195: 16684154 | E195: A/G | F195: 1.05E-01 | G195: G | H195: 6:16684038-16684243 | J195: homo_a1 | K195: A | L195: G | M195: 0.84
A196: rs1027989 | B196: 8 | C196: 56814421 | E196: C/G | F196: 1.05E-01 | G196: G | H196: 8:56814350-56814565 | J196: homo_a1 | K196: G | L196: C | M196: 0.932
A197: rs66798099 | B197: 10 | C197: 5638178 | E197: A/C | F197: 1.07E-01 | G197: A | H197: 10:5638010-5638357 | J197: homo_a0 | K197: C | L197: A | M197: 0.158
A198: rs12762098 | B198: 10 | C198: 81923959 | E198: C/G | F198: 1.08E-01 | G198: C | H198: 10:81923413-81924092 | J198: homo_a0 | K198: G | L198: C | M198: 0.068
A199: rs12438200 | B199: 15 | C199: 70785175 | E199: A/C | F199: 1.09E-01 | G199: C | H199: 15:70785092-70785360 | J199: homo_a0 | K199: A | L199: C | M199: 0.672
A200: rs62150070 | B200: 2 | C200: 72343098 | E200: C/T | F200: 1.11E-01 | G200: T | H200: 2:72342506-72343319 | J200: hetero | K200: C | L200: T | M200: 0.235
... 1368 more rows

Sheet Suplementary Table S14
A1: Supplementary Table S14: SNPs within hc-peaks with allele-specific TFAP2A binding
J2: Analysis for allele-specific TF binding with ABC | W2: Location of overlapping chromatin marks in CS15 craniofacial tissued
A3: SNP information | G3: Association information (nsCL/P GWAS meta-analysis) | J3: ChIP-seq read counts | M3: Allele Abundance in ChIP-seq reads | T3: p-values for allele-specific TF binding | W3: DNase1 hypersensitivity regions | Z3: H3K27ac peaks | AC3: Location of overlapping TFAP2A binding sites in HeLa S3 cellse
A4: rsID | B4: Chromosome | C4: Position (hg19) | D4: Reference Allele | E4: Observed Alleles | G4: Meta all p-value | H4: Meta all allele | J4: Total no. Reads Replicate 1a | K4: Total no. Reads Replicate 2a | M4: Allele 0 (a0) | N4: Frequency a0 Replicate 1b | O4: Frequency a0 Replicate 2b | P4: Allele 1 (a1) | Q4: Frequency a1 Replicate 1b | R4: Frequency a1 Replicate 2b | T4: p-valuec Replicate 1 | U4: p-valuec Replicate 2 | W4: Start | X4: End | Z4: Start | AA4: End | AC4: Start | AD4: End | AF4: Putative target genesf (distance in Peak to TSS in bp)
A5: rs77019002 | B5: 3 | C5: 66789618 | D5: C | E5: C G | G5: 1.43E-01 | H5: G | J5: 36 | K5: 31 | M5: C | N5: 0.83 | O5: 0.77 | P5: G | Q5: 0.17 | R5: 0.23 | T5: 3.33E-03 | U5: 6.96E-05 | W5: 66788900 | X5: 66789725 | Z5: 66788325 | AA5: 66791250 | AC5: None | AF5: KBTBD8 (-259113), LRIG1 (-238263)
A6: rs28653581 | B6: 4 | C6: 68567025 | D6: T | E6: G T | G6: 5.77E-01 | H6: T | J6: 33 | K6: 28 | M6: T | N6: 0.97 | O6: 1 | P6: G | Q6: 0.03 | R6: 0 | T6: 7.45E-09 | U6: 7.92E-09 | W6: 68565775 | X6: 68567500 | Z6: 68565275 | AA6: 68568000 | AC6: 68566531 | AD6: 68567061 | AF6: UBA6 (-129)
A7: rs12054903 | B7: 5 | C7: 178069682 | D7: A | E7: A T | G7: 3.62E-01 | H7: T | J7: 82 | K7: 82 | M7: A | N7: 0.07 | O7: 0.22 | P7: T | Q7: 0.93 | R7: 0.78 | T7: 3.32E-07 | U7: 1.57E-16 | W7: 178069400 | X7: 178069925 | Z7: None | AC7: 178069424 | AD7: 178069954 | AF7: CLK4 (-15568), ZNF354A (+88021)
A8: rs6865775 | B8: 5 | C8: 178069708 | D8: A | E8: A G | G8: 1.18E-01 | H8: G | J8: 85 | K8: 91 | M8: A | N8: 0.07 | O8: 0.26 | P8: G | Q8: 0.93 | R8: 0.74 | T8: 7.35E-06 | U8: 2.44E-17 | W8: 178069400 | X8: 178069925 | Z8: None | AC8: 178069424 | AD8: 178069954 | AF8: CLK4 (-15594), ZNF354A (+87995)
A9: rs2273129 | B9: 6 | C9: 88182439 | D9: T | E9: C T | G9: 5.43E-01 | H9: C | J9: 42 | K9: 36 | M9: T | N9: 0.02 | O9: 0.17 | P9: C | Q9: 0.98 | R9: 0.83 | T9: 6.96E-05 | U9: 1.96E-11 | W9: 88182150 | X9: 88183600 | Z9: 88181800 | AA9: 88183825 | AC9: 88182222 (88182422) | AD9: 88182752 (88182952) | AF9: SLC35A1 (-256)
A10: rs4736916 | B10: 8 | C10: 40951506 | D10: A | E10: A T | G10: 6.37E-01 | H10: A | J10: 51 | K10: 63 | M10: A | N10: 1 | O10: 0.95 | P10: T | Q10: 0 | R10: 0.05 | T10: 9.05E-15 | U10: 8.88E-16 | W10: 40951350 | X10: 40951825 | Z10: 40949600 | AA10: 40952050 | AC10: None | AF10: ZMAT4 (-196163), SFRP1 (+215510)
A11: rs12423604 | B11: 12 | C11: 46548273 | D11: T | E11: C T | G11: 6.30E-01 | H11: T | J11: 113 | K11: 83 | M11: T | N11: 0.72 | O11: 0.66 | P11: C | Q11: 0.28 | R11: 0.34 | T11: 4.04E-03 | U11: 4.55E-06 | W11: 46547925 | X11: 46548300 | Z11: 46541175 | AA11: 46549150 | AC11: None | AF11: SCAF11 (-163926), SLC38A1 (+114522)
A12: rs9513585 | B12: 13 | C12: 99881582 | D12: A | E12: A C | G12: 2.12E-01 | H12: C | J12: 20 | K12: 20 | M12: A | N12: 0.85 | O12: 0.83 | P12: C | Q12: 0.15 | R12: 0.17 | T12: 7.54E-03 | U12: 2.58E-03 | W12: None | Z12: None | AC12: None | AF12: UBAC2 (+28555), GPR18 (+32416)
A13: rs35911108 | B13: 15 | C13: 75322179 | D13: G | E13: A G | G13: 8.50E-01 | H13: A | J13: 63 | K13: 48 | M13: G | N13: 1 | O13: 0.96 | P13: A | Q13: 0 | R13: 0.04 | T13: 8.36E-12 | U13: 2.17E-19 | W13: 75321575 | X13: 75322775 | Z13: 75321175 | AA13: 75324675 | AC13: 75321930 | AD13: 75322460 | AF13: C15orf39 (-169054), PPCDC (+6284)
A14: rs76501907 | B14: 16 | C14: 11065573 | D14: A | E14: A G | G14: 1.29E-01 | H14: A | J14: 50 | K14: 75 | M14: A | N14: 0.78 | O14: 0.68 | P14: G | Q14: 0.22 | R14: 0.32 | T14: 2.44E-03 | U14: 9.02E-05 | W14: 11065300 | X14: 11065950 | Z14: 11065075 | AA14: 11068650 | AC14: 11065435 | AD14: 11065965 | AF14: CLEC16A (+27229), SOCS1 (+284463)
A15: rs8044997 | B15: 16 | C15: 73439953 | D15: T | E15: C T | G15: 1.86E-01 | H15: C | J15: 32 | K15: 33 | M15: T | N15: 0 | O15: 0.18 | P15: C | Q15: 1 | R15: 0.82 | T15: 3.24E-04 | U15: 4.66E-10 | W15: 73439825 | X15: 73440150 | Z15: 73434175 | AA15: 73440575 | AC15: None | AF15: PSMD7 (-890720), ZFHX3 (-357680)
A16: rs616822 | B16: 18 | C16: 59685558 | D16: A | E16: A C | G16: 9.11E-02 | H16: A | J16: 71 | K16: 59 | M16: A | N16: 0.07 | O16: 0.03 | P16: C | Q16: 0.93 | R16: 0.97 | T16: 6.14E-15 | U16: 1.19E-14 | W16: 59684950 | X16: 59686050 | Z16: 59684525 | AA16: 59687325 | AC16: None | AF16: RNF152 (-124567), PIGN (+168699)
A17: rs55928920 | B17: 18 | C17: 61637974 | D17: C | E17: C T | G17: 6.53E-01 | H17: T | J17: 37 | K17: 60 | M17: C | N17: 0.24 | O17: 0.32 | P17: T | Q17: 0.76 | R17: 0.68 | T17: 6.22E-03 | U17: 2.56E-03 | W17: 61636925 | X17: 61638725 | Z17: 61636650 | AA17: 61639025 | AC17: 61637789 (61637854) | AD17: 61638064 (61638384) | AF17: SERPINB8 (+816)
A18: rs59304044 | B18: 21 | C18: 20128691 | D18: C | E18: C G | G18: 4.93E-01 | H18: C | J18: 30 | K18: 29 | M18: C | N18: 1 | O18: 0.93 | P18: G | Q18: 0 | R18: 0.07 | T18: 1.62E-06 | U18: 1.86E-09 | W18: None | Z18: None | AC18: 20128681 | AD18: 20128894 | AF18: TMPRSS15 (-352719)
A19: rs13050557 | B19: 21 | C19: 20128739 | D19: A | E19: A G | G19: 2.27E-01 | H19: A | J19: 69 | K19: 53 | M19: A | N19: 0.97 | O19: 0.89 | P19: G | Q19: 0.03 | R19: 0.11 | T19: 5.81E-09 | U19: 8.19E-18 | W19: None | Z19: None | AC19: 20128681 | AD19: 20128894 | AF19: TMPRSS15 (-352767)
A20: rs59149575 | B20: 21 | C20: 20128747 | D20: T | E20: A T | G20: 5.04E-01 | H20: T | J20: 69 | K20: 53 | M20: T | N20: 0.97 | O20: 0.89 | P20: A | Q20: 0.03 | R20: 0.11 | T20: 5.81E-09 | U20: 8.19E-18 | W20: None | Z20: None | AC20: 20128681 | AD20: 20128894 | AF20: TMPRSS15 (-352775)
A21: rs57720704 | B21: 21 | C21: 20128757 | D21: T | E21: C T | G21: 5.07E-01 | H21: T | J21: 74 | K21: 52 | M21: T | N21: 0.97 | O21: 0.88 | P21: C | Q21: 0.03 | R21: 0.12 | T21: 1.03E-08 | U21: 2.94E-19 | W21: 20128750 | X21: 20128850 | Z21: None | AC21: 20128681 | AD21: 20128894 | AF21: TMPRSS15 (-352785)
A22: rs8128604 | B22: 21 | C22: 20128840 | D22: G | E22: G T | G22: 4.25E-01 | H22: G | J22: 59 | K22: 43 | M22: G | N22: 1 | O22: 0.95 | P22: T | Q22: 0 | R22: 0.05 | T22: 2.15E-10 | U22: 3.47E-18 | W22: 20128750 | X22: 20128850 | Z22: None | AC22: 20128681 | AD22: 20128894 | AF22: TMPRSS15 (-352868)
A24: a - Total number of ChIP-seq reads for each respective SNP in both replicates
A25: b - Allele frequencies calculated based on ChIP-seq reads of both replicates
A26: c - Binomial p-values calculated with ABC
A27: d - DNase1 hypersensitivity sites and H3K27ac chromatin marks, indicating active regulatory regions, in CS15 craniofacial tissue [34]
A28: e - TFAP2A binding sites in HeLa S3 cells by ChIP-seq data from ENCODE [32]. Counted if hc-peak overlapped ≥ 0.5 of HeLa S3 Peak
A29: f - Putative downstream target genes of hc-peaks assigned with GREAT (association rules described in methods)

Sheet Supplementary Table S15
A1: Supplementary Table S15: References and online aviability of data and tools employed in the project workflow
A2: Data/Tool | B2: Name | C2: Reference | D2: URL
A3: 1000 genomes phase 3 GRCh37/hg19 | B3: - | C3: - | D3: ftp://ftp.1000genomes.ebi.ac.uk/vol1/ftp/phase3/data
A4: ABC | B4: 1.3 | C4: Bailey et al. 2015 (PMID:25995231) | D4: https://github.com/mlupien/ABC
A5: BBMap | B5: 37.44 | C5: - | D5: https://jgi.doe.gov/data-and-tools/bbtools/bb-tools-user-guide/bbmap-guide/
A6: BEDtools | B6: 2.27.0 | C6: Quinlin et al. 2010 (PMID:20110278) | D6: https://bedtools.readthedocs.io/en/latest/
A7: BioVenn | B7: 2020 | C7: Hulsen et al. 2008 (PMID:18925949) | D7: http://www.biovenn.nl/
A8: Bowtie2 | B8: 2.3.4 | C8: Langmead et al. 2012 (PMID:22388286) | D8: http://bowtie-bio.sourceforge.net/bowtie2/index.shtml
A9: Cutadapt | B9: 1.15 | C9: - | D9: https://cutadapt.readthedocs.io/en/stable/
A10: ENCODE blacklist regions annotation set | B10: - | C10: Carroll et al. 2014 (PMID:24782889) | D10: https://www.encodeproject.org/annotations/ENCSR636HFF/
A11: ENCODE TFAP2A ChIP-seq (HeLa S3): | B11: - | C11: Gerstein et al. 2012 (PMID:22955619) | D11: http://genome.ucsc.edu/cgi-bin/hgc?hgsid=841326309_c5SJS0et5CkAz0ECYCAcXbjSLmTK&c=chrX&l=15578260&r=15621068&o=15597944&t=15598474&g=wgEncodeRegTfbsClusteredV3&i=TFAP2AC
A12: Ensembl Human GRCh37.p13 | B12: - | C12: - | D12: https://grch37.ensembl.org/Homo_sapiens/Info/Index
A13: Epigenomic Atlas of Human Craniofacial Development | B13: - | C13: Wilderman et al. 2018 (PMID: 29719267) | D13: https://cotney.research.uchc.edu/craniofacial/
A14: FastQC | B14: 0.11.7 | C14: - | D14: https://github.com/s-andrews/FastQC
A15: featureCounts | B15: 1.5.1 | C15: Liao et al. 2014 (PMID:24227677) | D15: http://subread.sourceforge.net/
A16: GRCh37/hg19 reference genome | B16: - | C16: - | D16: https://www.ncbi.nlm.nih.gov/assembly/GCF_000001405.13/
A17: GREAT | B17: 4.0.4 | C17: McLean et al. 2010 (PMID:20436461) | D17: http://great.stanford.edu/public/html/
A18: IGV | B18: 2.4.6 | C18: Robinson et al. 2011 (PMID:21221095) | D18: https://software.broadinstitute.org/software/igv/
A19: IMPUTE2 | B19: 2.3.2 | C19: Howie et al. 2009 (PMID:19543373) | D19: https://mathgen.stats.ox.ac.uk/impute/impute_v2.html
A20: JASPAR | B20: 2018 | C20: Khan et al. 2018 (PMID:29140473) | D20: http://jaspar.genereg.net/
A21: JASPAR | B21: 2020 | C21: Fornes et al. 2020 (PMID:31701148) | D21: http://jaspar.genereg.net/
A22: LDlink | B22: 5 | C22: Machiela et al. 2015 (PMID:26139635) | D22: https://ldlink.nci.nih.gov/
A23: Macs2 | B23: 2.1.1 | C23: Zhang et al. 2008 (PMID:22388286) | D23: https://github.com/taoliu/MACS
A24: MEME-ChIP | B24: 5.1.0 | C24: Machanik et al. 2011(PMID:21486936) | D24: http://meme-suite.org/tools/meme-chip
A25: Microsoft Office | B25: Microsoft 365 | C25: - | D25: https://www.microsoft.com/de-de/microsoft-365?rtc=1
A26: MultiQC | B26: 1.2 | C26: - | D26: https://multiqc.info/
A27: R-Studio | B27: RStudio v1.2 Orange Blossom | C27: - | D27: https://www.rstudio.com/
A28: STAR | B28: 2.5.2b | C28: Dobin et al. 2012 (PMID:23104886) | D28: https://github.com/alexdobin/STAR
A29: Tomtom | B29: 5.1.0 | C29: Gupta et al. 2007 (PMID:17324271) | D29: http://meme-suite.org/doc/tomtom.html
